Workbook

Sheet INGRESO DE DATOS
O2: 24 years | P2: FALSE
O3: Coaseguro (Panamá) | P3: FALSE
O11: Descuento 24 años (por edad) | S11: Type | T11: Nuevo Negocio | V11: Zonas | W11: Guayas/Santa Elena
O12: age | P12: Discount (%) | Q12: Parameter | T12: Pólizas 2020 | W12: El Resto de Ecuador
O13: 24 | P13: 35 | Q13: =1-P13/100 -> 0.65 | T13: Pólizas 2021
O14: 25 | P14: 30 | Q14: =1-P14/100 -> 0.7 | T14: Pólizas 2022
O15: 26 | P15: 25 | Q15: 0.75 | T15: Pólizas 2023
O16: 27 | P16: 20 | Q16: 0.8 | T16: Pólizas Mayo - Agosto 2023
O17: 28 | P17: 15 | Q17: 0.85 | T17: Renovaciones
O18: 29 | P18: 6 | Q18: 0.94
O19: All ages | P19: 0 | Q19: 1 | S19: Type selected | T19: 7 | V19: Zona seleccionada | W19: 1
V20: Nombre de la Zona | W20: =IF(W19=1,"Guayas/Santa Elena","Resto de Ecuador") -> Guayas/Santa Elena
H21: FALSE
O22: 1. NEW BUSINESS DISCOUNT | U22: 2. PÓLIZAS 2020
O23: Essential | P23: Essential 1000 | Q23: Essential 500 | U23: Essential | V23: Essential 1000 | W23: Essential 500
O24: 15 | P24: 0 | Q24: 0 | U24: 15 | V24: 0 | W24: 0
U26: 3. PÓLIZAS 2021
U27: Essential | V27: Essential 1000 | W27: Essential 500
U28: 15 | V28: 0 | W28: 0
O30: Des 24 años: | P30: =IF(P2,IF(C43=O13,Q13,IF(C43=O14,Q14,IF(C43=O15,Q15,IF(C43=O16,Q16,IF(C43=O17,Q17,IF(C43=O18,Q18,Q19)))))),Q19) -> 1 | U30: 4. PÓLIZAS 2022
U31: Essential | V31: Essential 1000 | W31: Essential 500
O32: Des var coaseguro: | P32: =IF(P3=TRUE,0.25,1) -> 1 | U32: 0 | V32: 0 | W32: 0
U34: 5. PÓLIZAS 2023
O35: Descuento si es nuevo negocio: | U35: Essential | V35: Essential 1000 | W35: Essential 500
U36: 0 | V36: 0 | W36: 0
A37: Nombre del Asegurado Titular: | C37: John Doe | O37: NEW BUSINESS DISCOUNT (MULTIPLICATION FACTOR)
O38: Essential | P38: Essential 1000 | Q38: Essential 500 | U38: 6. PÓLIZAS MAYO - AGOSTO 2023
A39: Número de adultos en la póliza: | C39: 2 | O39: 0 | P39: =IF($T$19=1,(P24/100),IF($T$19=2,(V24/100),IF($T$19=3,(V28/100),IF($T$19=4,(V32/100),IF($T$19=5,(V36/100),IF($T$19=6,(V40/100),IF($T$19=7,(V44/100),0))))))) -> 0 | Q39: =IF($T$19=1,(Q24/100),IF($T$19=2,(W24/100),IF($T$19=3,(W28/100),IF($T$19=4,(W32/100),IF($T$19=5,(W36/100),IF($T$19=6,(W40/100),IF($T$19=7,(W44/100),0))))))) -> 0 | U39: Essential | V39: Essential 1000 | W39: Essential 500
U40: 5 | V40: 0 | W40: 0
A41: Número total de dependientes: | C41: 1
O42: Descuento combinado 24 años y Nuevo Negocio | U42: 7. RENOCACIONES
A43: Edad del Asegurado Titular: | C43: 32 | L43: =IF(T19=1,"Solo Essential 500 y 1000","") ->  | U43: Essential | V43: Essential 1000 | W43: Essential 500
L44: =IF($T$19=1,"Para nuevos negocios emitidos a partir del 1 de enero de 2024",IF($T$19=2,"Para renovaciones de pólizas vendidas entre el 1ro de enero y el 31 de diciembre de 2020",IF($T$19=3,"Para renovaciones de pólizas vendidas entre el 1ro de enero y el 31 de diciembre de 2020",IF($T$19=4,"Para renovaciones de pólizas vendidas entre el 1ro de enero y el 31 de diciembre de 2021",IF($T$19=5,"Para renovaciones de pólizas vendidas entre el 1ro de enero y el 31 de diciembre de 2022",IF($T$19=6,"Para renovaciones de pólizas vendidas entre el 1ro de enero al 30 de abril y entre el 1ro de septiembre al 31 de diciembre, de 2023","Para renovaciones de pólizas vendidas entre el 1ro de mayo y el 31 de agosto de 2023")))))) -> Para renovaciones de pólizas vendidas entre el 1ro de mayo y el 31 de agosto de 2023 | U44: 0 | V44: 0 | W44: 0
A45: Edad del/la cónyuge: | C45: 32 | O45: NEW BUSINESS DISCOUNT
O46: Essential | P46: Essential 1000 | Q46: Essential 500
O47: =(1-O39)*$P$30 -> 1 | P47: =(1-P39)*$P$30 -> 1 | Q47: =(1-Q39)*$P$30 -> 1
A49: Tarifas en US$ | Validas: 1 de enero de 2025
R57: Número de dependientes menores de 16 años:
R60: 0
R62: Número de dependientes menores de 10 años:
R65: 0

Sheet Essential Care (Renovación)
B1: TRUE | C1: TRUE | I1: RESUMEN DE BENEFICIOS
A5: Cotización de Seguro Médico Internacional Bupa Essential Care Tarifas en US$ | Validas: 1 de enero de 2025 | G5: REGIÓN
G7: ='INGRESO DE DATOS'!W20 -> Guayas/Santa Elena
A13: Nombre del asegurado principal | B13: =+'INGRESO DE DATOS'!$C$37 -> John Doe
A15: Broker/Agente | B15: =+'INGRESO DE DATOS'!$C$44 -> 0
A17: Número de Adultos en la Póliza | B17: =+'INGRESO DE DATOS'!$C$39 -> 2 | D17: Dependientes (menores de 24 años) | G17: =+'INGRESO DE DATOS'!$C$41 -> 1
D18: =IF('INGRESO DE DATOS'!$P$2=TRUE, "Cotización para dependiente de 24 años","") -> 
A19: Edad del Titular | B19: =+'INGRESO DE DATOS'!$C$43 -> 32 | D19: Edad del Cónyuge | G19: =+'INGRESO DE DATOS'!$C$45 -> 32
D21: Fecha de Cotización: | F21: =NOW() -> 2024-12-04T14:27:30.840
A25: DEDUCIBLES | B25: PLAN 1 | C25: PLAN 2 | D25: PLAN 3 | E25: PLAN 4 | F25: PLAN 5 | G25: PLAN 6
A26: Dentro del pais de residencia | B26: 0 | C26: 1000 | D26: 2000 | E26: 5000 | F26: 10000 | G26: 20000
A27: Fuera del pais de residencia | B27: 1000 | C27: 2000 | D27: 3000 | E27: 5000 | F27: 10000 | G27: 20000
A30: TARIFAS ANUALES
A31: Prima de Titular | B31: =VLOOKUP($B$19,Tablas!$A$159:$I$182,3,TRUE)+75 -> 7045 | C31: =VLOOKUP($B$19,Tablas!$A$159:$I$182,4,TRUE)+75 -> 6464 | D31: =VLOOKUP($B$19,Tablas!$A$159:$I$182,5,TRUE)+75 -> 6106 | E31: =VLOOKUP($B$19,Tablas!$A$159:$I$182,6,TRUE)+75 -> 4382 | F31: =VLOOKUP($B$19,Tablas!$A$159:$I$182,7,TRUE)+75 -> 3456 | G31: =VLOOKUP($B$19,Tablas!$A$159:$I$182,8,TRUE)+75 -> 2652
A32: Prima de Cónyuge | B32: =IF($B$17=1,0,(VLOOKUP($G$19,Tablas!$A$159:$I$182,3,TRUE))) -> 6970 | C32: =IF($B$17=1,0,(VLOOKUP($G$19,Tablas!$A$159:$I$182,4,TRUE))) -> 6389 | D32: =IF($B$17=1,0,(VLOOKUP($G$19,Tablas!$A$159:$I$182,5,TRUE))) -> 6031 | E32: =IF($B$17=1,0,(VLOOKUP($G$19,Tablas!$A$159:$I$182,6,TRUE))) -> 4307 | F32: =IF($B$17=1,0,(VLOOKUP($G$19,Tablas!$A$159:$I$182,7,TRUE))) -> 3381 | G32: =IF($B$17=1,0,(VLOOKUP($G$19,Tablas!$A$159:$I$182,8,TRUE))) -> 2577
A33: Primas Hijos | B33: =IF($G$17=0,0,(VLOOKUP($G$17,Tablas!$A$183:$I$185,3,TRUE))) -> 1631 | C33: =IF($G$17=0,0,(VLOOKUP($G$17,Tablas!$A$183:$I$185,4,TRUE))) -> 1524 | D33: =IF($G$17=0,0,(VLOOKUP($G$17,Tablas!$A$183:$I$185,5,TRUE))) -> 1517 | E33: =IF($G$17=0,0,(VLOOKUP($G$17,Tablas!$A$183:$I$185,6,TRUE))) -> 1326 | F33: =IF($G$17=0,0,(VLOOKUP($G$17,Tablas!$A$183:$I$185,7,TRUE))) -> 1032 | G33: =IF($G$17=0,0,(VLOOKUP($G$17,Tablas!$A$183:$I$185,8,TRUE))) -> 763
A34: Rider: Complicaciones de Maternidad | B34: =+IF($B$1=FALSE,0,Tablas!C186) -> 225 | C34: =+IF($B$1=FALSE,0,Tablas!D186) -> 225 | D34: =+IF($B$1=FALSE,0,Tablas!E186) -> 225 | E34: =+IF($B$1=FALSE,0,Tablas!F186) -> 225 | F34: =+IF($B$1=FALSE,0,Tablas!G186) -> 225 | G34: =+IF($B$1=FALSE,0,Tablas!H186) -> 225
A35: Rider: Trasplante Organos | B35: =+IF($C$1=FALSE,0,Tablas!C187) -> 300 | C35: =+IF($C$1=FALSE,0,Tablas!D187) -> 300 | D35: =+IF($C$1=FALSE,0,Tablas!E187) -> 300 | E35: =+IF($C$1=FALSE,0,Tablas!F187) -> 300 | F35: =+IF($C$1=FALSE,0,Tablas!G187) -> 300 | G35: =+IF($C$1=FALSE,0,Tablas!H187) -> 300
A36: TOTAL PRIMA NETA | B36: =SUM(B31:B35) -> 16171 | C36: =SUM(C31:C35) -> 14902 | D36: 14179 | E36: 10540 | F36: 8394 | G36: 6517
A37: Contrib. 3.5% Super. Bancos : | B37: =B36*3.5% -> 565.985 | C37: =C36*3.5% -> 521.57 | D37: 496.265 | E37: 368.9 | F37: 293.79 | G37: 228.095
A38: Contrib 0.5% Seg.Soc.Campes: | B38: =B36*0.5% -> 80.855 | C38: =C36*0.5% -> 74.51 | D38: 70.895 | E38: 52.7 | F38: 41.97 | G38: 32.585
A39: GRAN TOTAL : | B39: =SUM(B36:B38) -> 16817.84 | C39: =SUM(C36:C38) -> 15498.08 | D39: 14746.16 | E39: 10961.6 | F39: 8729.76 | G39: =SUM(G36:G38) -> 6777.68
A42: TARIFAS SEMESTRALES
A43: Prima de Titular | B43: =(B31-75)*Tablas!$M$4+75 -> 3664.55 | C43: =(C31-75)*Tablas!$M$4+75 -> 3365.335 | D43: =(D31-75)*Tablas!$M$4+75 -> 3180.965 | E43: =(E31-75)*Tablas!$M$4+75 -> 2293.105 | F43: =(F31-75)*Tablas!$M$4+75 -> 1816.215 | G43: =(G31-75)*Tablas!$M$4+75 -> 1402.155
A44: Prima de Cónyuge | B44: =IF($B$17=1,0,B32*Tablas!$M$4) -> 3589.55 | C44: =IF($B$17=1,0,C32*Tablas!$M$4) -> 3290.335 | D44: =IF($B$17=1,0,D32*Tablas!$M$4) -> 3105.965 | E44: =IF($B$17=1,0,E32*Tablas!$M$4) -> 2218.105 | F44: =IF($B$17=1,0,F32*Tablas!$M$4) -> 1741.215 | G44: =IF($B$17=1,0,G32*Tablas!$M$4) -> 1327.155
A45: Primas Hijos | B45: =IF($G$17=0,0,B33*Tablas!$M$4) -> 839.965 | C45: =IF($G$17=0,0,C33*Tablas!$M$4) -> 784.86 | D45: =IF($G$17=0,0,D33*Tablas!$M$4) -> 781.255 | E45: =IF($G$17=0,0,E33*Tablas!$M$4) -> 682.89 | F45: =IF($G$17=0,0,F33*Tablas!$M$4) -> 531.48 | G45: =IF($G$17=0,0,G33*Tablas!$M$4) -> 392.945
A46: Rider: Complicaciones de Maternidad | B46: =+IF($B$1=FALSE,0,B34*Tablas!$M$4) -> 115.875 | C46: =+IF($B$1=FALSE,0,C34*Tablas!$M$4) -> 115.875 | D46: =+IF($B$1=FALSE,0,D34*Tablas!$M$4) -> 115.875 | E46: =+IF($B$1=FALSE,0,E34*Tablas!$M$4) -> 115.875 | F46: =+IF($B$1=FALSE,0,F34*Tablas!$M$4) -> 115.875 | G46: =+IF($B$1=FALSE,0,G34*Tablas!$M$4) -> 115.875
A47: Rider: Trasplante Organos | B47: =+IF($B$1=FALSE,0,B35*Tablas!$M$4) -> 154.5 | C47: =+IF($B$1=FALSE,0,C35*Tablas!$M$4) -> 154.5 | D47: =+IF($B$1=FALSE,0,D35*Tablas!$M$4) -> 154.5 | E47: =+IF($B$1=FALSE,0,E35*Tablas!$M$4) -> 154.5 | F47: =+IF($B$1=FALSE,0,F35*Tablas!$M$4) -> 154.5 | G47: =+IF($B$1=FALSE,0,G35*Tablas!$M$4) -> 154.5
A48: TOTAL PRIMA NETA | B48: =SUM(B43:B47) -> 8364.44 | C48: =SUM(C43:C47) -> 7710.905 | D48: 7338.56 | E48: 5464.475 | F48: 4359.285 | G48: 3392.63
A49: Contrib. 3.5% Super. Bancos : | B49: =B48*3.5% -> 292.7554 | C49: =C48*3.5% -> 269.881675 | D49: 256.8496 | E49: 191.256625 | F49: 152.574975 | G49: 118.74205
A50: Contrib 0.5% Seg.Soc.Campes: | B50: =B48*0.5% -> 41.8222 | C50: =C48*0.5% -> 38.554525 | D50: 36.6928 | E50: 27.322375 | F50: 21.796425 | G50: 16.96315
A51: TOTAL (1ra Cuota) | B51: =SUM(B48:B50) -> 8699.0176 | C51: =SUM(C48:C50) -> 8019.3412 | D51: 7632.1024 | E51: 5683.054 | F51: 4533.6564 | G51: =SUM(G48:G50) -> 3528.3352
A52: TOTAL (2da Cuota) | B52: =(B48+B49+B50)*1-78 -> 8621.0176 | C52: =(C48+C49+C50)*1-78 -> 7941.3412 | D52: 7554.1024 | E52: 5605.054 | F52: 4455.6564 | G52: =(G48+G49+G50)*1-78 -> 3450.3352
A53: GRAN TOTAL | B53: =SUM(B51:B52) -> 17320.0352 | C53: =SUM(C51:C52) -> 15960.6824 | D53: 15186.2048 | E53: 11288.108 | F53: 8989.3128 | G53: 6978.6704
A55: Este presupuesto solamente tiene carácter informativo y en ningún momento expresa compromiso legal para suministrarle cobertura de seguro. La emisión de una póliza de seguro Bupa está sujeta a todas las evaluaciones de riesgo por parte de Bupa y a la recepción de todos los pagos de prima requeridos.

Sheet Essential 500
L1: RESUMEN DE BENEFICIOS | AA1: RESUMEN DE BENEFICIOS
A5: Cotización de Seguro Médico Bupa Essential 500 Tarifas en US$ | Validas: 1 de enero de 2025 | I5: REGIÓN
I7: ='INGRESO DE DATOS'!W20 -> Guayas/Santa Elena
A13: Nombre del Asegurado Titular | B13: =+'INGRESO DE DATOS'!$C$37 -> John Doe
A15: Número de adultos en la póliza | B15: =+'INGRESO DE DATOS'!$C$39 -> 2
A17: Número de Dependientes en la póliza | B17: =+'INGRESO DE DATOS'!$C$41 -> 1 | C17: =IF('INGRESO DE DATOS'!$P$2=TRUE, "Cotización para dependiente de 24 años","") -> 
A19: Edad del Asegurado Titular | B19: =+'INGRESO DE DATOS'!$C$43 -> 32 | G19: Edad del/la conyuge | I19: =+'INGRESO DE DATOS'!$C$45 -> 32
A21: Fecha de la cotización | B21: =NOW() -> 2024-12-04T14:27:30.840 | M21: FALSE | AB21: FALSE
A23: =IF('INGRESO DE DATOS'!P3=TRUE,"Variante con coaseguro fuera del país de residencia: SI","Variante con coaseguro fuera del país de residencia: NO") -> Variante con coaseguro fuera del país de residencia: NO
A25: Deducibles | C25: PLAN 1 | D25: PLAN 2 | E25: PLAN 3 | F25: PLAN 4 | G25: PLAN 5 | H25: PLAN 6 | I25: PLAN 7
A26: En el país de residencia | C26: 250 | D26: 500 | E26: 1000 | F26: 2000 | G26: 5000 | H26: 10000 | I26: 20000
A27: Fuera del país de residencia | C27: 500 | D27: 1000 | E27: 2000 | F27: 4000 | G27: 5000 | H27: 10000 | I27: 20000
A29: TARIFAS ANUALES
A30: Prima para Asegurado Titular | C30: =VLOOKUP($B$19,Tablas!$A$84:$I$150,3,TRUE)+60+50 -> 3545 | D30: =VLOOKUP($B$19,Tablas!$A$84:$I$150,4,TRUE)+60+50 -> 2878 | E30: =VLOOKUP($B$19,Tablas!$A$84:$I$150,5,TRUE)+60+50 -> 2214 | F30: =VLOOKUP($B$19,Tablas!$A$84:$I$150,6,TRUE)+60+50 -> 1637 | G30: =VLOOKUP($B$19,Tablas!$A$84:$I$150,7,TRUE)+60+50 -> 1022 | H30: =VLOOKUP($B$19,Tablas!$A$84:$I$150,8,TRUE)+60+50 -> 676 | I30: =VLOOKUP($B$19,Tablas!$A$84:$I$150,9,TRUE)+60+50 -> 466
A31: Prima para conyuge | C31: =IF($B$15=1,0,(VLOOKUP($I$19,Tablas!$A$84:$I$150,3,TRUE))) -> 3435 | D31: =IF($B$15=1,0,(VLOOKUP($I$19,Tablas!$A$84:$I$150,4,TRUE))) -> 2768 | E31: =IF($B$15=1,0,(VLOOKUP($I$19,Tablas!$A$84:$I$150,5,TRUE))) -> 2104 | F31: =IF($B$15=1,0,(VLOOKUP($I$19,Tablas!$A$84:$I$150,6,TRUE))) -> 1527 | G31: =IF($B$15=1,0,(VLOOKUP($I$19,Tablas!$A$84:$I$150,7,TRUE))) -> 912 | H31: =IF($B$15=1,0,(VLOOKUP($I$19,Tablas!$A$84:$I$150,8,TRUE))) -> 566 | I31: =IF($B$15=1,0,(VLOOKUP($I$19,Tablas!$A$84:$I$150,9,TRUE))) -> 356
A32: Prima para hijo (s) | C32: =IF($B$17=0,0,(VLOOKUP($B$17,Tablas!$A$151:$I$153,3,TRUE))) -> 1003 | D32: =IF($B$17=0,0,(VLOOKUP($B$17,Tablas!$A$151:$I$153,4,TRUE))) -> 936 | E32: =IF($B$17=0,0,(VLOOKUP($B$17,Tablas!$A$151:$I$153,5,TRUE))) -> 622 | F32: =IF($B$17=0,0,(VLOOKUP($B$17,Tablas!$A$151:$I$153,6,TRUE))) -> 565 | G32: =IF($B$17=0,0,(VLOOKUP($B$17,Tablas!$A$151:$I$153,7,TRUE))) -> 338 | H32: =IF($B$17=0,0,(VLOOKUP($B$17,Tablas!$A$151:$I$153,8,TRUE))) -> 254 | I32: =IF($B$17=0,0,(VLOOKUP($B$17,Tablas!$A$151:$I$153,9,TRUE))) -> 153
A33: Total de Prima neta | C33: =SUM(C30:C32) -> 7983 | D33: =SUM(D30:D32) -> 6582 | E33: =SUM(E30:E32) -> 4940 | F33: 3729 | G33: 2272 | H33: 1496 | I33: 975
A34: Ajuste por la variante con coaseguro fuera del país de residencia | C34: =IF('INGRESO DE DATOS'!$P$3,C33*-15%,0) -> 0 | D34: =IF('INGRESO DE DATOS'!$P$3,D33*-15%,0) -> 0 | E34: =IF('INGRESO DE DATOS'!$P$3,E33*-15%,0) -> 0 | I34: =IF('INGRESO DE DATOS'!$P$3,I33*-15%,0) -> 0
A35: Contribución 3.5% Superintendencia de Bancos Contribución 0.5% Seguro Social Campesino | C35: =C33*Tablas!$AD$3 -> 319.32 | D35: =D33*Tablas!$AD$3 -> 263.28 | E35: =E33*Tablas!$AD$3 -> 197.6 | F35: =F33*Tablas!$AD$3 -> 149.16 | G35: =G33*Tablas!$AD$3 -> 90.88 | H35: =H33*Tablas!$AD$3 -> 59.84 | I35: =I33*Tablas!$AD$3 -> 39
A36: VAT (5%) :
A37: ITBMS (7%)
A38: TOTAL ANUAL | C38: =SUM(C33:C37) -> 8302.32 | D38: =SUM(D33:D37) -> 6845.28 | E38: 5137.6 | F38: 3878.16 | G38: 2362.88 | H38: 1555.84 | I38: 1014
A40: TARIFAS SEMESTRALES
A41: Prima para Asegurado Titular | C41: =(C30-60-50)*Tablas!$M$4+(60/2)+50 -> 1849.025 | D41: =(D30-60-50)*Tablas!$M$4+(60/2)+50 -> 1505.52 | E41: =(E30-60-50)*Tablas!$M$4+(60/2)+50 -> 1163.56 | F41: =(F30-60-50)*Tablas!$M$4+(60/2)+50 -> 866.405 | G41: =(G30-60-50)*Tablas!$M$4+(60/2)+50 -> 549.68 | H41: =(H30-60-50)*Tablas!$M$4+(60/2)+50 -> 371.49 | I41: =(I30-60-50)*Tablas!$M$4+(60/2)+50 -> 263.34
A42: Prima para conyuge | C42: =C31*Tablas!$M$4 -> 1769.025 | D42: =D31*Tablas!$M$4 -> 1425.52 | E42: =E31*Tablas!$M$4 -> 1083.56 | F42: =F31*Tablas!$M$4 -> 786.405 | G42: =G31*Tablas!$M$4 -> 469.68 | H42: =H31*Tablas!$M$4 -> 291.49 | I42: =I31*Tablas!$M$4 -> 183.34
A43: Prima para hijo (s) | C43: =C32*Tablas!$M$4 -> 516.545 | D43: =D32*Tablas!$M$4 -> 482.04 | E43: =E32*Tablas!$M$4 -> 320.33 | F43: =F32*Tablas!$M$4 -> 290.975 | G43: =G32*Tablas!$M$4 -> 174.07 | H43: =H32*Tablas!$M$4 -> 130.81 | I43: =I32*Tablas!$M$4 -> 78.795
A44: Total de Prima neta | C44: =SUM(C41:C43) -> 4134.595 | D44: =SUM(D41:D43) -> 3413.08 | E44: 2567.45 | F44: 1943.785 | G44: 1193.43 | H44: 793.79 | I44: 525.475
A45: Ajuste por la variante con coaseguro fuera del país de residencia | C45: =IF('INGRESO DE DATOS'!$P$3,C44*-15%,0) -> 0 | D45: =IF('INGRESO DE DATOS'!$P$3,D44*-15%,0) -> 0 | E45: =IF('INGRESO DE DATOS'!$P$3,E44*-15%,0) -> 0 | I45: =IF('INGRESO DE DATOS'!$P$3,I44*-15%,0) -> 0
A46: =A35 -> Contribución 3.5% Superintendencia de Bancos Contribución 0.5% Seguro Social Campesino | C46: =C44*Tablas!$AD$3 -> 165.3838 | D46: =D44*Tablas!$AD$3 -> 136.5232 | E46: =E44*Tablas!$AD$3 -> 102.698 | F46: =F44*Tablas!$AD$3 -> 77.7514 | G46: =G44*Tablas!$AD$3 -> 47.7372 | H46: =H44*Tablas!$AD$3 -> 31.7516 | I46: =I44*Tablas!$AD$3 -> 21.019
A47: VAT (5%) :
A48: ITBMS (7%)
A49: TOTAL de primera cuota | C49: =SUM(C44:C48) -> 4299.9788 | D49: =SUM(D44:D48) -> 3549.6032 | E49: 2670.148 | F49: 2021.5364 | G49: 1241.1672 | H49: 825.5416 | I49: 546.494
A50: Costo de segunda cuota | C50: =C44+C46-52 -> 4247.9788 | D50: =D44+D46-52 -> 3497.6032 | E50: 2618.148 | F50: 1969.5364 | G50: 1189.1672 | H50: 773.5416 | I50: 494.494
A51: TOTAL ANUAL | C51: =C49+C50 -> 8547.9576 | D51: =D49+D50 -> 7047.2064 | E51: 5288.296 | F51: 3991.0728 | G51: 2430.3344 | H51: 1599.0832 | I51: 1040.988
A53: TARIFAS TRIMESTRALES
A54: Prima para Asegurado Titular | C54: =(C30-60-50)*Tablas!$M$3+(60/4)+50 -> 962.39375 | D54: =(D30-60-50)*Tablas!$M$3+(60/4)+50 -> 788.14 | E54: =(E30-60-50)*Tablas!$M$3+(60/4)+50 -> 614.67 | F54: =(F30-60-50)*Tablas!$M$3+(60/4)+50 -> 463.92875 | G54: =(G30-60-50)*Tablas!$M$3+(60/4)+50 -> 303.26 | H54: =(H30-60-50)*Tablas!$M$3+(60/4)+50 -> 212.8675 | I54: =(I30-60-50)*Tablas!$M$3+(60/4)+50 -> 158.005
A55: Prima para conyuge | C55: =C31*Tablas!$M$3 -> 897.39375 | D55: =D31*Tablas!$M$3 -> 723.14 | E55: =E31*Tablas!$M$3 -> 549.67 | F55: =F31*Tablas!$M$3 -> 398.92875 | G55: =G31*Tablas!$M$3 -> 238.26 | H55: =H31*Tablas!$M$3 -> 147.8675 | I55: =I31*Tablas!$M$3 -> 93.005
A56: Prima para hijo (s) | C56: =C32*Tablas!$M$3 -> 262.03375 | D56: =D32*Tablas!$M$3 -> 244.53 | E56: =E32*Tablas!$M$3 -> 162.4975 | F56: =F32*Tablas!$M$3 -> 147.60625 | G56: =G32*Tablas!$M$3 -> 88.3025 | H56: =H32*Tablas!$M$3 -> 66.3575 | I56: =I32*Tablas!$M$3 -> 39.97125
A57: Total de Prima neta | C57: =SUM(C54:C56) -> 2121.82125 | D57: =SUM(D54:D56) -> 1755.81 | E57: 1326.8375 | F57: 1010.46375 | G57: 629.8225 | H57: 427.0925 | I57: 290.98125
A58: Ajuste por la variante con coaseguro fuera del país de residencia | C58: =IF('INGRESO DE DATOS'!$P$3,C57*-15%,0) -> 0 | D58: =IF('INGRESO DE DATOS'!$P$3,D57*-15%,0) -> 0 | E58: =IF('INGRESO DE DATOS'!$P$3,E57*-15%,0) -> 0 | I58: =IF('INGRESO DE DATOS'!$P$3,I57*-15%,0) -> 0
A59: =A35 -> Contribución 3.5% Superintendencia de Bancos Contribución 0.5% Seguro Social Campesino | C59: =C57*Tablas!$AD$3 -> 84.87285 | D59: =D57*Tablas!$AD$3 -> 70.2324 | E59: =E57*Tablas!$AD$3 -> 53.0735 | F59: =F57*Tablas!$AD$3 -> 40.41855 | G59: =G57*Tablas!$AD$3 -> 25.1929 | H59: =H57*Tablas!$AD$3 -> 17.0837 | I59: =I57*Tablas!$AD$3 -> 11.63925
A60: VAT (5%) :
A61: ITBMS (7%)
A62: TOTAL de primera cuota | C62: =SUM(C57:C61) -> 2206.6941 | D62: =SUM(D57:D61) -> 1826.0424 | E62: 1379.911 | F62: 1050.8823 | G62: 655.0154 | H62: 444.1762 | I62: 302.6205
A63: Costo de tarifa trimestral 2 a 4 | C63: =C57+C59-52 -> 2154.6941 | D63: =D57+D59-52 -> 1774.0424 | E63: 1327.911 | F63: 998.8823 | G63: 603.0154 | H63: 392.1762 | I63: 250.6205
A64: TOTAL ANUAL | C64: =C62+(C63*3) -> 8670.7764 | D64: =D62+(D63*3) -> 7148.1696 | E64: 5363.644 | F64: 4047.5292 | G64: 2464.0616 | H64: 1620.7048 | I64: 1054.482
A66: TARIFAS MENSUALES
A67: Prima para Asegurado Titular | C67: =(C30-60-50)*Tablas!$M$2+(60/12)+50 -> 358.425 | D67: =(D30-60-50)*Tablas!$M$2+(60/12)+50 -> 299.5066667 | E67: =(E30-60-50)*Tablas!$M$2+(60/12)+50 -> 240.8533333 | F67: =(F30-60-50)*Tablas!$M$2+(60/12)+50 -> 189.885 | G67: =(G30-60-50)*Tablas!$M$2+(60/12)+50 -> 135.56 | H67: =(H30-60-50)*Tablas!$M$2+(60/12)+50 -> 104.9966667 | I67: =(I30-60-50)*Tablas!$M$2+(60/12)+50 -> 86.44666667
A68: Prima para conyuge | C68: =C31*Tablas!$M$2 -> 303.425 | D68: =D31*Tablas!$M$2 -> 244.5066667 | E68: =E31*Tablas!$M$2 -> 185.8533333 | F68: =F31*Tablas!$M$2 -> 134.885 | G68: =G31*Tablas!$M$2 -> 80.56 | H68: =H31*Tablas!$M$2 -> 49.99666667 | I68: =I31*Tablas!$M$2 -> 31.44666667
A69: Prima para hijo (s) | C69: =C32*Tablas!$M$2 -> 88.59833333 | D69: =D32*Tablas!$M$2 -> 82.68 | E69: =E32*Tablas!$M$2 -> 54.94333333 | F69: =F32*Tablas!$M$2 -> 49.90833333 | G69: =G32*Tablas!$M$2 -> 29.85666667 | H69: =H32*Tablas!$M$2 -> 22.43666667 | I69: =I32*Tablas!$M$2 -> 13.515
A70: Total de Prima neta | C70: =SUM(C67:C69) -> 750.4483333 | D70: =SUM(D67:D69) -> 626.6933333 | E70: 481.65 | F70: 374.6783333 | G70: 245.9766667 | H70: 177.43 | I70: 131.4083333
A71: Ajuste por la variante con coaseguro fuera del país de residencia | C71: =IF('INGRESO DE DATOS'!$P$3,C70*-15%,0) -> 0 | D71: =IF('INGRESO DE DATOS'!$P$3,D70*-15%,0) -> 0 | E71: =IF('INGRESO DE DATOS'!$P$3,E70*-15%,0) -> 0 | I71: =IF('INGRESO DE DATOS'!$P$3,I70*-15%,0) -> 0
A72: =A59 -> Contribución 3.5% Superintendencia de Bancos Contribución 0.5% Seguro Social Campesino | C72: =C70*Tablas!$AD$3 -> 30.01793333 | D72: =D70*Tablas!$AD$3 -> 25.06773333 | E72: =E70*Tablas!$AD$3 -> 19.266 | F72: =F70*Tablas!$AD$3 -> 14.98713333 | G72: =G70*Tablas!$AD$3 -> 9.839066667 | H72: =H70*Tablas!$AD$3 -> 7.0972 | I72: =I70*Tablas!$AD$3 -> 5.256333333
A73: VAT (5%) :
A74: ITBMS (7%)
A75: TOTAL de primera cuota | C75: =SUM(C70:C74) -> 780.4662667 | D75: =SUM(D70:D74) -> 651.7610667 | E75: 500.916 | F75: 389.6654667 | G75: 255.8157333 | H75: 184.5272 | I75: 136.6646667
A76: Costo de Tarifa mensual de 2 a 12 | C76: =C70+C72-52 -> 728.4662667 | D76: =D70+D72-52 -> 599.7610667 | E76: 448.916 | F76: 337.6654667 | G76: 203.8157333 | H76: 132.5272 | I76: 84.66466667
A77: TOTAL ANUAL | C77: =C75+(C76*11) -> 8793.5952 | D77: =D75+(D76*11) -> 7249.1328 | E77: 5438.992 | F77: 4103.9856 | G77: 2497.7888 | H77: 1642.3264 | I77: 1067.976
A79: Este presupuesto solamente tiene carácter informativo y en ningún momento expresa compromiso legal para suministrarle cobertura de seguro. La emisión de una póliza de seguro Bupa está sujeta a todas las evaluaciones de riesgo por parte de Bupa y a la recepción de todos los pagos de prima requeridos.

Sheet Essential 1000
M1: RESUMEN DE BENEFICIOS | AB1: RESUMEN DE BENEFICIOS
A5: Cotización de Seguro Médico Essential 1000 Tarifas en US$ | Validas: 1 de enero de 2025 | I5: REGIÓN
I7: ='INGRESO DE DATOS'!W20 -> Guayas/Santa Elena
A13: Nombre del Asegurado Titular | B13: =+'INGRESO DE DATOS'!$C$37 -> John Doe
A15: Número de adultos en la póliza | B15: =+'INGRESO DE DATOS'!$C$39 -> 2
A17: Número de Dependientes en la póliza | B17: =+'INGRESO DE DATOS'!$C$41 -> 1 | C17: =IF('INGRESO DE DATOS'!$P$2=TRUE, "Cotización para dependiente de 24 años","") -> 
A19: Edad del Asegurado Titular | B19: =+'INGRESO DE DATOS'!$C$43 -> 32 | G19: Edad del/la conyuge | I19: =+'INGRESO DE DATOS'!$C$45 -> 32 | N19: FALSE | AC19: FALSE
A21: Fecha de la cotización | B21: =NOW() -> 2024-12-04T14:27:30.840
A23: =IF('INGRESO DE DATOS'!P3=TRUE,"Variante con coaseguro fuera del país de residencia: SI","Variante con coaseguro fuera del país de residencia: NO") -> Variante con coaseguro fuera del país de residencia: NO
A25: DEDUCIBlES | C25: PLAN 1 | D25: PLAN 2 | E25: PLAN 3 | F25: PLAN 4 | G25: PLAN 5 | H25: PLAN 6 | I25: PLAN 7
A26: En el país de residencia | C26: 250 | D26: 500 | E26: 1000 | F26: 2000 | G26: 5000 | H26: 10000 | I26: 20000
A27: Fuera del país de residencia | C27: 500 | D27: 1000 | E27: 2000 | F27: 4000 | G27: 5000 | H27: 10000 | I27: 20000
A29: TARIFAS ANUALES
A30: Prima para Asegurado Titular | C30: =VLOOKUP($B$19,Tablas!$A$9:$I$75,3,TRUE)+(60)+50 -> 4318 | D30: =VLOOKUP($B$19,Tablas!$A$9:$I$75,4,TRUE)+(60)+50 -> 3766 | E30: =VLOOKUP($B$19,Tablas!$A$9:$I$75,5,TRUE)+(60)+50 -> 3034 | F30: =VLOOKUP($B$19,Tablas!$A$9:$I$75,6,TRUE)+(60)+50 -> 2254 | G30: =VLOOKUP($B$19,Tablas!$A$9:$I$75,7,TRUE)+(60)+50 -> 1399 | H30: =VLOOKUP($B$19,Tablas!$A$9:$I$75,8,TRUE)+(60)+50 -> 918 | I30: =VLOOKUP($B$19,Tablas!$A$9:$I$75,9,TRUE)+(60)+50 -> 626
A31: Prima para conyuge | C31: =IF($B$15=1,0,(VLOOKUP($I$19,Tablas!$A$9:$I$75,3,TRUE))) -> 4208 | D31: =IF($B$15=1,0,(VLOOKUP($I$19,Tablas!$A$9:$I$75,4,TRUE))) -> 3656 | E31: =IF($B$15=1,0,(VLOOKUP($I$19,Tablas!$A$9:$I$75,5,TRUE))) -> 2924 | F31: =IF($B$15=1,0,(VLOOKUP($I$19,Tablas!$A$9:$I$75,6,TRUE))) -> 2144 | G31: =IF($B$15=1,0,(VLOOKUP($I$19,Tablas!$A$9:$I$75,7,TRUE))) -> 1289 | H31: =IF($B$15=1,0,(VLOOKUP($I$19,Tablas!$A$9:$I$75,8,TRUE))) -> 808 | I31: =IF($B$15=1,0,(VLOOKUP($I$19,Tablas!$A$9:$I$75,9,TRUE))) -> 516
A32: Prima para hijo (s) | C32: =IF($B$17=0,0,(VLOOKUP($B$17,Tablas!$A$76:$I$78,3,TRUE))) -> 1022 | D32: =IF($B$17=0,0,(VLOOKUP($B$17,Tablas!$A$76:$I$78,4,TRUE))) -> 1059 | E32: =IF($B$17=0,0,(VLOOKUP($B$17,Tablas!$A$76:$I$78,5,TRUE))) -> 653 | F32: =IF($B$17=0,0,(VLOOKUP($B$17,Tablas!$A$76:$I$78,6,TRUE))) -> 583 | G32: =IF($B$17=0,0,(VLOOKUP($B$17,Tablas!$A$76:$I$78,7,TRUE))) -> 415 | H32: =IF($B$17=0,0,(VLOOKUP($B$17,Tablas!$A$76:$I$78,8,TRUE))) -> 368 | I32: =IF($B$17=0,0,(VLOOKUP($B$17,Tablas!$A$76:$I$78,9,TRUE))) -> 216
A33: Total de Prima neta | C33: =SUM(C30:C32) -> 9548 | D33: =SUM(D30:D32) -> 8481 | E33: 6611 | F33: 4981 | G33: 3103 | H33: 2094 | I33: 1358
A34: Ajuste por la variante con coaseguro fuera del país de residencia | C34: =IF('INGRESO DE DATOS'!$P$3,C33*-15%,0) -> 0 | D34: =IF('INGRESO DE DATOS'!$P$3,D33*-15%,0) -> 0 | E34: =IF('INGRESO DE DATOS'!$P$3,E33*-15%,0) -> 0 | F34: =IF('INGRESO DE DATOS'!$P$3,F33*-15%,0) -> 0 | I34: =IF('INGRESO DE DATOS'!$P$3,I33*-15%,0) -> 0
A35: Contribución 3.5% Superintendencia de Bancos Contribución 0.5% Seguro Social Campesino | C35: =C33*Tablas!$AD$3 -> 381.92 | D35: =D33*Tablas!$AD$3 -> 339.24 | E35: =E33*Tablas!$AD$3 -> 264.44 | F35: =F33*Tablas!$AD$3 -> 199.24 | G35: =G33*Tablas!$AD$3 -> 124.12 | H35: =H33*Tablas!$AD$3 -> 83.76 | I35: =I33*Tablas!$AD$3 -> 54.32
A36: VAT (5%) :
A37: ITBMS (7%)
A38: TOTAL ANUAL | C38: =SUM(C33:C37) -> 9929.92 | D38: =SUM(D33:D37) -> 8820.24 | E38: 6875.44 | F38: 5180.24 | G38: 3227.12 | H38: 2177.76 | I38: 1412.32
A40: TARIFAS SEMIANUALES
A41: Prima para Asegurado Titular | C41: =(C30-60-50)*Tablas!$M$4+(60/2)+50 -> 2247.12 | D41: =(D30-60-50)*Tablas!$M$4+(60/2)+50 -> 1962.84 | E41: =(E30-60-50)*Tablas!$M$4+(60/2)+50 -> 1585.86 | F41: =(F30-60-50)*Tablas!$M$4+(60/2)+50 -> 1184.16 | G41: =(G30-60-50)*Tablas!$M$4+(60/2)+50 -> 743.835 | H41: =(H30-60-50)*Tablas!$M$4+(60/2)+50 -> 496.12 | I41: =(I30-60-50)*Tablas!$M$4+(60/2)+50 -> 345.74
A42: Prima para conyuge | C42: =C31*Tablas!$M$4 -> 2167.12 | D42: =D31*Tablas!$M$4 -> 1882.84 | E42: =E31*Tablas!$M$4 -> 1505.86 | F42: =F31*Tablas!$M$4 -> 1104.16 | G42: =G31*Tablas!$M$4 -> 663.835 | H42: =H31*Tablas!$M$4 -> 416.12 | I42: =I31*Tablas!$M$4 -> 265.74
A43: Prima para hijo (s) | C43: =C32*Tablas!$M$4 -> 526.33 | D43: =D32*Tablas!$M$4 -> 545.385 | E43: =E32*Tablas!$M$4 -> 336.295 | F43: =F32*Tablas!$M$4 -> 300.245 | G43: =G32*Tablas!$M$4 -> 213.725 | H43: =H32*Tablas!$M$4 -> 189.52 | I43: =I32*Tablas!$M$4 -> 111.24
A44: Total de Prima neta | C44: =SUM(C41:C43) -> 4940.57 | D44: =SUM(D41:D43) -> 4391.065 | E44: 3428.015 | F44: 2588.565 | G44: 1621.395 | H44: 1101.76 | I44: 722.72
A45: Ajuste por la variante con coaseguro fuera del país de residencia | C45: =IF('INGRESO DE DATOS'!$P$3,C44*-15%,0) -> 0 | D45: =IF('INGRESO DE DATOS'!$P$3,D44*-15%,0) -> 0 | E45: =IF('INGRESO DE DATOS'!$P$3,E44*-15%,0) -> 0 | F45: =IF('INGRESO DE DATOS'!$P$3,F44*-15%,0) -> 0 | I45: =IF('INGRESO DE DATOS'!$P$3,I44*-15%,0) -> 0
A46: =A35 -> Contribución 3.5% Superintendencia de Bancos Contribución 0.5% Seguro Social Campesino | C46: =C44*Tablas!$AD$3 -> 197.6228 | D46: =D44*Tablas!$AD$3 -> 175.6426 | E46: =E44*Tablas!$AD$3 -> 137.1206 | F46: =F44*Tablas!$AD$3 -> 103.5426 | G46: =G44*Tablas!$AD$3 -> 64.8558 | H46: =H44*Tablas!$AD$3 -> 44.0704 | I46: =I44*Tablas!$AD$3 -> 28.9088
A47: VAT (5%) :
A48: ITBMS (7%)
A49: TOTAL de primera cuota | C49: =SUM(C44:C48) -> 5138.1928 | D49: =SUM(D44:D48) -> 4566.7076 | E49: 3565.1356 | F49: 2692.1076 | G49: 1686.2508 | H49: 1145.8304 | I49: 751.6288
A50: Costo de segunda cuota | C50: =C44+C46-52 -> 5086.1928 | D50: =D44+D46-52 -> 4514.7076 | E50: 3513.1356 | F50: 2640.1076 | G50: 1634.2508 | H50: 1093.8304 | I50: 699.6288
A51: TOTAL ANUAL | C51: =C49+C50 -> 10224.3856 | D51: =D49+D50 -> 9081.4152 | E51: 7078.2712 | F51: 5332.2152 | G51: 3320.5016 | H51: 2239.6608 | I51: 1451.2576
A53: TARIFAS TRIMESTRALES
A54: Prima para Asegurado Titular | C54: =(C30-60-50)*Tablas!$M$3+(60/4)+50 -> 1164.34 | D54: =(D30-60-50)*Tablas!$M$3+(60/4)+50 -> 1020.13 | E54: =(E30-60-50)*Tablas!$M$3+(60/4)+50 -> 828.895 | F54: =(F30-60-50)*Tablas!$M$3+(60/4)+50 -> 625.12 | G54: =(G30-60-50)*Tablas!$M$3+(60/4)+50 -> 401.75125 | H54: =(H30-60-50)*Tablas!$M$3+(60/4)+50 -> 276.09 | I54: =(I30-60-50)*Tablas!$M$3+(60/4)+50 -> 199.805
A55: Prima para conyuge | C55: =C31*Tablas!$M$3 -> 1099.34 | D55: =D31*Tablas!$M$3 -> 955.13 | E55: =E31*Tablas!$M$3 -> 763.895 | F55: =F31*Tablas!$M$3 -> 560.12 | G55: =G31*Tablas!$M$3 -> 336.75125 | H55: =H31*Tablas!$M$3 -> 211.09 | I55: =I31*Tablas!$M$3 -> 134.805
A56: Prima para hijo (s) | C56: =C32*Tablas!$M$3 -> 266.9975 | D56: =D32*Tablas!$M$3 -> 276.66375 | E56: =E32*Tablas!$M$3 -> 170.59625 | F56: =F32*Tablas!$M$3 -> 152.30875 | G56: =G32*Tablas!$M$3 -> 108.41875 | H56: =H32*Tablas!$M$3 -> 96.14 | I56: =I32*Tablas!$M$3 -> 56.43
A57: Total de Prima neta | C57: =SUM(C54:C56) -> 2530.6775 | D57: =SUM(D54:D56) -> 2251.92375 | E57: 1763.38625 | F57: 1337.54875 | G57: 846.92125 | H57: 583.32 | I57: 391.04
A58: Ajuste por la variante con coaseguro fuera del país de residencia | C58: =IF('INGRESO DE DATOS'!$P$3,C57*-15%,0) -> 0 | D58: =IF('INGRESO DE DATOS'!$P$3,D57*-15%,0) -> 0 | E58: =IF('INGRESO DE DATOS'!$P$3,E57*-15%,0) -> 0 | F58: =IF('INGRESO DE DATOS'!$P$3,F57*-15%,0) -> 0 | I58: =IF('INGRESO DE DATOS'!$P$3,I57*-15%,0) -> 0
A59: =A35 -> Contribución 3.5% Superintendencia de Bancos Contribución 0.5% Seguro Social Campesino | C59: =C57*Tablas!$AD$3 -> 101.2271 | D59: =D57*Tablas!$AD$3 -> 90.07695 | E59: =E57*Tablas!$AD$3 -> 70.53545 | F59: =F57*Tablas!$AD$3 -> 53.50195 | G59: =G57*Tablas!$AD$3 -> 33.87685 | H59: =H57*Tablas!$AD$3 -> 23.3328 | I59: =I57*Tablas!$AD$3 -> 15.6416
A60: VAT (5%) :
A61: ITBMS (7%)
A62: TOTAL de primera cuota | C62: =SUM(C57:C61) -> 2631.9046 | D62: =SUM(D57:D61) -> 2342.0007 | E62: 1833.9217 | F62: 1391.0507 | G62: 880.7981 | H62: 606.6528 | I62: 406.6816
A63: Costo de tarifa trimestral 2 a 4 | C63: =C57+C59-52 -> 2579.9046 | D63: =D57+D59-52 -> 2290.0007 | E63: 1781.9217 | F63: 1339.0507 | G63: 828.7981 | H63: 554.6528 | I63: 354.6816
A64: TOTAL ANUAL | C64: =C62+(C63*3) -> 10371.6184 | D64: =D62+(D63*3) -> 9212.0028 | E64: 7179.6868 | F64: 5408.2028 | G64: 3367.1924 | H64: 2270.6112 | I64: 1470.7264
A66: TARIFAS MENSUALES
A67: Prima para Asegurado Titular | C67: =(C30-60-50)*Tablas!$M$2+(60/12)+50 -> 426.7066667 | D67: =(D30-60-50)*Tablas!$M$2+(60/12)+50 -> 377.9466667 | E67: =(E30-60-50)*Tablas!$M$2+(60/12)+50 -> 313.2866667 | F67: =(F30-60-50)*Tablas!$M$2+(60/12)+50 -> 244.3866667 | G67: =(G30-60-50)*Tablas!$M$2+(60/12)+50 -> 168.8616667 | H67: =(H30-60-50)*Tablas!$M$2+(60/12)+50 -> 126.3733333 | I67: =(I30-60-50)*Tablas!$M$2+(60/12)+50 -> 100.58
A68: Prima para conyuge | C68: =C31*Tablas!$M$2 -> 371.7066667 | D68: =D31*Tablas!$M$2 -> 322.9466667 | E68: =E31*Tablas!$M$2 -> 258.2866667 | F68: =F31*Tablas!$M$2 -> 189.3866667 | G68: =G31*Tablas!$M$2 -> 113.8616667 | H68: =H31*Tablas!$M$2 -> 71.37333333 | I68: =I31*Tablas!$M$2 -> 45.58
A69: Prima para hijo (s) | C69: =C32*Tablas!$M$2 -> 90.27666667 | D69: =D32*Tablas!$M$2 -> 93.545 | E69: =E32*Tablas!$M$2 -> 57.68166667 | F69: =F32*Tablas!$M$2 -> 51.49833333 | G69: =G32*Tablas!$M$2 -> 36.65833333 | H69: =H32*Tablas!$M$2 -> 32.50666667 | I69: =I32*Tablas!$M$2 -> 19.08
A70: Total de Prima neta | C70: =SUM(C67:C69) -> 888.69 | D70: =SUM(D67:D69) -> 794.4383333 | E70: 629.255 | F70: 485.2716667 | G70: 319.3816667 | H70: 230.2533333 | I70: 165.24
A71: Ajuste por la variante con coaseguro fuera del país de residencia | C71: =IF('INGRESO DE DATOS'!$P$3,C70*-15%,0) -> 0 | D71: =IF('INGRESO DE DATOS'!$P$3,D70*-15%,0) -> 0 | E71: =IF('INGRESO DE DATOS'!$P$3,E70*-15%,0) -> 0 | F71: =IF('INGRESO DE DATOS'!$P$3,F70*-15%,0) -> 0 | I71: =IF('INGRESO DE DATOS'!$P$3,I70*-15%,0) -> 0
A72: =A59 -> Contribución 3.5% Superintendencia de Bancos Contribución 0.5% Seguro Social Campesino | C72: =C70*Tablas!$AD$3 -> 35.5476 | D72: =D70*Tablas!$AD$3 -> 31.77753333 | E72: =E70*Tablas!$AD$3 -> 25.1702 | F72: =F70*Tablas!$AD$3 -> 19.41086667 | G72: =G70*Tablas!$AD$3 -> 12.77526667 | H72: =H70*Tablas!$AD$3 -> 9.210133333 | I72: =I70*Tablas!$AD$3 -> 6.6096
A73: VAT (5%) :
A74: ITBMS (7%)
A75: TOTAL de primera cuota | C75: =SUM(C70:C74) -> 924.2376 | D75: =SUM(D70:D74) -> 826.2158667 | E75: 654.4252 | F75: 504.6825333 | G75: 332.1569333 | H75: 239.4634667 | I75: 171.8496
A76: Costo de Tarifa mensual de 2 a 12 | C76: =C70+C72-52 -> 872.2376 | D76: =D70+D72-52 -> 774.2158667 | E76: 602.4252 | F76: 452.6825333 | G76: 280.1569333 | H76: 187.4634667 | I76: 119.8496
A77: TOTAL ANUAL | C77: =C75+(C76*11) -> 10518.8512 | D77: =D75+(D76*11) -> 9342.5904 | E77: 7281.1024 | F77: 5484.1904 | G77: 3413.8832 | H77: 2301.5616 | I77: 1490.1952
A79: Este presupuesto solamente tiene carácter informativo y en ningún momento expresa compromiso legal para suministrarle cobertura de seguro. La emisión de una póliza de seguro Bupa está sujeta a todas las evaluaciones de riesgo por parte de Bupa y a la recepción de todos los pagos de prima requeridos.

Sheet Resumen Tarifas
A5: Cotización de Seguro Médico Internacional Bupa Essential Tarifas en US$ | Validas: 1 de enero de 2025 | H5: REGIÓN
H7: ='INGRESO DE DATOS'!W20 -> Guayas/Santa Elena
A13: Nombre del Asegurado Titular | B13: =+'INGRESO DE DATOS'!$C$37 -> John Doe
A15: Número de adultos en la póliza | B15: =+'INGRESO DE DATOS'!$C$39 -> 2
A17: Número de Dependientes en la póliza | B17: =+'INGRESO DE DATOS'!$C$41 -> 1 | C17: =IF('INGRESO DE DATOS'!$P$2=TRUE, "Cotización para dependiente de 24 años","") -> 
A19: Edad del Asegurado Titular | B19: =+'INGRESO DE DATOS'!$C$43 -> 32 | F19: Edad del/la conyuge | H19: =+'INGRESO DE DATOS'!$C$45 -> 32
A21: Fecha de la cotización | B21: =NOW() -> 2024-12-04T14:27:30.840
A23: Essential 1000
A24: DEDUCIBLES | B24: PLAN 1 | C24: PLAN 2 | D24: PLAN 3 | E24: PLAN 4 | F24: PLAN 5 | G24: PLAN 6 | H24: PLAN 7
A25: En el país de residencia | B25: 250 | C25: 500 | D25: 1000 | E25: 2000 | F25: 5000 | G25: 10000 | H25: 20000
A26: Fuera del país de residencia | B26: 500 | C26: 1000 | D26: 2000 | E26: 4000 | F26: 5000 | G26: 10000 | H26: 20000
B27: TARIFAS ANUALES
B28: ='Essential 1000'!C38 -> 9929.92 | C28: ='Essential 1000'!D38 -> 8820.24 | D28: ='Essential 1000'!E38 -> 6875.44 | E28: ='Essential 1000'!F38 -> 5180.24 | F28: ='Essential 1000'!G38 -> 3227.12 | G28: ='Essential 1000'!H38 -> 2177.76 | H28: ='Essential 1000'!I38 -> 1412.32
B29: TARIFAS SEMESTRALES
B30: =+'Essential 1000'!C51 -> 10224.3856 | C30: =+'Essential 1000'!D51 -> 9081.4152 | D30: =+'Essential 1000'!E51 -> 7078.2712 | E30: =+'Essential 1000'!F51 -> 5332.2152 | F30: =+'Essential 1000'!G51 -> 3320.5016 | G30: =+'Essential 1000'!H51 -> 2239.6608 | H30: =+'Essential 1000'!I51 -> 1451.2576
B31: TARIFAS TRIMESTRALES
B32: =+'Essential 1000'!C64 -> 10371.6184 | C32: =+'Essential 1000'!D64 -> 9212.0028 | D32: =+'Essential 1000'!E64 -> 7179.6868 | E32: =+'Essential 1000'!F64 -> 5408.2028 | F32: =+'Essential 1000'!G64 -> 3367.1924 | G32: =+'Essential 1000'!H64 -> 2270.6112 | H32: =+'Essential 1000'!I64 -> 1470.7264
B33: TARIFAS MENSUALES
B34: =+'Essential 1000'!C77 -> 10518.8512 | C34: =+'Essential 1000'!D77 -> 9342.5904 | D34: =+'Essential 1000'!E77 -> 7281.1024 | E34: =+'Essential 1000'!F77 -> 5484.1904 | F34: =+'Essential 1000'!G77 -> 3413.8832 | G34: =+'Essential 1000'!H77 -> 2301.5616 | H34: =+'Essential 1000'!I77 -> 1490.1952
A36: Essential 500
A37: DEDUCIBLES | B37: PLAN 1 | C37: PLAN 2 | D37: PLAN 3 | E37: PLAN 4 | F37: PLAN 5 | G37: PLAN 6 | H37: PLAN 7
A38: En el país de residencia | B38: 250 | C38: 500 | D38: 1000 | E38: 2000 | F38: 5000 | G38: 10000 | H38: 20000
A39: Fuera del país de residencia | B39: 500 | C39: 1000 | D39: 2000 | E39: 4000 | F39: 5000 | G39: 10000 | H39: 20000
B40: TARIFAS ANUALES
B41: =+'Essential 500'!C38 -> 8302.32 | C41: =+'Essential 500'!D38 -> 6845.28 | D41: =+'Essential 500'!E38 -> 5137.6 | E41: =+'Essential 500'!F38 -> 3878.16 | F41: =+'Essential 500'!G38 -> 2362.88 | G41: =+'Essential 500'!H38 -> 1555.84 | H41: =+'Essential 500'!I38 -> 1014
B42: TARIFAS SEMESTRALES
B43: =+'Essential 500'!C51 -> 8547.9576 | C43: =+'Essential 500'!D51 -> 7047.2064 | D43: =+'Essential 500'!E51 -> 5288.296 | E43: =+'Essential 500'!F51 -> 3991.0728 | F43: =+'Essential 500'!G51 -> 2430.3344 | G43: =+'Essential 500'!H51 -> 1599.0832 | H43: =+'Essential 500'!I51 -> 1040.988
B44: TARIFAS TRIMESTRALES
B45: =+'Essential 500'!C64 -> 8670.7764 | C45: =+'Essential 500'!D64 -> 7148.1696 | D45: =+'Essential 500'!E64 -> 5363.644 | E45: =+'Essential 500'!F64 -> 4047.5292 | F45: =+'Essential 500'!G64 -> 2464.0616 | G45: =+'Essential 500'!H64 -> 1620.7048 | H45: =+'Essential 500'!I64 -> 1054.482
B46: TARIFAS MENSUALES
B47: =+'Essential 500'!C77 -> 8793.5952 | C47: =+'Essential 500'!D77 -> 7249.1328 | D47: =+'Essential 500'!E77 -> 5438.992 | E47: =+'Essential 500'!F77 -> 4103.9856 | F47: =+'Essential 500'!G77 -> 2497.7888 | G47: =+'Essential 500'!H77 -> 1642.3264 | H47: =+'Essential 500'!I77 -> 1067.976
A50: Essential Care (Renovaciones)
A51: DEDUCIBLES | B51: PLAN 1 | C51: PLAN 2 | D51: PLAN 3 | E51: PLAN 4 | F51: PLAN 5 | G51: PLAN 6
A52: En el país de residencia | B52: $0 | C52: 1000 | D52: 2000 | E52: 5000 | F52: 10000 | G52: 20000
A53: Fuera del país de residencia | B53: 1000 | C53: 2000 | D53: 3000 | E53: 5000 | F53: 10000 | G53: 20000
B54: TARIFAS ANUALES
B55: ='Essential Care (Renovación)'!B39 -> 16817.84 | C55: ='Essential Care (Renovación)'!C39 -> 15498.08 | D55: ='Essential Care (Renovación)'!D39 -> 14746.16 | E55: ='Essential Care (Renovación)'!E39 -> 10961.6 | F55: ='Essential Care (Renovación)'!F39 -> 8729.76 | G55: ='Essential Care (Renovación)'!G39 -> 6777.68
B56: TARIFAS SEMESTRALES
B57: ='Essential Care (Renovación)'!B53 -> 17320.0352 | C57: ='Essential Care (Renovación)'!C53 -> 15960.6824 | D57: ='Essential Care (Renovación)'!D53 -> 15186.2048 | E57: ='Essential Care (Renovación)'!E53 -> 11288.108 | F57: ='Essential Care (Renovación)'!F53 -> 8989.3128 | G57: ='Essential Care (Renovación)'!G53 -> 6978.6704
A61: Este presupuesto solamente tiene carácter informativo y en ningún momento expresa compromiso legal para suministrarle cobertura de seguro. La emisión de una póliza de seguro Bupa está sujeta a todas las evaluaciones de riesgo por parte de Bupa y a la recepción de todos los pagos de prima requeridos. Una tarifa administrativa de US$75 se cargará automáticamente al primer pago. *Basado en un modo de pago anual

Sheet Tablas (hidden)
K2: FACTOR MENSUAL: | M2: 0.08833333333 | O2: Descuento de 24 años | P2: ='INGRESO DE DATOS'!P30 -> 1 | S2: Essential | T2: Essential 1000 | U2: Essential 500 | AA2: Impuesto (14.94%) | AD2: 1
K3: FACTOR TRIMESTRAL: | M3: 0.26125 | O3: Descuento de producto (%) | S3: ='INGRESO DE DATOS'!O39 -> 0 | T3: ='INGRESO DE DATOS'!P39 -> 0 | U3: ='INGRESO DE DATOS'!Q39 -> 0 | V3: ='INGRESO DE DATOS'!R39 -> 0 | W3: ='INGRESO DE DATOS'!S39 -> 0 | AA3: Total impuestos Bolivia | AD3: 0.04
K4: FACTOR SEMIANUAL: | M4: 0.515 | O4: Factor para el descuento combinado | S4: ='INGRESO DE DATOS'!O47 -> 1 | T4: ='INGRESO DE DATOS'!P47 -> 1 | U4: ='INGRESO DE DATOS'!Q47 -> 1 | V4: ='INGRESO DE DATOS'!R47 -> 0 | W4: ='INGRESO DE DATOS'!S47 -> 0
A5: BUPA ESSENTIAL 1000
A6: TARIFAS ANUALES
A8: EDAD | C8: 250 | D8: 500 | E8: 1000 | F8: 2000 | G8: 5000 | H8: 10000 | I8: 20000 | K8: TARIFAS BASE | S8: TARIFAS BASE COND ESCUENTO
A9: 18 | C9: =S9*$AD$2 -> 3327 | D9: =T9*$AD$2 -> 2898 | E9: =U9*$AD$2 -> 2485 | F9: =V9*$AD$2 -> 1733 | G9: =W9*$AD$2 -> 956 | H9: =X9*$AD$2 -> 558 | I9: =Y9*$AD$2 -> 327 | K9: =IF('INGRESO DE DATOS'!$W$19=1,'Tablas Guyanas y Santa Elena'!C6,'Tablas Resto de Ecuador'!C6) -> 3327 | L9: =IF('INGRESO DE DATOS'!$W$19=1,'Tablas Guyanas y Santa Elena'!D6,'Tablas Resto de Ecuador'!D6) -> 2898 | M9: =IF('INGRESO DE DATOS'!$W$19=1,'Tablas Guyanas y Santa Elena'!E6,'Tablas Resto de Ecuador'!E6) -> 2485 | N9: =IF('INGRESO DE DATOS'!$W$19=1,'Tablas Guyanas y Santa Elena'!F6,'Tablas Resto de Ecuador'!F6) -> 1733 | O9: =IF('INGRESO DE DATOS'!$W$19=1,'Tablas Guyanas y Santa Elena'!G6,'Tablas Resto de Ecuador'!G6) -> 956 | P9: =IF('INGRESO DE DATOS'!$W$19=1,'Tablas Guyanas y Santa Elena'!H6,'Tablas Resto de Ecuador'!H6) -> 558 | Q9: =IF('INGRESO DE DATOS'!$W$19=1,'Tablas Guyanas y Santa Elena'!I6,'Tablas Resto de Ecuador'!I6) -> 327 | S9: =K9*$T$4 -> 3327 | T9: =L9*$T$4 -> 2898 | U9: 2485 | V9: 1733 | W9: 956 | X9: 558 | Y9: 327
A10: 19 | C10: =S10*$AD$2 -> 3384 | D10: =T10*$AD$2 -> 2948 | E10: =U10*$AD$2 -> 2485 | F10: =V10*$AD$2 -> 1733 | G10: =W10*$AD$2 -> 964 | H10: =X10*$AD$2 -> 564 | I10: =Y10*$AD$2 -> 333 | K10: =IF('INGRESO DE DATOS'!$W$19=1,'Tablas Guyanas y Santa Elena'!C7,'Tablas Resto de Ecuador'!C7) -> 3384 | L10: =IF('INGRESO DE DATOS'!$W$19=1,'Tablas Guyanas y Santa Elena'!D7,'Tablas Resto de Ecuador'!D7) -> 2948 | M10: =IF('INGRESO DE DATOS'!$W$19=1,'Tablas Guyanas y Santa Elena'!E7,'Tablas Resto de Ecuador'!E7) -> 2485 | N10: =IF('INGRESO DE DATOS'!$W$19=1,'Tablas Guyanas y Santa Elena'!F7,'Tablas Resto de Ecuador'!F7) -> 1733 | O10: =IF('INGRESO DE DATOS'!$W$19=1,'Tablas Guyanas y Santa Elena'!G7,'Tablas Resto de Ecuador'!G7) -> 964 | P10: =IF('INGRESO DE DATOS'!$W$19=1,'Tablas Guyanas y Santa Elena'!H7,'Tablas Resto de Ecuador'!H7) -> 564 | Q10: =IF('INGRESO DE DATOS'!$W$19=1,'Tablas Guyanas y Santa Elena'!I7,'Tablas Resto de Ecuador'!I7) -> 333 | S10: =K10*$T$4 -> 3384 | T10: =L10*$T$4 -> 2948 | U10: =M10*$T$4 -> 2485 | V10: =N10*$T$4 -> 1733 | W10: =O10*$T$4 -> 964 | X10: =P10*$T$4 -> 564 | Y10: =Q10*$T$4 -> 333
A11: 20 | C11: 3442 | D11: 2996 | E11: 2485 | F11: 1738 | G11: 974 | H11: 574 | I11: 341 | K11: =IF('INGRESO DE DATOS'!$W$19=1,'Tablas Guyanas y Santa Elena'!C8,'Tablas Resto de Ecuador'!C8) -> 3442 | L11: =IF('INGRESO DE DATOS'!$W$19=1,'Tablas Guyanas y Santa Elena'!D8,'Tablas Resto de Ecuador'!D8) -> 2996 | M11: =IF('INGRESO DE DATOS'!$W$19=1,'Tablas Guyanas y Santa Elena'!E8,'Tablas Resto de Ecuador'!E8) -> 2485 | N11: =IF('INGRESO DE DATOS'!$W$19=1,'Tablas Guyanas y Santa Elena'!F8,'Tablas Resto de Ecuador'!F8) -> 1738 | O11: =IF('INGRESO DE DATOS'!$W$19=1,'Tablas Guyanas y Santa Elena'!G8,'Tablas Resto de Ecuador'!G8) -> 974 | P11: =IF('INGRESO DE DATOS'!$W$19=1,'Tablas Guyanas y Santa Elena'!H8,'Tablas Resto de Ecuador'!H8) -> 574 | Q11: =IF('INGRESO DE DATOS'!$W$19=1,'Tablas Guyanas y Santa Elena'!I8,'Tablas Resto de Ecuador'!I8) -> 341 | S11: 3442 | T11: 2996 | U11: 2485 | V11: 1738 | W11: 974 | X11: 574 | Y11: 341
A12: 21 | C12: 3506 | D12: 3050 | E12: 2485 | F12: 1746 | G12: 984 | H12: 585 | I12: 348 | K12: =IF('INGRESO DE DATOS'!$W$19=1,'Tablas Guyanas y Santa Elena'!C9,'Tablas Resto de Ecuador'!C9) -> 3506 | L12: =IF('INGRESO DE DATOS'!$W$19=1,'Tablas Guyanas y Santa Elena'!D9,'Tablas Resto de Ecuador'!D9) -> 3050 | M12: =IF('INGRESO DE DATOS'!$W$19=1,'Tablas Guyanas y Santa Elena'!E9,'Tablas Resto de Ecuador'!E9) -> 2485 | N12: =IF('INGRESO DE DATOS'!$W$19=1,'Tablas Guyanas y Santa Elena'!F9,'Tablas Resto de Ecuador'!F9) -> 1746 | O12: =IF('INGRESO DE DATOS'!$W$19=1,'Tablas Guyanas y Santa Elena'!G9,'Tablas Resto de Ecuador'!G9) -> 984 | P12: =IF('INGRESO DE DATOS'!$W$19=1,'Tablas Guyanas y Santa Elena'!H9,'Tablas Resto de Ecuador'!H9) -> 585 | Q12: =IF('INGRESO DE DATOS'!$W$19=1,'Tablas Guyanas y Santa Elena'!I9,'Tablas Resto de Ecuador'!I9) -> 348 | S12: 3506 | T12: 3050 | U12: 2485 | V12: 1746 | W12: 984 | X12: 585 | Y12: 348
A13: 22 | C13: 3565 | D13: 3099 | E13: 2492 | F13: 1759 | G13: 999 | H13: 594 | I13: 357 | K13: =IF('INGRESO DE DATOS'!$W$19=1,'Tablas Guyanas y Santa Elena'!C10,'Tablas Resto de Ecuador'!C10) -> 3565 | L13: =IF('INGRESO DE DATOS'!$W$19=1,'Tablas Guyanas y Santa Elena'!D10,'Tablas Resto de Ecuador'!D10) -> 3099 | M13: =IF('INGRESO DE DATOS'!$W$19=1,'Tablas Guyanas y Santa Elena'!E10,'Tablas Resto de Ecuador'!E10) -> 2492 | N13: =IF('INGRESO DE DATOS'!$W$19=1,'Tablas Guyanas y Santa Elena'!F10,'Tablas Resto de Ecuador'!F10) -> 1759 | O13: =IF('INGRESO DE DATOS'!$W$19=1,'Tablas Guyanas y Santa Elena'!G10,'Tablas Resto de Ecuador'!G10) -> 999 | P13: =IF('INGRESO DE DATOS'!$W$19=1,'Tablas Guyanas y Santa Elena'!H10,'Tablas Resto de Ecuador'!H10) -> 594 | Q13: =IF('INGRESO DE DATOS'!$W$19=1,'Tablas Guyanas y Santa Elena'!I10,'Tablas Resto de Ecuador'!I10) -> 357 | S13: 3565 | T13: 3099 | U13: 2492 | V13: 1759 | W13: 999 | X13: 594 | Y13: 357
A14: 23 | C14: 3623 | D14: 3149 | E14: 2504 | F14: 1774 | G14: 1015 | H14: 607 | I14: 368 | K14: =IF('INGRESO DE DATOS'!$W$19=1,'Tablas Guyanas y Santa Elena'!C11,'Tablas Resto de Ecuador'!C11) -> 3623 | L14: =IF('INGRESO DE DATOS'!$W$19=1,'Tablas Guyanas y Santa Elena'!D11,'Tablas Resto de Ecuador'!D11) -> 3149 | M14: =IF('INGRESO DE DATOS'!$W$19=1,'Tablas Guyanas y Santa Elena'!E11,'Tablas Resto de Ecuador'!E11) -> 2504 | N14: =IF('INGRESO DE DATOS'!$W$19=1,'Tablas Guyanas y Santa Elena'!F11,'Tablas Resto de Ecuador'!F11) -> 1774 | O14: =IF('INGRESO DE DATOS'!$W$19=1,'Tablas Guyanas y Santa Elena'!G11,'Tablas Resto de Ecuador'!G11) -> 1015 | P14: =IF('INGRESO DE DATOS'!$W$19=1,'Tablas Guyanas y Santa Elena'!H11,'Tablas Resto de Ecuador'!H11) -> 607 | Q14: =IF('INGRESO DE DATOS'!$W$19=1,'Tablas Guyanas y Santa Elena'!I11,'Tablas Resto de Ecuador'!I11) -> 368 | S14: 3623 | T14: 3149 | U14: 2504 | V14: 1774 | W14: 1015 | X14: 607 | Y14: 368
A15: 24 | C15: 3682 | D15: 3200 | E15: 2524 | F15: 1796 | G15: 1032 | H15: 623 | I15: 380 | K15: =IF('INGRESO DE DATOS'!$W$19=1,'Tablas Guyanas y Santa Elena'!C12,'Tablas Resto de Ecuador'!C12) -> 3682 | L15: =IF('INGRESO DE DATOS'!$W$19=1,'Tablas Guyanas y Santa Elena'!D12,'Tablas Resto de Ecuador'!D12) -> 3200 | M15: =IF('INGRESO DE DATOS'!$W$19=1,'Tablas Guyanas y Santa Elena'!E12,'Tablas Resto de Ecuador'!E12) -> 2524 | N15: =IF('INGRESO DE DATOS'!$W$19=1,'Tablas Guyanas y Santa Elena'!F12,'Tablas Resto de Ecuador'!F12) -> 1796 | O15: =IF('INGRESO DE DATOS'!$W$19=1,'Tablas Guyanas y Santa Elena'!G12,'Tablas Resto de Ecuador'!G12) -> 1032 | P15: =IF('INGRESO DE DATOS'!$W$19=1,'Tablas Guyanas y Santa Elena'!H12,'Tablas Resto de Ecuador'!H12) -> 623 | Q15: =IF('INGRESO DE DATOS'!$W$19=1,'Tablas Guyanas y Santa Elena'!I12,'Tablas Resto de Ecuador'!I12) -> 380 | S15: 3682 | T15: 3200 | U15: 2524 | V15: 1796 | W15: 1032 | X15: 623 | Y15: 380
A16: 25 | C16: 3739 | D16: 3256 | E16: 2548 | F16: 1820 | G16: 1053 | H16: 638 | I16: 391 | K16: =IF('INGRESO DE DATOS'!$W$19=1,'Tablas Guyanas y Santa Elena'!C13,'Tablas Resto de Ecuador'!C13) -> 3739 | L16: =IF('INGRESO DE DATOS'!$W$19=1,'Tablas Guyanas y Santa Elena'!D13,'Tablas Resto de Ecuador'!D13) -> 3256 | M16: =IF('INGRESO DE DATOS'!$W$19=1,'Tablas Guyanas y Santa Elena'!E13,'Tablas Resto de Ecuador'!E13) -> 2548 | N16: =IF('INGRESO DE DATOS'!$W$19=1,'Tablas Guyanas y Santa Elena'!F13,'Tablas Resto de Ecuador'!F13) -> 1820 | O16: =IF('INGRESO DE DATOS'!$W$19=1,'Tablas Guyanas y Santa Elena'!G13,'Tablas Resto de Ecuador'!G13) -> 1053 | P16: =IF('INGRESO DE DATOS'!$W$19=1,'Tablas Guyanas y Santa Elena'!H13,'Tablas Resto de Ecuador'!H13) -> 638 | Q16: =IF('INGRESO DE DATOS'!$W$19=1,'Tablas Guyanas y Santa Elena'!I13,'Tablas Resto de Ecuador'!I13) -> 391 | S16: 3739 | T16: 3256 | U16: 2548 | V16: 1820 | W16: 1053 | X16: 638 | Y16: 391
A17: 26 | C17: 3799 | D17: 3304 | E17: 2581 | F17: 1851 | G17: 1078 | H17: 655 | I17: 404 | K17: =IF('INGRESO DE DATOS'!$W$19=1,'Tablas Guyanas y Santa Elena'!C14,'Tablas Resto de Ecuador'!C14) -> 3799 | L17: =IF('INGRESO DE DATOS'!$W$19=1,'Tablas Guyanas y Santa Elena'!D14,'Tablas Resto de Ecuador'!D14) -> 3304 | M17: =IF('INGRESO DE DATOS'!$W$19=1,'Tablas Guyanas y Santa Elena'!E14,'Tablas Resto de Ecuador'!E14) -> 2581 | N17: =IF('INGRESO DE DATOS'!$W$19=1,'Tablas Guyanas y Santa Elena'!F14,'Tablas Resto de Ecuador'!F14) -> 1851 | O17: =IF('INGRESO DE DATOS'!$W$19=1,'Tablas Guyanas y Santa Elena'!G14,'Tablas Resto de Ecuador'!G14) -> 1078 | P17: =IF('INGRESO DE DATOS'!$W$19=1,'Tablas Guyanas y Santa Elena'!H14,'Tablas Resto de Ecuador'!H14) -> 655 | Q17: =IF('INGRESO DE DATOS'!$W$19=1,'Tablas Guyanas y Santa Elena'!I14,'Tablas Resto de Ecuador'!I14) -> 404 | S17: 3799 | T17: 3304 | U17: 2581 | V17: 1851 | W17: 1078 | X17: 655 | Y17: 404
A18: 27 | C18: 3857 | D18: 3353 | E18: 2620 | F18: 1887 | G18: 1104 | H18: 676 | I18: 420 | K18: =IF('INGRESO DE DATOS'!$W$19=1,'Tablas Guyanas y Santa Elena'!C15,'Tablas Resto de Ecuador'!C15) -> 3857 | L18: =IF('INGRESO DE DATOS'!$W$19=1,'Tablas Guyanas y Santa Elena'!D15,'Tablas Resto de Ecuador'!D15) -> 3353 | M18: =IF('INGRESO DE DATOS'!$W$19=1,'Tablas Guyanas y Santa Elena'!E15,'Tablas Resto de Ecuador'!E15) -> 2620 | N18: =IF('INGRESO DE DATOS'!$W$19=1,'Tablas Guyanas y Santa Elena'!F15,'Tablas Resto de Ecuador'!F15) -> 1887 | O18: =IF('INGRESO DE DATOS'!$W$19=1,'Tablas Guyanas y Santa Elena'!G15,'Tablas Resto de Ecuador'!G15) -> 1104 | P18: =IF('INGRESO DE DATOS'!$W$19=1,'Tablas Guyanas y Santa Elena'!H15,'Tablas Resto de Ecuador'!H15) -> 676 | Q18: =IF('INGRESO DE DATOS'!$W$19=1,'Tablas Guyanas y Santa Elena'!I15,'Tablas Resto de Ecuador'!I15) -> 420 | S18: 3857 | T18: 3353 | U18: 2620 | V18: 1887 | W18: 1104 | X18: 676 | Y18: 420
A19: 28 | C19: 3930 | D19: 3412 | E19: 2665 | F19: 1927 | G19: 1134 | H19: 698 | I19: 435 | K19: =IF('INGRESO DE DATOS'!$W$19=1,'Tablas Guyanas y Santa Elena'!C16,'Tablas Resto de Ecuador'!C16) -> 3930 | L19: =IF('INGRESO DE DATOS'!$W$19=1,'Tablas Guyanas y Santa Elena'!D16,'Tablas Resto de Ecuador'!D16) -> 3412 | M19: =IF('INGRESO DE DATOS'!$W$19=1,'Tablas Guyanas y Santa Elena'!E16,'Tablas Resto de Ecuador'!E16) -> 2665 | N19: =IF('INGRESO DE DATOS'!$W$19=1,'Tablas Guyanas y Santa Elena'!F16,'Tablas Resto de Ecuador'!F16) -> 1927 | O19: =IF('INGRESO DE DATOS'!$W$19=1,'Tablas Guyanas y Santa Elena'!G16,'Tablas Resto de Ecuador'!G16) -> 1134 | P19: =IF('INGRESO DE DATOS'!$W$19=1,'Tablas Guyanas y Santa Elena'!H16,'Tablas Resto de Ecuador'!H16) -> 698 | Q19: =IF('INGRESO DE DATOS'!$W$19=1,'Tablas Guyanas y Santa Elena'!I16,'Tablas Resto de Ecuador'!I16) -> 435 | S19: 3930 | T19: 3412 | U19: 2665 | V19: 1927 | W19: 1134 | X19: 698 | Y19: 435
A20: 29 | C20: 3998 | D20: 3480 | E20: 2717 | F20: 1973 | G20: 1169 | H20: 721 | I20: 452 | K20: =IF('INGRESO DE DATOS'!$W$19=1,'Tablas Guyanas y Santa Elena'!C17,'Tablas Resto de Ecuador'!C17) -> 3998 | L20: =IF('INGRESO DE DATOS'!$W$19=1,'Tablas Guyanas y Santa Elena'!D17,'Tablas Resto de Ecuador'!D17) -> 3480 | M20: =IF('INGRESO DE DATOS'!$W$19=1,'Tablas Guyanas y Santa Elena'!E17,'Tablas Resto de Ecuador'!E17) -> 2717 | N20: =IF('INGRESO DE DATOS'!$W$19=1,'Tablas Guyanas y Santa Elena'!F17,'Tablas Resto de Ecuador'!F17) -> 1973 | O20: =IF('INGRESO DE DATOS'!$W$19=1,'Tablas Guyanas y Santa Elena'!G17,'Tablas Resto de Ecuador'!G17) -> 1169 | P20: =IF('INGRESO DE DATOS'!$W$19=1,'Tablas Guyanas y Santa Elena'!H17,'Tablas Resto de Ecuador'!H17) -> 721 | Q20: =IF('INGRESO DE DATOS'!$W$19=1,'Tablas Guyanas y Santa Elena'!I17,'Tablas Resto de Ecuador'!I17) -> 452 | S20: 3998 | T20: 3480 | U20: 2717 | V20: 1973 | W20: 1169 | X20: 721 | Y20: 452
A21: 30 | C21: 4068 | D21: 3540 | E21: 2780 | F21: 2023 | G21: 1203 | H21: 749 | I21: 471 | K21: =IF('INGRESO DE DATOS'!$W$19=1,'Tablas Guyanas y Santa Elena'!C18,'Tablas Resto de Ecuador'!C18) -> 4068 | L21: =IF('INGRESO DE DATOS'!$W$19=1,'Tablas Guyanas y Santa Elena'!D18,'Tablas Resto de Ecuador'!D18) -> 3540 | M21: =IF('INGRESO DE DATOS'!$W$19=1,'Tablas Guyanas y Santa Elena'!E18,'Tablas Resto de Ecuador'!E18) -> 2780 | N21: =IF('INGRESO DE DATOS'!$W$19=1,'Tablas Guyanas y Santa Elena'!F18,'Tablas Resto de Ecuador'!F18) -> 2023 | O21: =IF('INGRESO DE DATOS'!$W$19=1,'Tablas Guyanas y Santa Elena'!G18,'Tablas Resto de Ecuador'!G18) -> 1203 | P21: =IF('INGRESO DE DATOS'!$W$19=1,'Tablas Guyanas y Santa Elena'!H18,'Tablas Resto de Ecuador'!H18) -> 749 | Q21: =IF('INGRESO DE DATOS'!$W$19=1,'Tablas Guyanas y Santa Elena'!I18,'Tablas Resto de Ecuador'!I18) -> 471 | S21: 4068 | T21: 3540 | U21: 2780 | V21: 2023 | W21: 1203 | X21: 749 | Y21: 471
A22: 31 | C22: 4136 | D22: 3599 | E22: 2847 | F22: 2081 | G22: 1243 | H22: 778 | I22: 494 | K22: =IF('INGRESO DE DATOS'!$W$19=1,'Tablas Guyanas y Santa Elena'!C19,'Tablas Resto de Ecuador'!C19) -> 4136 | L22: =IF('INGRESO DE DATOS'!$W$19=1,'Tablas Guyanas y Santa Elena'!D19,'Tablas Resto de Ecuador'!D19) -> 3599 | M22: =IF('INGRESO DE DATOS'!$W$19=1,'Tablas Guyanas y Santa Elena'!E19,'Tablas Resto de Ecuador'!E19) -> 2847 | N22: =IF('INGRESO DE DATOS'!$W$19=1,'Tablas Guyanas y Santa Elena'!F19,'Tablas Resto de Ecuador'!F19) -> 2081 | O22: =IF('INGRESO DE DATOS'!$W$19=1,'Tablas Guyanas y Santa Elena'!G19,'Tablas Resto de Ecuador'!G19) -> 1243 | P22: =IF('INGRESO DE DATOS'!$W$19=1,'Tablas Guyanas y Santa Elena'!H19,'Tablas Resto de Ecuador'!H19) -> 778 | Q22: =IF('INGRESO DE DATOS'!$W$19=1,'Tablas Guyanas y Santa Elena'!I19,'Tablas Resto de Ecuador'!I19) -> 494 | S22: 4136 | T22: 3599 | U22: 2847 | V22: 2081 | W22: 1243 | X22: 778 | Y22: 494
A23: 32 | C23: 4208 | D23: 3656 | E23: 2924 | F23: 2144 | G23: 1289 | H23: 808 | I23: 516 | K23: =IF('INGRESO DE DATOS'!$W$19=1,'Tablas Guyanas y Santa Elena'!C20,'Tablas Resto de Ecuador'!C20) -> 4208 | L23: =IF('INGRESO DE DATOS'!$W$19=1,'Tablas Guyanas y Santa Elena'!D20,'Tablas Resto de Ecuador'!D20) -> 3656 | M23: =IF('INGRESO DE DATOS'!$W$19=1,'Tablas Guyanas y Santa Elena'!E20,'Tablas Resto de Ecuador'!E20) -> 2924 | N23: =IF('INGRESO DE DATOS'!$W$19=1,'Tablas Guyanas y Santa Elena'!F20,'Tablas Resto de Ecuador'!F20) -> 2144 | O23: =IF('INGRESO DE DATOS'!$W$19=1,'Tablas Guyanas y Santa Elena'!G20,'Tablas Resto de Ecuador'!G20) -> 1289 | P23: =IF('INGRESO DE DATOS'!$W$19=1,'Tablas Guyanas y Santa Elena'!H20,'Tablas Resto de Ecuador'!H20) -> 808 | Q23: =IF('INGRESO DE DATOS'!$W$19=1,'Tablas Guyanas y Santa Elena'!I20,'Tablas Resto de Ecuador'!I20) -> 516 | S23: 4208 | T23: 3656 | U23: 2924 | V23: 2144 | W23: 1289 | X23: 808 | Y23: 516
A24: 33 | C24: 4322 | D24: 3761 | E24: 3009 | F24: 2212 | G24: 1337 | H24: 844 | I24: 541 | K24: =IF('INGRESO DE DATOS'!$W$19=1,'Tablas Guyanas y Santa Elena'!C21,'Tablas Resto de Ecuador'!C21) -> 4322 | L24: =IF('INGRESO DE DATOS'!$W$19=1,'Tablas Guyanas y Santa Elena'!D21,'Tablas Resto de Ecuador'!D21) -> 3761 | M24: =IF('INGRESO DE DATOS'!$W$19=1,'Tablas Guyanas y Santa Elena'!E21,'Tablas Resto de Ecuador'!E21) -> 3009 | N24: =IF('INGRESO DE DATOS'!$W$19=1,'Tablas Guyanas y Santa Elena'!F21,'Tablas Resto de Ecuador'!F21) -> 2212 | O24: =IF('INGRESO DE DATOS'!$W$19=1,'Tablas Guyanas y Santa Elena'!G21,'Tablas Resto de Ecuador'!G21) -> 1337 | P24: =IF('INGRESO DE DATOS'!$W$19=1,'Tablas Guyanas y Santa Elena'!H21,'Tablas Resto de Ecuador'!H21) -> 844 | Q24: =IF('INGRESO DE DATOS'!$W$19=1,'Tablas Guyanas y Santa Elena'!I21,'Tablas Resto de Ecuador'!I21) -> 541 | S24: 4322 | T24: 3761 | U24: 3009 | V24: 2212 | W24: 1337 | X24: 844 | Y24: 541
A25: 34 | C25: 4437 | D25: 3857 | E25: 3105 | F25: 2290 | G25: 1392 | H25: 880 | I25: 569 | K25: =IF('INGRESO DE DATOS'!$W$19=1,'Tablas Guyanas y Santa Elena'!C22,'Tablas Resto de Ecuador'!C22) -> 4437 | L25: =IF('INGRESO DE DATOS'!$W$19=1,'Tablas Guyanas y Santa Elena'!D22,'Tablas Resto de Ecuador'!D22) -> 3857 | M25: =IF('INGRESO DE DATOS'!$W$19=1,'Tablas Guyanas y Santa Elena'!E22,'Tablas Resto de Ecuador'!E22) -> 3105 | N25: =IF('INGRESO DE DATOS'!$W$19=1,'Tablas Guyanas y Santa Elena'!F22,'Tablas Resto de Ecuador'!F22) -> 2290 | O25: =IF('INGRESO DE DATOS'!$W$19=1,'Tablas Guyanas y Santa Elena'!G22,'Tablas Resto de Ecuador'!G22) -> 1392 | P25: =IF('INGRESO DE DATOS'!$W$19=1,'Tablas Guyanas y Santa Elena'!H22,'Tablas Resto de Ecuador'!H22) -> 880 | Q25: =IF('INGRESO DE DATOS'!$W$19=1,'Tablas Guyanas y Santa Elena'!I22,'Tablas Resto de Ecuador'!I22) -> 569 | S25: 4437 | T25: 3857 | U25: 3105 | V25: 2290 | W25: 1392 | X25: 880 | Y25: 569
A26: 35 | C26: 4551 | D26: 3959 | E26: 3208 | F26: 2375 | G26: 1449 | H26: 922 | I26: 598 | K26: =IF('INGRESO DE DATOS'!$W$19=1,'Tablas Guyanas y Santa Elena'!C23,'Tablas Resto de Ecuador'!C23) -> 4551 | L26: =IF('INGRESO DE DATOS'!$W$19=1,'Tablas Guyanas y Santa Elena'!D23,'Tablas Resto de Ecuador'!D23) -> 3959 | M26: =IF('INGRESO DE DATOS'!$W$19=1,'Tablas Guyanas y Santa Elena'!E23,'Tablas Resto de Ecuador'!E23) -> 3208 | N26: =IF('INGRESO DE DATOS'!$W$19=1,'Tablas Guyanas y Santa Elena'!F23,'Tablas Resto de Ecuador'!F23) -> 2375 | O26: =IF('INGRESO DE DATOS'!$W$19=1,'Tablas Guyanas y Santa Elena'!G23,'Tablas Resto de Ecuador'!G23) -> 1449 | P26: =IF('INGRESO DE DATOS'!$W$19=1,'Tablas Guyanas y Santa Elena'!H23,'Tablas Resto de Ecuador'!H23) -> 922 | Q26: =IF('INGRESO DE DATOS'!$W$19=1,'Tablas Guyanas y Santa Elena'!I23,'Tablas Resto de Ecuador'!I23) -> 598 | S26: 4551 | T26: 3959 | U26: 3208 | V26: 2375 | W26: 1449 | X26: 922 | Y26: 598
A27: 36 | C27: 4665 | D27: 4058 | E27: 3324 | F27: 2467 | G27: 1512 | H27: 966 | I27: 632 | K27: =IF('INGRESO DE DATOS'!$W$19=1,'Tablas Guyanas y Santa Elena'!C24,'Tablas Resto de Ecuador'!C24) -> 4665 | L27: =IF('INGRESO DE DATOS'!$W$19=1,'Tablas Guyanas y Santa Elena'!D24,'Tablas Resto de Ecuador'!D24) -> 4058 | M27: =IF('INGRESO DE DATOS'!$W$19=1,'Tablas Guyanas y Santa Elena'!E24,'Tablas Resto de Ecuador'!E24) -> 3324 | N27: =IF('INGRESO DE DATOS'!$W$19=1,'Tablas Guyanas y Santa Elena'!F24,'Tablas Resto de Ecuador'!F24) -> 2467 | O27: =IF('INGRESO DE DATOS'!$W$19=1,'Tablas Guyanas y Santa Elena'!G24,'Tablas Resto de Ecuador'!G24) -> 1512 | P27: =IF('INGRESO DE DATOS'!$W$19=1,'Tablas Guyanas y Santa Elena'!H24,'Tablas Resto de Ecuador'!H24) -> 966 | Q27: =IF('INGRESO DE DATOS'!$W$19=1,'Tablas Guyanas y Santa Elena'!I24,'Tablas Resto de Ecuador'!I24) -> 632 | S27: 4665 | T27: 4058 | U27: 3324 | V27: 2467 | W27: 1512 | X27: 966 | Y27: 632
A28: 37 | C28: 4783 | D28: 4161 | E28: 3448 | F28: 2569 | G28: 1583 | H28: 1015 | I28: 666 | K28: =IF('INGRESO DE DATOS'!$W$19=1,'Tablas Guyanas y Santa Elena'!C25,'Tablas Resto de Ecuador'!C25) -> 4783 | L28: =IF('INGRESO DE DATOS'!$W$19=1,'Tablas Guyanas y Santa Elena'!D25,'Tablas Resto de Ecuador'!D25) -> 4161 | M28: =IF('INGRESO DE DATOS'!$W$19=1,'Tablas Guyanas y Santa Elena'!E25,'Tablas Resto de Ecuador'!E25) -> 3448 | N28: =IF('INGRESO DE DATOS'!$W$19=1,'Tablas Guyanas y Santa Elena'!F25,'Tablas Resto de Ecuador'!F25) -> 2569 | O28: =IF('INGRESO DE DATOS'!$W$19=1,'Tablas Guyanas y Santa Elena'!G25,'Tablas Resto de Ecuador'!G25) -> 1583 | P28: =IF('INGRESO DE DATOS'!$W$19=1,'Tablas Guyanas y Santa Elena'!H25,'Tablas Resto de Ecuador'!H25) -> 1015 | Q28: =IF('INGRESO DE DATOS'!$W$19=1,'Tablas Guyanas y Santa Elena'!I25,'Tablas Resto de Ecuador'!I25) -> 666 | S28: 4783 | T28: 4161 | U28: 3448 | V28: 2569 | W28: 1583 | X28: 1015 | Y28: 666
A29: 38 | C29: 4901 | D29: 4265 | E29: 3585 | F29: 2678 | G29: 1657 | H29: 1067 | I29: 705 | K29: =IF('INGRESO DE DATOS'!$W$19=1,'Tablas Guyanas y Santa Elena'!C26,'Tablas Resto de Ecuador'!C26) -> 4901 | L29: =IF('INGRESO DE DATOS'!$W$19=1,'Tablas Guyanas y Santa Elena'!D26,'Tablas Resto de Ecuador'!D26) -> 4265 | M29: =IF('INGRESO DE DATOS'!$W$19=1,'Tablas Guyanas y Santa Elena'!E26,'Tablas Resto de Ecuador'!E26) -> 3585 | N29: =IF('INGRESO DE DATOS'!$W$19=1,'Tablas Guyanas y Santa Elena'!F26,'Tablas Resto de Ecuador'!F26) -> 2678 | O29: =IF('INGRESO DE DATOS'!$W$19=1,'Tablas Guyanas y Santa Elena'!G26,'Tablas Resto de Ecuador'!G26) -> 1657 | P29: =IF('INGRESO DE DATOS'!$W$19=1,'Tablas Guyanas y Santa Elena'!H26,'Tablas Resto de Ecuador'!H26) -> 1067 | Q29: =IF('INGRESO DE DATOS'!$W$19=1,'Tablas Guyanas y Santa Elena'!I26,'Tablas Resto de Ecuador'!I26) -> 705 | S29: 4901 | T29: 4265 | U29: 3585 | V29: 2678 | W29: 1657 | X29: 1067 | Y29: 705
A30: 39 | C30: 5020 | D30: 4362 | E30: 3712 | F30: 2796 | G30: 1739 | H30: 1125 | I30: 747 | K30: =IF('INGRESO DE DATOS'!$W$19=1,'Tablas Guyanas y Santa Elena'!C27,'Tablas Resto de Ecuador'!C27) -> 5020 | L30: =IF('INGRESO DE DATOS'!$W$19=1,'Tablas Guyanas y Santa Elena'!D27,'Tablas Resto de Ecuador'!D27) -> 4362 | M30: =IF('INGRESO DE DATOS'!$W$19=1,'Tablas Guyanas y Santa Elena'!E27,'Tablas Resto de Ecuador'!E27) -> 3712 | N30: =IF('INGRESO DE DATOS'!$W$19=1,'Tablas Guyanas y Santa Elena'!F27,'Tablas Resto de Ecuador'!F27) -> 2796 | O30: =IF('INGRESO DE DATOS'!$W$19=1,'Tablas Guyanas y Santa Elena'!G27,'Tablas Resto de Ecuador'!G27) -> 1739 | P30: =IF('INGRESO DE DATOS'!$W$19=1,'Tablas Guyanas y Santa Elena'!H27,'Tablas Resto de Ecuador'!H27) -> 1125 | Q30: =IF('INGRESO DE DATOS'!$W$19=1,'Tablas Guyanas y Santa Elena'!I27,'Tablas Resto de Ecuador'!I27) -> 747 | S30: 5020 | T30: 4362 | U30: 3712 | V30: 2796 | W30: 1739 | X30: 1125 | Y30: 747
A31: 40 | C31: 5137 | D31: 4465 | E31: 3752 | F31: 2926 | G31: 1829 | H31: 1187 | I31: 792 | K31: =IF('INGRESO DE DATOS'!$W$19=1,'Tablas Guyanas y Santa Elena'!C28,'Tablas Resto de Ecuador'!C28) -> 5137 | L31: =IF('INGRESO DE DATOS'!$W$19=1,'Tablas Guyanas y Santa Elena'!D28,'Tablas Resto de Ecuador'!D28) -> 4465 | M31: =IF('INGRESO DE DATOS'!$W$19=1,'Tablas Guyanas y Santa Elena'!E28,'Tablas Resto de Ecuador'!E28) -> 3752 | N31: =IF('INGRESO DE DATOS'!$W$19=1,'Tablas Guyanas y Santa Elena'!F28,'Tablas Resto de Ecuador'!F28) -> 2926 | O31: =IF('INGRESO DE DATOS'!$W$19=1,'Tablas Guyanas y Santa Elena'!G28,'Tablas Resto de Ecuador'!G28) -> 1829 | P31: =IF('INGRESO DE DATOS'!$W$19=1,'Tablas Guyanas y Santa Elena'!H28,'Tablas Resto de Ecuador'!H28) -> 1187 | Q31: =IF('INGRESO DE DATOS'!$W$19=1,'Tablas Guyanas y Santa Elena'!I28,'Tablas Resto de Ecuador'!I28) -> 792 | S31: 5137 | T31: 4465 | U31: 3752 | V31: 2926 | W31: 1829 | X31: 1187 | Y31: 792
A32: 41 | C32: 5251 | D32: 4569 | E32: 3791 | F32: 3067 | G32: 1924 | H32: 1254 | I32: 841 | K32: =IF('INGRESO DE DATOS'!$W$19=1,'Tablas Guyanas y Santa Elena'!C29,'Tablas Resto de Ecuador'!C29) -> 5251 | L32: =IF('INGRESO DE DATOS'!$W$19=1,'Tablas Guyanas y Santa Elena'!D29,'Tablas Resto de Ecuador'!D29) -> 4569 | M32: =IF('INGRESO DE DATOS'!$W$19=1,'Tablas Guyanas y Santa Elena'!E29,'Tablas Resto de Ecuador'!E29) -> 3791 | N32: =IF('INGRESO DE DATOS'!$W$19=1,'Tablas Guyanas y Santa Elena'!F29,'Tablas Resto de Ecuador'!F29) -> 3067 | O32: =IF('INGRESO DE DATOS'!$W$19=1,'Tablas Guyanas y Santa Elena'!G29,'Tablas Resto de Ecuador'!G29) -> 1924 | P32: =IF('INGRESO DE DATOS'!$W$19=1,'Tablas Guyanas y Santa Elena'!H29,'Tablas Resto de Ecuador'!H29) -> 1254 | Q32: =IF('INGRESO DE DATOS'!$W$19=1,'Tablas Guyanas y Santa Elena'!I29,'Tablas Resto de Ecuador'!I29) -> 841 | S32: 5251 | T32: 4569 | U32: 3791 | V32: 3067 | W32: 1924 | X32: 1254 | Y32: 841
A33: 42 | C33: 5373 | D33: 4668 | E33: 3845 | F33: 3221 | G33: 2028 | H33: 1328 | I33: 895 | K33: =IF('INGRESO DE DATOS'!$W$19=1,'Tablas Guyanas y Santa Elena'!C30,'Tablas Resto de Ecuador'!C30) -> 5373 | L33: =IF('INGRESO DE DATOS'!$W$19=1,'Tablas Guyanas y Santa Elena'!D30,'Tablas Resto de Ecuador'!D30) -> 4668 | M33: =IF('INGRESO DE DATOS'!$W$19=1,'Tablas Guyanas y Santa Elena'!E30,'Tablas Resto de Ecuador'!E30) -> 3845 | N33: =IF('INGRESO DE DATOS'!$W$19=1,'Tablas Guyanas y Santa Elena'!F30,'Tablas Resto de Ecuador'!F30) -> 3221 | O33: =IF('INGRESO DE DATOS'!$W$19=1,'Tablas Guyanas y Santa Elena'!G30,'Tablas Resto de Ecuador'!G30) -> 2028 | P33: =IF('INGRESO DE DATOS'!$W$19=1,'Tablas Guyanas y Santa Elena'!H30,'Tablas Resto de Ecuador'!H30) -> 1328 | Q33: =IF('INGRESO DE DATOS'!$W$19=1,'Tablas Guyanas y Santa Elena'!I30,'Tablas Resto de Ecuador'!I30) -> 895 | S33: 5373 | T33: 4668 | U33: 3845 | V33: 3221 | W33: 2028 | X33: 1328 | Y33: 895
A34: 43 | C34: 5581 | D34: 4855 | E34: 3931 | F34: 3385 | G34: 2141 | H34: 1408 | I34: 954 | K34: =IF('INGRESO DE DATOS'!$W$19=1,'Tablas Guyanas y Santa Elena'!C31,'Tablas Resto de Ecuador'!C31) -> 5581 | L34: =IF('INGRESO DE DATOS'!$W$19=1,'Tablas Guyanas y Santa Elena'!D31,'Tablas Resto de Ecuador'!D31) -> 4855 | M34: =IF('INGRESO DE DATOS'!$W$19=1,'Tablas Guyanas y Santa Elena'!E31,'Tablas Resto de Ecuador'!E31) -> 3931 | N34: =IF('INGRESO DE DATOS'!$W$19=1,'Tablas Guyanas y Santa Elena'!F31,'Tablas Resto de Ecuador'!F31) -> 3385 | O34: =IF('INGRESO DE DATOS'!$W$19=1,'Tablas Guyanas y Santa Elena'!G31,'Tablas Resto de Ecuador'!G31) -> 2141 | P34: =IF('INGRESO DE DATOS'!$W$19=1,'Tablas Guyanas y Santa Elena'!H31,'Tablas Resto de Ecuador'!H31) -> 1408 | Q34: =IF('INGRESO DE DATOS'!$W$19=1,'Tablas Guyanas y Santa Elena'!I31,'Tablas Resto de Ecuador'!I31) -> 954 | S34: 5581 | T34: 4855 | U34: 3931 | V34: 3385 | W34: 2141 | X34: 1408 | Y34: 954
A35: 44 | C35: 5797 | D35: 5042 | E35: 4051 | F35: 3565 | G35: 2264 | H35: 1493 | I35: 1017 | K35: =IF('INGRESO DE DATOS'!$W$19=1,'Tablas Guyanas y Santa Elena'!C32,'Tablas Resto de Ecuador'!C32) -> 5797 | L35: =IF('INGRESO DE DATOS'!$W$19=1,'Tablas Guyanas y Santa Elena'!D32,'Tablas Resto de Ecuador'!D32) -> 5042 | M35: =IF('INGRESO DE DATOS'!$W$19=1,'Tablas Guyanas y Santa Elena'!E32,'Tablas Resto de Ecuador'!E32) -> 4051 | N35: =IF('INGRESO DE DATOS'!$W$19=1,'Tablas Guyanas y Santa Elena'!F32,'Tablas Resto de Ecuador'!F32) -> 3565 | O35: =IF('INGRESO DE DATOS'!$W$19=1,'Tablas Guyanas y Santa Elena'!G32,'Tablas Resto de Ecuador'!G32) -> 2264 | P35: =IF('INGRESO DE DATOS'!$W$19=1,'Tablas Guyanas y Santa Elena'!H32,'Tablas Resto de Ecuador'!H32) -> 1493 | Q35: =IF('INGRESO DE DATOS'!$W$19=1,'Tablas Guyanas y Santa Elena'!I32,'Tablas Resto de Ecuador'!I32) -> 1017 | S35: 5797 | T35: 5042 | U35: 4051 | V35: 3565 | W35: 2264 | X35: 1493 | Y35: 1017
A36: 45 | C36: 6010 | D36: 5224 | E36: 4195 | F36: 3757 | G36: 2395 | H36: 1586 | I36: 1086 | K36: =IF('INGRESO DE DATOS'!$W$19=1,'Tablas Guyanas y Santa Elena'!C33,'Tablas Resto de Ecuador'!C33) -> 6010 | L36: =IF('INGRESO DE DATOS'!$W$19=1,'Tablas Guyanas y Santa Elena'!D33,'Tablas Resto de Ecuador'!D33) -> 5224 | M36: =IF('INGRESO DE DATOS'!$W$19=1,'Tablas Guyanas y Santa Elena'!E33,'Tablas Resto de Ecuador'!E33) -> 4195 | N36: =IF('INGRESO DE DATOS'!$W$19=1,'Tablas Guyanas y Santa Elena'!F33,'Tablas Resto de Ecuador'!F33) -> 3757 | O36: =IF('INGRESO DE DATOS'!$W$19=1,'Tablas Guyanas y Santa Elena'!G33,'Tablas Resto de Ecuador'!G33) -> 2395 | P36: =IF('INGRESO DE DATOS'!$W$19=1,'Tablas Guyanas y Santa Elena'!H33,'Tablas Resto de Ecuador'!H33) -> 1586 | Q36: =IF('INGRESO DE DATOS'!$W$19=1,'Tablas Guyanas y Santa Elena'!I33,'Tablas Resto de Ecuador'!I33) -> 1086 | S36: 6010 | T36: 5224 | U36: 4195 | V36: 3757 | W36: 2395 | X36: 1586 | Y36: 1086
A37: 46 | C37: 6222 | D37: 5410 | E37: 4358 | F37: 3903 | G37: 2538 | H37: 1688 | I37: 1162 | K37: =IF('INGRESO DE DATOS'!$W$19=1,'Tablas Guyanas y Santa Elena'!C34,'Tablas Resto de Ecuador'!C34) -> 6222 | L37: =IF('INGRESO DE DATOS'!$W$19=1,'Tablas Guyanas y Santa Elena'!D34,'Tablas Resto de Ecuador'!D34) -> 5410 | M37: =IF('INGRESO DE DATOS'!$W$19=1,'Tablas Guyanas y Santa Elena'!E34,'Tablas Resto de Ecuador'!E34) -> 4358 | N37: =IF('INGRESO DE DATOS'!$W$19=1,'Tablas Guyanas y Santa Elena'!F34,'Tablas Resto de Ecuador'!F34) -> 3903 | O37: =IF('INGRESO DE DATOS'!$W$19=1,'Tablas Guyanas y Santa Elena'!G34,'Tablas Resto de Ecuador'!G34) -> 2538 | P37: =IF('INGRESO DE DATOS'!$W$19=1,'Tablas Guyanas y Santa Elena'!H34,'Tablas Resto de Ecuador'!H34) -> 1688 | Q37: =IF('INGRESO DE DATOS'!$W$19=1,'Tablas Guyanas y Santa Elena'!I34,'Tablas Resto de Ecuador'!I34) -> 1162 | S37: 6222 | T37: 5410 | U37: 4358 | V37: 3903 | W37: 2538 | X37: 1688 | Y37: 1162
A38: 47 | C38: 6439 | D38: 5597 | E38: 4535 | F38: 3776 | G38: 2693 | H38: 1797 | I38: 1242 | K38: =IF('INGRESO DE DATOS'!$W$19=1,'Tablas Guyanas y Santa Elena'!C35,'Tablas Resto de Ecuador'!C35) -> 6439 | L38: =IF('INGRESO DE DATOS'!$W$19=1,'Tablas Guyanas y Santa Elena'!D35,'Tablas Resto de Ecuador'!D35) -> 5597 | M38: =IF('INGRESO DE DATOS'!$W$19=1,'Tablas Guyanas y Santa Elena'!E35,'Tablas Resto de Ecuador'!E35) -> 4535 | N38: =IF('INGRESO DE DATOS'!$W$19=1,'Tablas Guyanas y Santa Elena'!F35,'Tablas Resto de Ecuador'!F35) -> 3776 | O38: =IF('INGRESO DE DATOS'!$W$19=1,'Tablas Guyanas y Santa Elena'!G35,'Tablas Resto de Ecuador'!G35) -> 2693 | P38: =IF('INGRESO DE DATOS'!$W$19=1,'Tablas Guyanas y Santa Elena'!H35,'Tablas Resto de Ecuador'!H35) -> 1797 | Q38: =IF('INGRESO DE DATOS'!$W$19=1,'Tablas Guyanas y Santa Elena'!I35,'Tablas Resto de Ecuador'!I35) -> 1242 | S38: 6439 | T38: 5597 | U38: 4535 | V38: 3776 | W38: 2693 | X38: 1797 | Y38: 1242
A39: 48 | C39: 6667 | D39: 5795 | E39: 4723 | F39: 3764 | G39: 2862 | H39: 1916 | I39: 1331 | K39: =IF('INGRESO DE DATOS'!$W$19=1,'Tablas Guyanas y Santa Elena'!C36,'Tablas Resto de Ecuador'!C36) -> 6667 | L39: =IF('INGRESO DE DATOS'!$W$19=1,'Tablas Guyanas y Santa Elena'!D36,'Tablas Resto de Ecuador'!D36) -> 5795 | M39: =IF('INGRESO DE DATOS'!$W$19=1,'Tablas Guyanas y Santa Elena'!E36,'Tablas Resto de Ecuador'!E36) -> 4723 | N39: =IF('INGRESO DE DATOS'!$W$19=1,'Tablas Guyanas y Santa Elena'!F36,'Tablas Resto de Ecuador'!F36) -> 3764 | O39: =IF('INGRESO DE DATOS'!$W$19=1,'Tablas Guyanas y Santa Elena'!G36,'Tablas Resto de Ecuador'!G36) -> 2862 | P39: =IF('INGRESO DE DATOS'!$W$19=1,'Tablas Guyanas y Santa Elena'!H36,'Tablas Resto de Ecuador'!H36) -> 1916 | Q39: =IF('INGRESO DE DATOS'!$W$19=1,'Tablas Guyanas y Santa Elena'!I36,'Tablas Resto de Ecuador'!I36) -> 1331 | S39: 6667 | T39: 5795 | U39: 4723 | V39: 3764 | W39: 2862 | X39: 1916 | Y39: 1331
A40: 49 | C40: 6890 | D40: 5993 | E40: 4920 | F40: 3896 | G40: 3043 | H40: 2044 | I40: 1428 | K40: =IF('INGRESO DE DATOS'!$W$19=1,'Tablas Guyanas y Santa Elena'!C37,'Tablas Resto de Ecuador'!C37) -> 6890 | L40: =IF('INGRESO DE DATOS'!$W$19=1,'Tablas Guyanas y Santa Elena'!D37,'Tablas Resto de Ecuador'!D37) -> 5993 | M40: =IF('INGRESO DE DATOS'!$W$19=1,'Tablas Guyanas y Santa Elena'!E37,'Tablas Resto de Ecuador'!E37) -> 4920 | N40: =IF('INGRESO DE DATOS'!$W$19=1,'Tablas Guyanas y Santa Elena'!F37,'Tablas Resto de Ecuador'!F37) -> 3896 | O40: =IF('INGRESO DE DATOS'!$W$19=1,'Tablas Guyanas y Santa Elena'!G37,'Tablas Resto de Ecuador'!G37) -> 3043 | P40: =IF('INGRESO DE DATOS'!$W$19=1,'Tablas Guyanas y Santa Elena'!H37,'Tablas Resto de Ecuador'!H37) -> 2044 | Q40: =IF('INGRESO DE DATOS'!$W$19=1,'Tablas Guyanas y Santa Elena'!I37,'Tablas Resto de Ecuador'!I37) -> 1428 | S40: 6890 | T40: 5993 | U40: 4920 | V40: 3896 | W40: 3043 | X40: 2044 | Y40: 1428
A41: 50 | C41: 7114 | D41: 6188 | E41: 5132 | F41: 4126 | G41: 3146 | H41: 2084 | I41: 1539 | K41: =IF('INGRESO DE DATOS'!$W$19=1,'Tablas Guyanas y Santa Elena'!C38,'Tablas Resto de Ecuador'!C38) -> 7114 | L41: =IF('INGRESO DE DATOS'!$W$19=1,'Tablas Guyanas y Santa Elena'!D38,'Tablas Resto de Ecuador'!D38) -> 6188 | M41: =IF('INGRESO DE DATOS'!$W$19=1,'Tablas Guyanas y Santa Elena'!E38,'Tablas Resto de Ecuador'!E38) -> 5132 | N41: =IF('INGRESO DE DATOS'!$W$19=1,'Tablas Guyanas y Santa Elena'!F38,'Tablas Resto de Ecuador'!F38) -> 4126 | O41: =IF('INGRESO DE DATOS'!$W$19=1,'Tablas Guyanas y Santa Elena'!G38,'Tablas Resto de Ecuador'!G38) -> 3146 | P41: =IF('INGRESO DE DATOS'!$W$19=1,'Tablas Guyanas y Santa Elena'!H38,'Tablas Resto de Ecuador'!H38) -> 2084 | Q41: =IF('INGRESO DE DATOS'!$W$19=1,'Tablas Guyanas y Santa Elena'!I38,'Tablas Resto de Ecuador'!I38) -> 1539 | S41: 7114 | T41: 6188 | U41: 5132 | V41: 4126 | W41: 3146 | X41: 2084 | Y41: 1539
A42: 51 | C42: 7339 | D42: 6257 | E42: 5356 | F42: 4412 | G42: 3182 | H42: 2259 | I42: 1677 | K42: =IF('INGRESO DE DATOS'!$W$19=1,'Tablas Guyanas y Santa Elena'!C39,'Tablas Resto de Ecuador'!C39) -> 7339 | L42: =IF('INGRESO DE DATOS'!$W$19=1,'Tablas Guyanas y Santa Elena'!D39,'Tablas Resto de Ecuador'!D39) -> 6257 | M42: =IF('INGRESO DE DATOS'!$W$19=1,'Tablas Guyanas y Santa Elena'!E39,'Tablas Resto de Ecuador'!E39) -> 5356 | N42: =IF('INGRESO DE DATOS'!$W$19=1,'Tablas Guyanas y Santa Elena'!F39,'Tablas Resto de Ecuador'!F39) -> 4412 | O42: =IF('INGRESO DE DATOS'!$W$19=1,'Tablas Guyanas y Santa Elena'!G39,'Tablas Resto de Ecuador'!G39) -> 3182 | P42: =IF('INGRESO DE DATOS'!$W$19=1,'Tablas Guyanas y Santa Elena'!H39,'Tablas Resto de Ecuador'!H39) -> 2259 | Q42: =IF('INGRESO DE DATOS'!$W$19=1,'Tablas Guyanas y Santa Elena'!I39,'Tablas Resto de Ecuador'!I39) -> 1677 | S42: 7339 | T42: 6257 | U42: 5356 | V42: 4412 | W42: 3182 | X42: 2259 | Y42: 1677
A43: 52 | C43: 7564 | D43: 6191 | E43: 5591 | F43: 4710 | G43: 3227 | H43: 2446 | I43: 1824 | K43: =IF('INGRESO DE DATOS'!$W$19=1,'Tablas Guyanas y Santa Elena'!C40,'Tablas Resto de Ecuador'!C40) -> 7564 | L43: =IF('INGRESO DE DATOS'!$W$19=1,'Tablas Guyanas y Santa Elena'!D40,'Tablas Resto de Ecuador'!D40) -> 6191 | M43: =IF('INGRESO DE DATOS'!$W$19=1,'Tablas Guyanas y Santa Elena'!E40,'Tablas Resto de Ecuador'!E40) -> 5591 | N43: =IF('INGRESO DE DATOS'!$W$19=1,'Tablas Guyanas y Santa Elena'!F40,'Tablas Resto de Ecuador'!F40) -> 4710 | O43: =IF('INGRESO DE DATOS'!$W$19=1,'Tablas Guyanas y Santa Elena'!G40,'Tablas Resto de Ecuador'!G40) -> 3227 | P43: =IF('INGRESO DE DATOS'!$W$19=1,'Tablas Guyanas y Santa Elena'!H40,'Tablas Resto de Ecuador'!H40) -> 2446 | Q43: =IF('INGRESO DE DATOS'!$W$19=1,'Tablas Guyanas y Santa Elena'!I40,'Tablas Resto de Ecuador'!I40) -> 1824 | S43: 7564 | T43: 6191 | U43: 5591 | V43: 4710 | W43: 3227 | X43: 2446 | Y43: 1824
A44: 53 | C44: 7832 | D44: 6267 | E44: 5838 | F44: 4977 | G44: 3296 | H44: 2548 | I44: 1984 | K44: =IF('INGRESO DE DATOS'!$W$19=1,'Tablas Guyanas y Santa Elena'!C41,'Tablas Resto de Ecuador'!C41) -> 7832 | L44: =IF('INGRESO DE DATOS'!$W$19=1,'Tablas Guyanas y Santa Elena'!D41,'Tablas Resto de Ecuador'!D41) -> 6267 | M44: =IF('INGRESO DE DATOS'!$W$19=1,'Tablas Guyanas y Santa Elena'!E41,'Tablas Resto de Ecuador'!E41) -> 5838 | N44: =IF('INGRESO DE DATOS'!$W$19=1,'Tablas Guyanas y Santa Elena'!F41,'Tablas Resto de Ecuador'!F41) -> 4977 | O44: =IF('INGRESO DE DATOS'!$W$19=1,'Tablas Guyanas y Santa Elena'!G41,'Tablas Resto de Ecuador'!G41) -> 3296 | P44: =IF('INGRESO DE DATOS'!$W$19=1,'Tablas Guyanas y Santa Elena'!H41,'Tablas Resto de Ecuador'!H41) -> 2548 | Q44: =IF('INGRESO DE DATOS'!$W$19=1,'Tablas Guyanas y Santa Elena'!I41,'Tablas Resto de Ecuador'!I41) -> 1984 | S44: 7832 | T44: 6267 | U44: 5838 | V44: 4977 | W44: 3296 | X44: 2548 | Y44: 1984
A45: 54 | C45: 8102 | D45: 6513 | E45: 6096 | F45: 5205 | G45: 3373 | H45: 2755 | I45: 2156 | K45: =IF('INGRESO DE DATOS'!$W$19=1,'Tablas Guyanas y Santa Elena'!C42,'Tablas Resto de Ecuador'!C42) -> 8102 | L45: =IF('INGRESO DE DATOS'!$W$19=1,'Tablas Guyanas y Santa Elena'!D42,'Tablas Resto de Ecuador'!D42) -> 6513 | M45: =IF('INGRESO DE DATOS'!$W$19=1,'Tablas Guyanas y Santa Elena'!E42,'Tablas Resto de Ecuador'!E42) -> 6096 | N45: =IF('INGRESO DE DATOS'!$W$19=1,'Tablas Guyanas y Santa Elena'!F42,'Tablas Resto de Ecuador'!F42) -> 5205 | O45: =IF('INGRESO DE DATOS'!$W$19=1,'Tablas Guyanas y Santa Elena'!G42,'Tablas Resto de Ecuador'!G42) -> 3373 | P45: =IF('INGRESO DE DATOS'!$W$19=1,'Tablas Guyanas y Santa Elena'!H42,'Tablas Resto de Ecuador'!H42) -> 2755 | Q45: =IF('INGRESO DE DATOS'!$W$19=1,'Tablas Guyanas y Santa Elena'!I42,'Tablas Resto de Ecuador'!I42) -> 2156 | S45: 8102 | T45: 6513 | U45: 6096 | V45: 5205 | W45: 3373 | X45: 2755 | Y45: 2156
A46: 55 | C46: 8373 | D46: 6878 | E46: 6364 | F46: 5424 | G46: 3449 | H46: 2978 | I46: 2340 | K46: =IF('INGRESO DE DATOS'!$W$19=1,'Tablas Guyanas y Santa Elena'!C43,'Tablas Resto de Ecuador'!C43) -> 8373 | L46: =IF('INGRESO DE DATOS'!$W$19=1,'Tablas Guyanas y Santa Elena'!D43,'Tablas Resto de Ecuador'!D43) -> 6878 | M46: =IF('INGRESO DE DATOS'!$W$19=1,'Tablas Guyanas y Santa Elena'!E43,'Tablas Resto de Ecuador'!E43) -> 6364 | N46: =IF('INGRESO DE DATOS'!$W$19=1,'Tablas Guyanas y Santa Elena'!F43,'Tablas Resto de Ecuador'!F43) -> 5424 | O46: =IF('INGRESO DE DATOS'!$W$19=1,'Tablas Guyanas y Santa Elena'!G43,'Tablas Resto de Ecuador'!G43) -> 3449 | P46: =IF('INGRESO DE DATOS'!$W$19=1,'Tablas Guyanas y Santa Elena'!H43,'Tablas Resto de Ecuador'!H43) -> 2978 | Q46: =IF('INGRESO DE DATOS'!$W$19=1,'Tablas Guyanas y Santa Elena'!I43,'Tablas Resto de Ecuador'!I43) -> 2340 | S46: 8373 | T46: 6878 | U46: 6364 | V46: 5424 | W46: 3449 | X46: 2978 | Y46: 2340
A47: 56 | C47: 8627 | D47: 7318 | E47: 6645 | F47: 5644 | G47: 3547 | H47: 3095 | I47: 2536 | K47: =IF('INGRESO DE DATOS'!$W$19=1,'Tablas Guyanas y Santa Elena'!C44,'Tablas Resto de Ecuador'!C44) -> 8627 | L47: =IF('INGRESO DE DATOS'!$W$19=1,'Tablas Guyanas y Santa Elena'!D44,'Tablas Resto de Ecuador'!D44) -> 7318 | M47: =IF('INGRESO DE DATOS'!$W$19=1,'Tablas Guyanas y Santa Elena'!E44,'Tablas Resto de Ecuador'!E44) -> 6645 | N47: =IF('INGRESO DE DATOS'!$W$19=1,'Tablas Guyanas y Santa Elena'!F44,'Tablas Resto de Ecuador'!F44) -> 5644 | O47: =IF('INGRESO DE DATOS'!$W$19=1,'Tablas Guyanas y Santa Elena'!G44,'Tablas Resto de Ecuador'!G44) -> 3547 | P47: =IF('INGRESO DE DATOS'!$W$19=1,'Tablas Guyanas y Santa Elena'!H44,'Tablas Resto de Ecuador'!H44) -> 3095 | Q47: =IF('INGRESO DE DATOS'!$W$19=1,'Tablas Guyanas y Santa Elena'!I44,'Tablas Resto de Ecuador'!I44) -> 2536 | S47: 8627 | T47: 7318 | U47: 6645 | V47: 5644 | W47: 3547 | X47: 3095 | Y47: 2536
A48: 57 | C48: 8901 | D48: 7745 | E48: 6938 | F48: 5876 | G48: 3689 | H48: 3294 | I48: 2749 | K48: =IF('INGRESO DE DATOS'!$W$19=1,'Tablas Guyanas y Santa Elena'!C45,'Tablas Resto de Ecuador'!C45) -> 8901 | L48: =IF('INGRESO DE DATOS'!$W$19=1,'Tablas Guyanas y Santa Elena'!D45,'Tablas Resto de Ecuador'!D45) -> 7745 | M48: =IF('INGRESO DE DATOS'!$W$19=1,'Tablas Guyanas y Santa Elena'!E45,'Tablas Resto de Ecuador'!E45) -> 6938 | N48: =IF('INGRESO DE DATOS'!$W$19=1,'Tablas Guyanas y Santa Elena'!F45,'Tablas Resto de Ecuador'!F45) -> 5876 | O48: =IF('INGRESO DE DATOS'!$W$19=1,'Tablas Guyanas y Santa Elena'!G45,'Tablas Resto de Ecuador'!G45) -> 3689 | P48: =IF('INGRESO DE DATOS'!$W$19=1,'Tablas Guyanas y Santa Elena'!H45,'Tablas Resto de Ecuador'!H45) -> 3294 | Q48: =IF('INGRESO DE DATOS'!$W$19=1,'Tablas Guyanas y Santa Elena'!I45,'Tablas Resto de Ecuador'!I45) -> 2749 | S48: 8901 | T48: 7745 | U48: 6938 | V48: 5876 | W48: 3689 | X48: 3294 | Y48: 2749
A49: 58 | C49: 9210 | D49: 8007 | E49: 7245 | F49: 6133 | G49: 3896 | H49: 3403 | I49: 2978 | K49: =IF('INGRESO DE DATOS'!$W$19=1,'Tablas Guyanas y Santa Elena'!C46,'Tablas Resto de Ecuador'!C46) -> 9210 | L49: =IF('INGRESO DE DATOS'!$W$19=1,'Tablas Guyanas y Santa Elena'!D46,'Tablas Resto de Ecuador'!D46) -> 8007 | M49: =IF('INGRESO DE DATOS'!$W$19=1,'Tablas Guyanas y Santa Elena'!E46,'Tablas Resto de Ecuador'!E46) -> 7245 | N49: =IF('INGRESO DE DATOS'!$W$19=1,'Tablas Guyanas y Santa Elena'!F46,'Tablas Resto de Ecuador'!F46) -> 6133 | O49: =IF('INGRESO DE DATOS'!$W$19=1,'Tablas Guyanas y Santa Elena'!G46,'Tablas Resto de Ecuador'!G46) -> 3896 | P49: =IF('INGRESO DE DATOS'!$W$19=1,'Tablas Guyanas y Santa Elena'!H46,'Tablas Resto de Ecuador'!H46) -> 3403 | Q49: =IF('INGRESO DE DATOS'!$W$19=1,'Tablas Guyanas y Santa Elena'!I46,'Tablas Resto de Ecuador'!I46) -> 2978 | S49: 9210 | T49: 8007 | U49: 7245 | V49: 6133 | W49: 3896 | X49: 3403 | Y49: 2978
A50: 59 | C50: 9519 | D50: 8278 | E50: 7501 | F50: 6374 | G50: 4168 | H50: 3527 | I50: 3122 | K50: =IF('INGRESO DE DATOS'!$W$19=1,'Tablas Guyanas y Santa Elena'!C47,'Tablas Resto de Ecuador'!C47) -> 9519 | L50: =IF('INGRESO DE DATOS'!$W$19=1,'Tablas Guyanas y Santa Elena'!D47,'Tablas Resto de Ecuador'!D47) -> 8278 | M50: =IF('INGRESO DE DATOS'!$W$19=1,'Tablas Guyanas y Santa Elena'!E47,'Tablas Resto de Ecuador'!E47) -> 7501 | N50: =IF('INGRESO DE DATOS'!$W$19=1,'Tablas Guyanas y Santa Elena'!F47,'Tablas Resto de Ecuador'!F47) -> 6374 | O50: =IF('INGRESO DE DATOS'!$W$19=1,'Tablas Guyanas y Santa Elena'!G47,'Tablas Resto de Ecuador'!G47) -> 4168 | P50: =IF('INGRESO DE DATOS'!$W$19=1,'Tablas Guyanas y Santa Elena'!H47,'Tablas Resto de Ecuador'!H47) -> 3527 | Q50: =IF('INGRESO DE DATOS'!$W$19=1,'Tablas Guyanas y Santa Elena'!I47,'Tablas Resto de Ecuador'!I47) -> 3122 | S50: 9519 | T50: 8278 | U50: 7501 | V50: 6374 | W50: 4168 | X50: 3527 | Y50: 3122
A51: 60 | C51: 9825 | D51: 8542 | E51: 7726 | F51: 6590 | G51: 4492 | H51: 3659 | I51: 3237 | K51: =IF('INGRESO DE DATOS'!$W$19=1,'Tablas Guyanas y Santa Elena'!C48,'Tablas Resto de Ecuador'!C48) -> 9825 | L51: =IF('INGRESO DE DATOS'!$W$19=1,'Tablas Guyanas y Santa Elena'!D48,'Tablas Resto de Ecuador'!D48) -> 8542 | M51: =IF('INGRESO DE DATOS'!$W$19=1,'Tablas Guyanas y Santa Elena'!E48,'Tablas Resto de Ecuador'!E48) -> 7726 | N51: =IF('INGRESO DE DATOS'!$W$19=1,'Tablas Guyanas y Santa Elena'!F48,'Tablas Resto de Ecuador'!F48) -> 6590 | O51: =IF('INGRESO DE DATOS'!$W$19=1,'Tablas Guyanas y Santa Elena'!G48,'Tablas Resto de Ecuador'!G48) -> 4492 | P51: =IF('INGRESO DE DATOS'!$W$19=1,'Tablas Guyanas y Santa Elena'!H48,'Tablas Resto de Ecuador'!H48) -> 3659 | Q51: =IF('INGRESO DE DATOS'!$W$19=1,'Tablas Guyanas y Santa Elena'!I48,'Tablas Resto de Ecuador'!I48) -> 3237 | S51: 9825 | T51: 8542 | U51: 7726 | V51: 6590 | W51: 4492 | X51: 3659 | Y51: 3237
A52: 61 | C52: 10205 | D52: 8871 | E52: 8058 | F52: 6843 | G52: 4866 | H52: 3819 | I52: 3380 | K52: =IF('INGRESO DE DATOS'!$W$19=1,'Tablas Guyanas y Santa Elena'!C49,'Tablas Resto de Ecuador'!C49) -> 10205 | L52: =IF('INGRESO DE DATOS'!$W$19=1,'Tablas Guyanas y Santa Elena'!D49,'Tablas Resto de Ecuador'!D49) -> 8871 | M52: =IF('INGRESO DE DATOS'!$W$19=1,'Tablas Guyanas y Santa Elena'!E49,'Tablas Resto de Ecuador'!E49) -> 8058 | N52: =IF('INGRESO DE DATOS'!$W$19=1,'Tablas Guyanas y Santa Elena'!F49,'Tablas Resto de Ecuador'!F49) -> 6843 | O52: =IF('INGRESO DE DATOS'!$W$19=1,'Tablas Guyanas y Santa Elena'!G49,'Tablas Resto de Ecuador'!G49) -> 4866 | P52: =IF('INGRESO DE DATOS'!$W$19=1,'Tablas Guyanas y Santa Elena'!H49,'Tablas Resto de Ecuador'!H49) -> 3819 | Q52: =IF('INGRESO DE DATOS'!$W$19=1,'Tablas Guyanas y Santa Elena'!I49,'Tablas Resto de Ecuador'!I49) -> 3380 | S52: 10205 | T52: 8871 | U52: 8058 | V52: 6843 | W52: 4866 | X52: 3819 | Y52: 3380
A53: 62 | C53: 10849 | D53: 9315 | E53: 8442 | F53: 7194 | G53: 5289 | H53: 4026 | I53: 3573 | K53: =IF('INGRESO DE DATOS'!$W$19=1,'Tablas Guyanas y Santa Elena'!C50,'Tablas Resto de Ecuador'!C50) -> 10849 | L53: =IF('INGRESO DE DATOS'!$W$19=1,'Tablas Guyanas y Santa Elena'!D50,'Tablas Resto de Ecuador'!D50) -> 9315 | M53: =IF('INGRESO DE DATOS'!$W$19=1,'Tablas Guyanas y Santa Elena'!E50,'Tablas Resto de Ecuador'!E50) -> 8442 | N53: =IF('INGRESO DE DATOS'!$W$19=1,'Tablas Guyanas y Santa Elena'!F50,'Tablas Resto de Ecuador'!F50) -> 7194 | O53: =IF('INGRESO DE DATOS'!$W$19=1,'Tablas Guyanas y Santa Elena'!G50,'Tablas Resto de Ecuador'!G50) -> 5289 | P53: =IF('INGRESO DE DATOS'!$W$19=1,'Tablas Guyanas y Santa Elena'!H50,'Tablas Resto de Ecuador'!H50) -> 4026 | Q53: =IF('INGRESO DE DATOS'!$W$19=1,'Tablas Guyanas y Santa Elena'!I50,'Tablas Resto de Ecuador'!I50) -> 3573 | S53: 10849 | T53: 9315 | U53: 8442 | V53: 7194 | W53: 5289 | X53: 4026 | Y53: 3573
A54: 63 | C54: 11603 | D54: 9988 | E54: 8892 | F54: 7704 | G54: 5562 | H54: 4300 | I54: 3836 | K54: =IF('INGRESO DE DATOS'!$W$19=1,'Tablas Guyanas y Santa Elena'!C51,'Tablas Resto de Ecuador'!C51) -> 11603 | L54: =IF('INGRESO DE DATOS'!$W$19=1,'Tablas Guyanas y Santa Elena'!D51,'Tablas Resto de Ecuador'!D51) -> 9988 | M54: =IF('INGRESO DE DATOS'!$W$19=1,'Tablas Guyanas y Santa Elena'!E51,'Tablas Resto de Ecuador'!E51) -> 8892 | N54: =IF('INGRESO DE DATOS'!$W$19=1,'Tablas Guyanas y Santa Elena'!F51,'Tablas Resto de Ecuador'!F51) -> 7704 | O54: =IF('INGRESO DE DATOS'!$W$19=1,'Tablas Guyanas y Santa Elena'!G51,'Tablas Resto de Ecuador'!G51) -> 5562 | P54: =IF('INGRESO DE DATOS'!$W$19=1,'Tablas Guyanas y Santa Elena'!H51,'Tablas Resto de Ecuador'!H51) -> 4300 | Q54: =IF('INGRESO DE DATOS'!$W$19=1,'Tablas Guyanas y Santa Elena'!I51,'Tablas Resto de Ecuador'!I51) -> 3836 | S54: 11603 | T54: 9988 | U54: 8892 | V54: 7704 | W54: 5562 | X54: 4300 | Y54: 3836
A55: 64 | C55: 12409 | D55: 10713 | E55: 9399 | F55: 8357 | G55: 5882 | H55: 4629 | I55: 4193 | K55: =IF('INGRESO DE DATOS'!$W$19=1,'Tablas Guyanas y Santa Elena'!C52,'Tablas Resto de Ecuador'!C52) -> 12409 | L55: =IF('INGRESO DE DATOS'!$W$19=1,'Tablas Guyanas y Santa Elena'!D52,'Tablas Resto de Ecuador'!D52) -> 10713 | M55: =IF('INGRESO DE DATOS'!$W$19=1,'Tablas Guyanas y Santa Elena'!E52,'Tablas Resto de Ecuador'!E52) -> 9399 | N55: =IF('INGRESO DE DATOS'!$W$19=1,'Tablas Guyanas y Santa Elena'!F52,'Tablas Resto de Ecuador'!F52) -> 8357 | O55: =IF('INGRESO DE DATOS'!$W$19=1,'Tablas Guyanas y Santa Elena'!G52,'Tablas Resto de Ecuador'!G52) -> 5882 | P55: =IF('INGRESO DE DATOS'!$W$19=1,'Tablas Guyanas y Santa Elena'!H52,'Tablas Resto de Ecuador'!H52) -> 4629 | Q55: =IF('INGRESO DE DATOS'!$W$19=1,'Tablas Guyanas y Santa Elena'!I52,'Tablas Resto de Ecuador'!I52) -> 4193 | S55: 12409 | T55: 10713 | U55: 9399 | V55: 8357 | W55: 5882 | X55: 4629 | Y55: 4193
A56: 65 | C56: 13279 | D56: 11493 | E56: 10013 | F56: 9111 | G56: 6298 | H56: 5000 | I56: 4632 | K56: =IF('INGRESO DE DATOS'!$W$19=1,'Tablas Guyanas y Santa Elena'!C53,'Tablas Resto de Ecuador'!C53) -> 13279 | L56: =IF('INGRESO DE DATOS'!$W$19=1,'Tablas Guyanas y Santa Elena'!D53,'Tablas Resto de Ecuador'!D53) -> 11493 | M56: =IF('INGRESO DE DATOS'!$W$19=1,'Tablas Guyanas y Santa Elena'!E53,'Tablas Resto de Ecuador'!E53) -> 10013 | N56: =IF('INGRESO DE DATOS'!$W$19=1,'Tablas Guyanas y Santa Elena'!F53,'Tablas Resto de Ecuador'!F53) -> 9111 | O56: =IF('INGRESO DE DATOS'!$W$19=1,'Tablas Guyanas y Santa Elena'!G53,'Tablas Resto de Ecuador'!G53) -> 6298 | P56: =IF('INGRESO DE DATOS'!$W$19=1,'Tablas Guyanas y Santa Elena'!H53,'Tablas Resto de Ecuador'!H53) -> 5000 | Q56: =IF('INGRESO DE DATOS'!$W$19=1,'Tablas Guyanas y Santa Elena'!I53,'Tablas Resto de Ecuador'!I53) -> 4632 | S56: 13279 | T56: 11493 | U56: 10013 | V56: 9111 | W56: 6298 | X56: 5000 | Y56: 4632
A57: 66 | C57: 14212 | D57: 12336 | E57: 10736 | F57: 9873 | G57: 6782 | H57: 5431 | I57: 5114 | K57: =IF('INGRESO DE DATOS'!$W$19=1,'Tablas Guyanas y Santa Elena'!C54,'Tablas Resto de Ecuador'!C54) -> 14212 | L57: =IF('INGRESO DE DATOS'!$W$19=1,'Tablas Guyanas y Santa Elena'!D54,'Tablas Resto de Ecuador'!D54) -> 12336 | M57: =IF('INGRESO DE DATOS'!$W$19=1,'Tablas Guyanas y Santa Elena'!E54,'Tablas Resto de Ecuador'!E54) -> 10736 | N57: =IF('INGRESO DE DATOS'!$W$19=1,'Tablas Guyanas y Santa Elena'!F54,'Tablas Resto de Ecuador'!F54) -> 9873 | O57: =IF('INGRESO DE DATOS'!$W$19=1,'Tablas Guyanas y Santa Elena'!G54,'Tablas Resto de Ecuador'!G54) -> 6782 | P57: =IF('INGRESO DE DATOS'!$W$19=1,'Tablas Guyanas y Santa Elena'!H54,'Tablas Resto de Ecuador'!H54) -> 5431 | Q57: =IF('INGRESO DE DATOS'!$W$19=1,'Tablas Guyanas y Santa Elena'!I54,'Tablas Resto de Ecuador'!I54) -> 5114 | S57: 14212 | T57: 12336 | U57: 10736 | V57: 9873 | W57: 6782 | X57: 5431 | Y57: 5114
A58: 67 | C58: 15216 | D58: 13240 | E58: 11594 | F58: 10671 | G58: 7328 | H58: 5941 | I58: 5602 | K58: =IF('INGRESO DE DATOS'!$W$19=1,'Tablas Guyanas y Santa Elena'!C55,'Tablas Resto de Ecuador'!C55) -> 15216 | L58: =IF('INGRESO DE DATOS'!$W$19=1,'Tablas Guyanas y Santa Elena'!D55,'Tablas Resto de Ecuador'!D55) -> 13240 | M58: =IF('INGRESO DE DATOS'!$W$19=1,'Tablas Guyanas y Santa Elena'!E55,'Tablas Resto de Ecuador'!E55) -> 11594 | N58: =IF('INGRESO DE DATOS'!$W$19=1,'Tablas Guyanas y Santa Elena'!F55,'Tablas Resto de Ecuador'!F55) -> 10671 | O58: =IF('INGRESO DE DATOS'!$W$19=1,'Tablas Guyanas y Santa Elena'!G55,'Tablas Resto de Ecuador'!G55) -> 7328 | P58: =IF('INGRESO DE DATOS'!$W$19=1,'Tablas Guyanas y Santa Elena'!H55,'Tablas Resto de Ecuador'!H55) -> 5941 | Q58: =IF('INGRESO DE DATOS'!$W$19=1,'Tablas Guyanas y Santa Elena'!I55,'Tablas Resto de Ecuador'!I55) -> 5602 | S58: 15216 | T58: 13240 | U58: 11594 | V58: 10671 | W58: 7328 | X58: 5941 | Y58: 5602
A59: 68 | C59: 16292 | D59: 14213 | E59: 12577 | F59: 11570 | G59: 7943 | H59: 6547 | I59: 6059 | K59: =IF('INGRESO DE DATOS'!$W$19=1,'Tablas Guyanas y Santa Elena'!C56,'Tablas Resto de Ecuador'!C56) -> 16292 | L59: =IF('INGRESO DE DATOS'!$W$19=1,'Tablas Guyanas y Santa Elena'!D56,'Tablas Resto de Ecuador'!D56) -> 14213 | M59: =IF('INGRESO DE DATOS'!$W$19=1,'Tablas Guyanas y Santa Elena'!E56,'Tablas Resto de Ecuador'!E56) -> 12577 | N59: =IF('INGRESO DE DATOS'!$W$19=1,'Tablas Guyanas y Santa Elena'!F56,'Tablas Resto de Ecuador'!F56) -> 11570 | O59: =IF('INGRESO DE DATOS'!$W$19=1,'Tablas Guyanas y Santa Elena'!G56,'Tablas Resto de Ecuador'!G56) -> 7943 | P59: =IF('INGRESO DE DATOS'!$W$19=1,'Tablas Guyanas y Santa Elena'!H56,'Tablas Resto de Ecuador'!H56) -> 6547 | Q59: =IF('INGRESO DE DATOS'!$W$19=1,'Tablas Guyanas y Santa Elena'!I56,'Tablas Resto de Ecuador'!I56) -> 6059 | S59: 16292 | T59: 14213 | U59: 12577 | V59: 11570 | W59: 7943 | X59: 6547 | Y59: 6059
A60: 69 | C60: 17449 | D60: 15261 | E60: 13722 | F60: 12634 | G60: 8677 | H60: 7222 | I60: 6425 | K60: =IF('INGRESO DE DATOS'!$W$19=1,'Tablas Guyanas y Santa Elena'!C57,'Tablas Resto de Ecuador'!C57) -> 17449 | L60: =IF('INGRESO DE DATOS'!$W$19=1,'Tablas Guyanas y Santa Elena'!D57,'Tablas Resto de Ecuador'!D57) -> 15261 | M60: =IF('INGRESO DE DATOS'!$W$19=1,'Tablas Guyanas y Santa Elena'!E57,'Tablas Resto de Ecuador'!E57) -> 13722 | N60: =IF('INGRESO DE DATOS'!$W$19=1,'Tablas Guyanas y Santa Elena'!F57,'Tablas Resto de Ecuador'!F57) -> 12634 | O60: =IF('INGRESO DE DATOS'!$W$19=1,'Tablas Guyanas y Santa Elena'!G57,'Tablas Resto de Ecuador'!G57) -> 8677 | P60: =IF('INGRESO DE DATOS'!$W$19=1,'Tablas Guyanas y Santa Elena'!H57,'Tablas Resto de Ecuador'!H57) -> 7222 | Q60: =IF('INGRESO DE DATOS'!$W$19=1,'Tablas Guyanas y Santa Elena'!I57,'Tablas Resto de Ecuador'!I57) -> 6425 | S60: 17449 | T60: 15261 | U60: 13722 | V60: 12634 | W60: 8677 | X60: 7222 | Y60: 6425
A61: 70 | C61: 18986 | D61: 16511 | E61: 14923 | F61: 14059 | G61: 9596 | H61: 7955 | I61: 6726 | K61: =IF('INGRESO DE DATOS'!$W$19=1,'Tablas Guyanas y Santa Elena'!C58,'Tablas Resto de Ecuador'!C58) -> 18986 | L61: =IF('INGRESO DE DATOS'!$W$19=1,'Tablas Guyanas y Santa Elena'!D58,'Tablas Resto de Ecuador'!D58) -> 16511 | M61: =IF('INGRESO DE DATOS'!$W$19=1,'Tablas Guyanas y Santa Elena'!E58,'Tablas Resto de Ecuador'!E58) -> 14923 | N61: =IF('INGRESO DE DATOS'!$W$19=1,'Tablas Guyanas y Santa Elena'!F58,'Tablas Resto de Ecuador'!F58) -> 14059 | O61: =IF('INGRESO DE DATOS'!$W$19=1,'Tablas Guyanas y Santa Elena'!G58,'Tablas Resto de Ecuador'!G58) -> 9596 | P61: =IF('INGRESO DE DATOS'!$W$19=1,'Tablas Guyanas y Santa Elena'!H58,'Tablas Resto de Ecuador'!H58) -> 7955 | Q61: =IF('INGRESO DE DATOS'!$W$19=1,'Tablas Guyanas y Santa Elena'!I58,'Tablas Resto de Ecuador'!I58) -> 6726 | S61: 18986 | T61: 16511 | U61: 14923 | V61: 14059 | W61: 9596 | X61: 7955 | Y61: 6726
A62: 71 | C62: 20908 | D62: 18183 | E62: 16577 | F62: 15482 | G62: 10570 | H62: 8785 | I62: 7050 | K62: =IF('INGRESO DE DATOS'!$W$19=1,'Tablas Guyanas y Santa Elena'!C59,'Tablas Resto de Ecuador'!C59) -> 20908 | L62: =IF('INGRESO DE DATOS'!$W$19=1,'Tablas Guyanas y Santa Elena'!D59,'Tablas Resto de Ecuador'!D59) -> 18183 | M62: =IF('INGRESO DE DATOS'!$W$19=1,'Tablas Guyanas y Santa Elena'!E59,'Tablas Resto de Ecuador'!E59) -> 16577 | N62: =IF('INGRESO DE DATOS'!$W$19=1,'Tablas Guyanas y Santa Elena'!F59,'Tablas Resto de Ecuador'!F59) -> 15482 | O62: =IF('INGRESO DE DATOS'!$W$19=1,'Tablas Guyanas y Santa Elena'!G59,'Tablas Resto de Ecuador'!G59) -> 10570 | P62: =IF('INGRESO DE DATOS'!$W$19=1,'Tablas Guyanas y Santa Elena'!H59,'Tablas Resto de Ecuador'!H59) -> 8785 | Q62: =IF('INGRESO DE DATOS'!$W$19=1,'Tablas Guyanas y Santa Elena'!I59,'Tablas Resto de Ecuador'!I59) -> 7050 | S62: 20908 | T62: 18183 | U62: 16577 | V62: 15482 | W62: 10570 | X62: 8785 | Y62: 7050
A63: 72 | C63: 23129 | D63: 20111 | E63: 18341 | F63: 17134 | G63: 11698 | H63: 9754 | I63: 7484 | K63: =IF('INGRESO DE DATOS'!$W$19=1,'Tablas Guyanas y Santa Elena'!C60,'Tablas Resto de Ecuador'!C60) -> 23129 | L63: =IF('INGRESO DE DATOS'!$W$19=1,'Tablas Guyanas y Santa Elena'!D60,'Tablas Resto de Ecuador'!D60) -> 20111 | M63: =IF('INGRESO DE DATOS'!$W$19=1,'Tablas Guyanas y Santa Elena'!E60,'Tablas Resto de Ecuador'!E60) -> 18341 | N63: =IF('INGRESO DE DATOS'!$W$19=1,'Tablas Guyanas y Santa Elena'!F60,'Tablas Resto de Ecuador'!F60) -> 17134 | O63: =IF('INGRESO DE DATOS'!$W$19=1,'Tablas Guyanas y Santa Elena'!G60,'Tablas Resto de Ecuador'!G60) -> 11698 | P63: =IF('INGRESO DE DATOS'!$W$19=1,'Tablas Guyanas y Santa Elena'!H60,'Tablas Resto de Ecuador'!H60) -> 9754 | Q63: =IF('INGRESO DE DATOS'!$W$19=1,'Tablas Guyanas y Santa Elena'!I60,'Tablas Resto de Ecuador'!I60) -> 7484 | S63: 23129 | T63: 20111 | U63: 18341 | V63: 17134 | W63: 11698 | X63: 9754 | Y63: 7484
A64: 73 | C64: 25690 | D64: 22337 | E64: 20365 | F64: 19022 | G64: 12983 | H64: 10903 | I64: 8115 | K64: =IF('INGRESO DE DATOS'!$W$19=1,'Tablas Guyanas y Santa Elena'!C61,'Tablas Resto de Ecuador'!C61) -> 25690 | L64: =IF('INGRESO DE DATOS'!$W$19=1,'Tablas Guyanas y Santa Elena'!D61,'Tablas Resto de Ecuador'!D61) -> 22337 | M64: =IF('INGRESO DE DATOS'!$W$19=1,'Tablas Guyanas y Santa Elena'!E61,'Tablas Resto de Ecuador'!E61) -> 20365 | N64: =IF('INGRESO DE DATOS'!$W$19=1,'Tablas Guyanas y Santa Elena'!F61,'Tablas Resto de Ecuador'!F61) -> 19022 | O64: =IF('INGRESO DE DATOS'!$W$19=1,'Tablas Guyanas y Santa Elena'!G61,'Tablas Resto de Ecuador'!G61) -> 12983 | P64: =IF('INGRESO DE DATOS'!$W$19=1,'Tablas Guyanas y Santa Elena'!H61,'Tablas Resto de Ecuador'!H61) -> 10903 | Q64: =IF('INGRESO DE DATOS'!$W$19=1,'Tablas Guyanas y Santa Elena'!I61,'Tablas Resto de Ecuador'!I61) -> 8115 | S64: 25690 | T64: 22337 | U64: 20365 | V64: 19022 | W64: 12983 | X64: 10903 | Y64: 8115
A65: 74 | C65: 28641 | D65: 24902 | E65: 22706 | F65: 21210 | G65: 14479 | H65: 12250 | I65: 8999 | K65: =IF('INGRESO DE DATOS'!$W$19=1,'Tablas Guyanas y Santa Elena'!C62,'Tablas Resto de Ecuador'!C62) -> 28641 | L65: =IF('INGRESO DE DATOS'!$W$19=1,'Tablas Guyanas y Santa Elena'!D62,'Tablas Resto de Ecuador'!D62) -> 24902 | M65: =IF('INGRESO DE DATOS'!$W$19=1,'Tablas Guyanas y Santa Elena'!E62,'Tablas Resto de Ecuador'!E62) -> 22706 | N65: =IF('INGRESO DE DATOS'!$W$19=1,'Tablas Guyanas y Santa Elena'!F62,'Tablas Resto de Ecuador'!F62) -> 21210 | O65: =IF('INGRESO DE DATOS'!$W$19=1,'Tablas Guyanas y Santa Elena'!G62,'Tablas Resto de Ecuador'!G62) -> 14479 | P65: =IF('INGRESO DE DATOS'!$W$19=1,'Tablas Guyanas y Santa Elena'!H62,'Tablas Resto de Ecuador'!H62) -> 12250 | Q65: =IF('INGRESO DE DATOS'!$W$19=1,'Tablas Guyanas y Santa Elena'!I62,'Tablas Resto de Ecuador'!I62) -> 8999 | S65: 28641 | T65: 24902 | U65: 22706 | V65: 21210 | W65: 14479 | X65: 12250 | Y65: 8999
A66: 75 | C66: 32022 | D66: 27847 | E66: 25287 | F66: 23865 | G66: 16246 | H66: 13201 | I66: 10078 | K66: =IF('INGRESO DE DATOS'!$W$19=1,'Tablas Guyanas y Santa Elena'!C63,'Tablas Resto de Ecuador'!C63) -> 32022 | L66: =IF('INGRESO DE DATOS'!$W$19=1,'Tablas Guyanas y Santa Elena'!D63,'Tablas Resto de Ecuador'!D63) -> 27847 | M66: =IF('INGRESO DE DATOS'!$W$19=1,'Tablas Guyanas y Santa Elena'!E63,'Tablas Resto de Ecuador'!E63) -> 25287 | N66: =IF('INGRESO DE DATOS'!$W$19=1,'Tablas Guyanas y Santa Elena'!F63,'Tablas Resto de Ecuador'!F63) -> 23865 | O66: =IF('INGRESO DE DATOS'!$W$19=1,'Tablas Guyanas y Santa Elena'!G63,'Tablas Resto de Ecuador'!G63) -> 16246 | P66: =IF('INGRESO DE DATOS'!$W$19=1,'Tablas Guyanas y Santa Elena'!H63,'Tablas Resto de Ecuador'!H63) -> 13201 | Q66: =IF('INGRESO DE DATOS'!$W$19=1,'Tablas Guyanas y Santa Elena'!I63,'Tablas Resto de Ecuador'!I63) -> 10078 | S66: 32022 | T66: 27847 | U66: 25287 | V66: 23865 | W66: 16246 | X66: 13201 | Y66: 10078
A67: 76 | C67: 34933 | D67: 31226 | E67: 28450 | F67: 26758 | G67: 18215 | H67: 14214 | I67: 11269 | K67: =IF('INGRESO DE DATOS'!$W$19=1,'Tablas Guyanas y Santa Elena'!C64,'Tablas Resto de Ecuador'!C64) -> 34933 | L67: =IF('INGRESO DE DATOS'!$W$19=1,'Tablas Guyanas y Santa Elena'!D64,'Tablas Resto de Ecuador'!D64) -> 31226 | M67: =IF('INGRESO DE DATOS'!$W$19=1,'Tablas Guyanas y Santa Elena'!E64,'Tablas Resto de Ecuador'!E64) -> 28450 | N67: =IF('INGRESO DE DATOS'!$W$19=1,'Tablas Guyanas y Santa Elena'!F64,'Tablas Resto de Ecuador'!F64) -> 26758 | O67: =IF('INGRESO DE DATOS'!$W$19=1,'Tablas Guyanas y Santa Elena'!G64,'Tablas Resto de Ecuador'!G64) -> 18215 | P67: =IF('INGRESO DE DATOS'!$W$19=1,'Tablas Guyanas y Santa Elena'!H64,'Tablas Resto de Ecuador'!H64) -> 14214 | Q67: =IF('INGRESO DE DATOS'!$W$19=1,'Tablas Guyanas y Santa Elena'!I64,'Tablas Resto de Ecuador'!I64) -> 11269 | S67: 34933 | T67: 31226 | U67: 28450 | V67: 26758 | W67: 18215 | X67: 14214 | Y67: 11269
A68: 77 | C68: 37773 | D68: 35071 | E68: 31975 | F68: 30053 | G68: 20463 | H68: 15894 | I68: 12487 | K68: =IF('INGRESO DE DATOS'!$W$19=1,'Tablas Guyanas y Santa Elena'!C65,'Tablas Resto de Ecuador'!C65) -> 37773 | L68: =IF('INGRESO DE DATOS'!$W$19=1,'Tablas Guyanas y Santa Elena'!D65,'Tablas Resto de Ecuador'!D65) -> 35071 | M68: =IF('INGRESO DE DATOS'!$W$19=1,'Tablas Guyanas y Santa Elena'!E65,'Tablas Resto de Ecuador'!E65) -> 31975 | N68: =IF('INGRESO DE DATOS'!$W$19=1,'Tablas Guyanas y Santa Elena'!F65,'Tablas Resto de Ecuador'!F65) -> 30053 | O68: =IF('INGRESO DE DATOS'!$W$19=1,'Tablas Guyanas y Santa Elena'!G65,'Tablas Resto de Ecuador'!G65) -> 20463 | P68: =IF('INGRESO DE DATOS'!$W$19=1,'Tablas Guyanas y Santa Elena'!H65,'Tablas Resto de Ecuador'!H65) -> 15894 | Q68: =IF('INGRESO DE DATOS'!$W$19=1,'Tablas Guyanas y Santa Elena'!I65,'Tablas Resto de Ecuador'!I65) -> 12487 | S68: 37773 | T68: 35071 | U68: 31975 | V68: 30053 | W68: 20463 | X68: 15894 | Y68: 12487
A69: 78 | C69: 40529 | D69: 38378 | E69: 34820 | F69: 33056 | G69: 22991 | H69: 17066 | I69: 13649 | K69: =IF('INGRESO DE DATOS'!$W$19=1,'Tablas Guyanas y Santa Elena'!C66,'Tablas Resto de Ecuador'!C66) -> 40529 | L69: =IF('INGRESO DE DATOS'!$W$19=1,'Tablas Guyanas y Santa Elena'!D66,'Tablas Resto de Ecuador'!D66) -> 38378 | M69: =IF('INGRESO DE DATOS'!$W$19=1,'Tablas Guyanas y Santa Elena'!E66,'Tablas Resto de Ecuador'!E66) -> 34820 | N69: =IF('INGRESO DE DATOS'!$W$19=1,'Tablas Guyanas y Santa Elena'!F66,'Tablas Resto de Ecuador'!F66) -> 33056 | O69: =IF('INGRESO DE DATOS'!$W$19=1,'Tablas Guyanas y Santa Elena'!G66,'Tablas Resto de Ecuador'!G66) -> 22991 | P69: =IF('INGRESO DE DATOS'!$W$19=1,'Tablas Guyanas y Santa Elena'!H66,'Tablas Resto de Ecuador'!H66) -> 17066 | Q69: =IF('INGRESO DE DATOS'!$W$19=1,'Tablas Guyanas y Santa Elena'!I66,'Tablas Resto de Ecuador'!I66) -> 13649 | S69: 40529 | T69: 38378 | U69: 34820 | V69: 33056 | W69: 22991 | X69: 17066 | Y69: 13649
A70: 79 | C70: 43199 | D70: 41077 | E70: 37404 | F70: 35503 | G70: 25833 | H70: 18287 | I70: 14616 | K70: =IF('INGRESO DE DATOS'!$W$19=1,'Tablas Guyanas y Santa Elena'!C67,'Tablas Resto de Ecuador'!C67) -> 43199 | L70: =IF('INGRESO DE DATOS'!$W$19=1,'Tablas Guyanas y Santa Elena'!D67,'Tablas Resto de Ecuador'!D67) -> 41077 | M70: =IF('INGRESO DE DATOS'!$W$19=1,'Tablas Guyanas y Santa Elena'!E67,'Tablas Resto de Ecuador'!E67) -> 37404 | N70: =IF('INGRESO DE DATOS'!$W$19=1,'Tablas Guyanas y Santa Elena'!F67,'Tablas Resto de Ecuador'!F67) -> 35503 | O70: =IF('INGRESO DE DATOS'!$W$19=1,'Tablas Guyanas y Santa Elena'!G67,'Tablas Resto de Ecuador'!G67) -> 25833 | P70: =IF('INGRESO DE DATOS'!$W$19=1,'Tablas Guyanas y Santa Elena'!H67,'Tablas Resto de Ecuador'!H67) -> 18287 | Q70: =IF('INGRESO DE DATOS'!$W$19=1,'Tablas Guyanas y Santa Elena'!I67,'Tablas Resto de Ecuador'!I67) -> 14616 | S70: 43199 | T70: 41077 | U70: 37404 | V70: 35503 | W70: 25833 | X70: 18287 | Y70: 14616
A71: 80 | C71: 45870 | D71: 43777 | E71: 39988 | F71: 37949 | G71: 29230 | H71: 20293 | I71: 15546 | K71: =IF('INGRESO DE DATOS'!$W$19=1,'Tablas Guyanas y Santa Elena'!C68,'Tablas Resto de Ecuador'!C68) -> 45870 | L71: =IF('INGRESO DE DATOS'!$W$19=1,'Tablas Guyanas y Santa Elena'!D68,'Tablas Resto de Ecuador'!D68) -> 43777 | M71: =IF('INGRESO DE DATOS'!$W$19=1,'Tablas Guyanas y Santa Elena'!E68,'Tablas Resto de Ecuador'!E68) -> 39988 | N71: =IF('INGRESO DE DATOS'!$W$19=1,'Tablas Guyanas y Santa Elena'!F68,'Tablas Resto de Ecuador'!F68) -> 37949 | O71: =IF('INGRESO DE DATOS'!$W$19=1,'Tablas Guyanas y Santa Elena'!G68,'Tablas Resto de Ecuador'!G68) -> 29230 | P71: =IF('INGRESO DE DATOS'!$W$19=1,'Tablas Guyanas y Santa Elena'!H68,'Tablas Resto de Ecuador'!H68) -> 20293 | Q71: =IF('INGRESO DE DATOS'!$W$19=1,'Tablas Guyanas y Santa Elena'!I68,'Tablas Resto de Ecuador'!I68) -> 15546 | S71: 45870 | T71: 43777 | U71: 39988 | V71: 37949 | W71: 29230 | X71: 20293 | Y71: 15546
A72: 81 | C72: 45870 | D72: 43777 | E72: 39988 | F72: 37949 | G72: 29230 | H72: 20293 | I72: 15546 | K72: =IF('INGRESO DE DATOS'!$W$19=1,'Tablas Guyanas y Santa Elena'!C69,'Tablas Resto de Ecuador'!C69) -> 45870 | L72: =IF('INGRESO DE DATOS'!$W$19=1,'Tablas Guyanas y Santa Elena'!D69,'Tablas Resto de Ecuador'!D69) -> 43777 | M72: =IF('INGRESO DE DATOS'!$W$19=1,'Tablas Guyanas y Santa Elena'!E69,'Tablas Resto de Ecuador'!E69) -> 39988 | N72: =IF('INGRESO DE DATOS'!$W$19=1,'Tablas Guyanas y Santa Elena'!F69,'Tablas Resto de Ecuador'!F69) -> 37949 | O72: =IF('INGRESO DE DATOS'!$W$19=1,'Tablas Guyanas y Santa Elena'!G69,'Tablas Resto de Ecuador'!G69) -> 29230 | P72: =IF('INGRESO DE DATOS'!$W$19=1,'Tablas Guyanas y Santa Elena'!H69,'Tablas Resto de Ecuador'!H69) -> 20293 | Q72: =IF('INGRESO DE DATOS'!$W$19=1,'Tablas Guyanas y Santa Elena'!I69,'Tablas Resto de Ecuador'!I69) -> 15546 | S72: 45870 | T72: 43777 | U72: 39988 | V72: 37949 | W72: 29230 | X72: 20293 | Y72: 15546
A73: 82 | C73: 45870 | D73: 43777 | E73: 39988 | F73: 37949 | G73: 29230 | H73: 20293 | I73: 15546 | K73: =IF('INGRESO DE DATOS'!$W$19=1,'Tablas Guyanas y Santa Elena'!C70,'Tablas Resto de Ecuador'!C70) -> 45870 | L73: =IF('INGRESO DE DATOS'!$W$19=1,'Tablas Guyanas y Santa Elena'!D70,'Tablas Resto de Ecuador'!D70) -> 43777 | M73: =IF('INGRESO DE DATOS'!$W$19=1,'Tablas Guyanas y Santa Elena'!E70,'Tablas Resto de Ecuador'!E70) -> 39988 | N73: =IF('INGRESO DE DATOS'!$W$19=1,'Tablas Guyanas y Santa Elena'!F70,'Tablas Resto de Ecuador'!F70) -> 37949 | O73: =IF('INGRESO DE DATOS'!$W$19=1,'Tablas Guyanas y Santa Elena'!G70,'Tablas Resto de Ecuador'!G70) -> 29230 | P73: =IF('INGRESO DE DATOS'!$W$19=1,'Tablas Guyanas y Santa Elena'!H70,'Tablas Resto de Ecuador'!H70) -> 20293 | Q73: =IF('INGRESO DE DATOS'!$W$19=1,'Tablas Guyanas y Santa Elena'!I70,'Tablas Resto de Ecuador'!I70) -> 15546 | S73: 45870 | T73: 43777 | U73: 39988 | V73: 37949 | W73: 29230 | X73: 20293 | Y73: 15546
A74: 83 | C74: =S74*$AD$2 -> 45870 | D74: =T74*$AD$2 -> 43777 | E74: =U74*$AD$2 -> 39988 | F74: =V74*$AD$2 -> 37949 | G74: =W74*$AD$2 -> 29230 | H74: =X74*$AD$2 -> 20293 | I74: =Y74*$AD$2 -> 15546 | K74: =IF('INGRESO DE DATOS'!$W$19=1,'Tablas Guyanas y Santa Elena'!C71,'Tablas Resto de Ecuador'!C71) -> 45870 | L74: =IF('INGRESO DE DATOS'!$W$19=1,'Tablas Guyanas y Santa Elena'!D71,'Tablas Resto de Ecuador'!D71) -> 43777 | M74: =IF('INGRESO DE DATOS'!$W$19=1,'Tablas Guyanas y Santa Elena'!E71,'Tablas Resto de Ecuador'!E71) -> 39988 | N74: =IF('INGRESO DE DATOS'!$W$19=1,'Tablas Guyanas y Santa Elena'!F71,'Tablas Resto de Ecuador'!F71) -> 37949 | O74: =IF('INGRESO DE DATOS'!$W$19=1,'Tablas Guyanas y Santa Elena'!G71,'Tablas Resto de Ecuador'!G71) -> 29230 | P74: =IF('INGRESO DE DATOS'!$W$19=1,'Tablas Guyanas y Santa Elena'!H71,'Tablas Resto de Ecuador'!H71) -> 20293 | Q74: =IF('INGRESO DE DATOS'!$W$19=1,'Tablas Guyanas y Santa Elena'!I71,'Tablas Resto de Ecuador'!I71) -> 15546 | S74: =K74*$T$4 -> 45870 | T74: =L74*$T$4 -> 43777 | U74: =M74*$T$4 -> 39988 | V74: =N74*$T$4 -> 37949 | W74: =O74*$T$4 -> 29230 | X74: =P74*$T$4 -> 20293 | Y74: =Q74*$T$4 -> 15546
A75: 84 | B75: o más | C75: 45870 | D75: 43777 | E75: 39988 | F75: 37949 | G75: 29230 | H75: 20293 | I75: 15546 | K75: =IF('INGRESO DE DATOS'!$W$19=1,'Tablas Guyanas y Santa Elena'!C72,'Tablas Resto de Ecuador'!C72) -> 45870 | L75: =IF('INGRESO DE DATOS'!$W$19=1,'Tablas Guyanas y Santa Elena'!D72,'Tablas Resto de Ecuador'!D72) -> 43777 | M75: =IF('INGRESO DE DATOS'!$W$19=1,'Tablas Guyanas y Santa Elena'!E72,'Tablas Resto de Ecuador'!E72) -> 39988 | N75: =IF('INGRESO DE DATOS'!$W$19=1,'Tablas Guyanas y Santa Elena'!F72,'Tablas Resto de Ecuador'!F72) -> 37949 | O75: =IF('INGRESO DE DATOS'!$W$19=1,'Tablas Guyanas y Santa Elena'!G72,'Tablas Resto de Ecuador'!G72) -> 29230 | P75: =IF('INGRESO DE DATOS'!$W$19=1,'Tablas Guyanas y Santa Elena'!H72,'Tablas Resto de Ecuador'!H72) -> 20293 | Q75: =IF('INGRESO DE DATOS'!$W$19=1,'Tablas Guyanas y Santa Elena'!I72,'Tablas Resto de Ecuador'!I72) -> 15546 | S75: 45870 | T75: 43777 | U75: 39988 | V75: 37949 | W75: 29230 | X75: 20293 | Y75: 15546
A76: 1 | B76: Hijo | C76: 1022 | D76: 1059 | E76: 653 | F76: 583 | G76: 415 | H76: 368 | I76: 216 | K76: =IF('INGRESO DE DATOS'!$W$19=1,'Tablas Guyanas y Santa Elena'!C73,'Tablas Resto de Ecuador'!C73) -> 1022 | L76: =IF('INGRESO DE DATOS'!$W$19=1,'Tablas Guyanas y Santa Elena'!D73,'Tablas Resto de Ecuador'!D73) -> 1059 | M76: =IF('INGRESO DE DATOS'!$W$19=1,'Tablas Guyanas y Santa Elena'!E73,'Tablas Resto de Ecuador'!E73) -> 653 | N76: =IF('INGRESO DE DATOS'!$W$19=1,'Tablas Guyanas y Santa Elena'!F73,'Tablas Resto de Ecuador'!F73) -> 583 | O76: =IF('INGRESO DE DATOS'!$W$19=1,'Tablas Guyanas y Santa Elena'!G73,'Tablas Resto de Ecuador'!G73) -> 415 | P76: =IF('INGRESO DE DATOS'!$W$19=1,'Tablas Guyanas y Santa Elena'!H73,'Tablas Resto de Ecuador'!H73) -> 368 | Q76: =IF('INGRESO DE DATOS'!$W$19=1,'Tablas Guyanas y Santa Elena'!I73,'Tablas Resto de Ecuador'!I73) -> 216 | S76: 1022 | T76: 1059 | U76: 653 | V76: 583 | W76: 415 | X76: 368 | Y76: 216
A77: 2 | B77: Hijos | C77: 1956 | D77: 1966 | E77: 1245 | F77: 1103 | G77: 746 | H77: 435 | I77: 287 | K77: =IF('INGRESO DE DATOS'!$W$19=1,'Tablas Guyanas y Santa Elena'!C74,'Tablas Resto de Ecuador'!C74) -> 1956 | L77: =IF('INGRESO DE DATOS'!$W$19=1,'Tablas Guyanas y Santa Elena'!D74,'Tablas Resto de Ecuador'!D74) -> 1966 | M77: =IF('INGRESO DE DATOS'!$W$19=1,'Tablas Guyanas y Santa Elena'!E74,'Tablas Resto de Ecuador'!E74) -> 1245 | N77: =IF('INGRESO DE DATOS'!$W$19=1,'Tablas Guyanas y Santa Elena'!F74,'Tablas Resto de Ecuador'!F74) -> 1103 | O77: =IF('INGRESO DE DATOS'!$W$19=1,'Tablas Guyanas y Santa Elena'!G74,'Tablas Resto de Ecuador'!G74) -> 746 | P77: =IF('INGRESO DE DATOS'!$W$19=1,'Tablas Guyanas y Santa Elena'!H74,'Tablas Resto de Ecuador'!H74) -> 435 | Q77: =IF('INGRESO DE DATOS'!$W$19=1,'Tablas Guyanas y Santa Elena'!I74,'Tablas Resto de Ecuador'!I74) -> 287 | S77: 1956 | T77: 1966 | U77: 1245 | V77: 1103 | W77: 746 | X77: 435 | Y77: 287
A78: 3 | B78: Hijos o más | C78: 2838 | D78: 2800 | E78: 1802 | F78: 1587 | G78: 1033 | H78: 603 | I78: 431 | K78: =IF('INGRESO DE DATOS'!$W$19=1,'Tablas Guyanas y Santa Elena'!C75,'Tablas Resto de Ecuador'!C75) -> 2838 | L78: =IF('INGRESO DE DATOS'!$W$19=1,'Tablas Guyanas y Santa Elena'!D75,'Tablas Resto de Ecuador'!D75) -> 2800 | M78: =IF('INGRESO DE DATOS'!$W$19=1,'Tablas Guyanas y Santa Elena'!E75,'Tablas Resto de Ecuador'!E75) -> 1802 | N78: =IF('INGRESO DE DATOS'!$W$19=1,'Tablas Guyanas y Santa Elena'!F75,'Tablas Resto de Ecuador'!F75) -> 1587 | O78: =IF('INGRESO DE DATOS'!$W$19=1,'Tablas Guyanas y Santa Elena'!G75,'Tablas Resto de Ecuador'!G75) -> 1033 | P78: =IF('INGRESO DE DATOS'!$W$19=1,'Tablas Guyanas y Santa Elena'!H75,'Tablas Resto de Ecuador'!H75) -> 603 | Q78: =IF('INGRESO DE DATOS'!$W$19=1,'Tablas Guyanas y Santa Elena'!I75,'Tablas Resto de Ecuador'!I75) -> 431 | S78: 2838 | T78: 2800 | U78: 1802 | V78: 1587 | W78: 1033 | X78: 603 | Y78: 431
A80: BUPA ESSENTIAL 500
A81: TARIFAS ANUALES
A83: EDAD | C83: 250 | D83: 500 | E83: 1000 | F83: 2000 | G83: 5000 | H83: 10000 | I83: 20000 | K83: TARIFAS BASE | S83: TARIFAS BASE CON DESCUENTO
A84: 18 | C84: =S84*$AD$2 -> 2829 | D84: =T84*$AD$2 -> 2419 | E84: =U84*$AD$2 -> 1771 | F84: =V84*$AD$2 -> 1221 | G84: =W84*$AD$2 -> 666 | H84: =X84*$AD$2 -> 384 | I84: =Y84*$AD$2 -> 221 | K84: =IF('INGRESO DE DATOS'!$W$19=1,'Tablas Guyanas y Santa Elena'!C81,'Tablas Resto de Ecuador'!C81) -> 2829 | L84: =IF('INGRESO DE DATOS'!$W$19=1,'Tablas Guyanas y Santa Elena'!D81,'Tablas Resto de Ecuador'!D81) -> 2419 | M84: =IF('INGRESO DE DATOS'!$W$19=1,'Tablas Guyanas y Santa Elena'!E81,'Tablas Resto de Ecuador'!E81) -> 1771 | N84: =IF('INGRESO DE DATOS'!$W$19=1,'Tablas Guyanas y Santa Elena'!F81,'Tablas Resto de Ecuador'!F81) -> 1221 | O84: =IF('INGRESO DE DATOS'!$W$19=1,'Tablas Guyanas y Santa Elena'!G81,'Tablas Resto de Ecuador'!G81) -> 666 | P84: =IF('INGRESO DE DATOS'!$W$19=1,'Tablas Guyanas y Santa Elena'!H81,'Tablas Resto de Ecuador'!H81) -> 384 | Q84: =IF('INGRESO DE DATOS'!$W$19=1,'Tablas Guyanas y Santa Elena'!I81,'Tablas Resto de Ecuador'!I81) -> 221 | S84: =K84*$U$4 -> 2829 | T84: =L84*$U$4 -> 2419 | U84: 1771 | V84: 1221 | W84: 666 | X84: 384 | Y84: 221
A85: 19 | C85: =S85*$AD$2 -> 2875 | D85: =T85*$AD$2 -> 2419 | E85: =U85*$AD$2 -> 1771 | F85: =V85*$AD$2 -> 1223 | G85: =W85*$AD$2 -> 673 | H85: =X85*$AD$2 -> 390 | I85: =Y85*$AD$2 -> 226 | K85: =IF('INGRESO DE DATOS'!$W$19=1,'Tablas Guyanas y Santa Elena'!C82,'Tablas Resto de Ecuador'!C82) -> 2875 | L85: =IF('INGRESO DE DATOS'!$W$19=1,'Tablas Guyanas y Santa Elena'!D82,'Tablas Resto de Ecuador'!D82) -> 2419 | M85: =IF('INGRESO DE DATOS'!$W$19=1,'Tablas Guyanas y Santa Elena'!E82,'Tablas Resto de Ecuador'!E82) -> 1771 | N85: =IF('INGRESO DE DATOS'!$W$19=1,'Tablas Guyanas y Santa Elena'!F82,'Tablas Resto de Ecuador'!F82) -> 1223 | O85: =IF('INGRESO DE DATOS'!$W$19=1,'Tablas Guyanas y Santa Elena'!G82,'Tablas Resto de Ecuador'!G82) -> 673 | P85: =IF('INGRESO DE DATOS'!$W$19=1,'Tablas Guyanas y Santa Elena'!H82,'Tablas Resto de Ecuador'!H82) -> 390 | Q85: =IF('INGRESO DE DATOS'!$W$19=1,'Tablas Guyanas y Santa Elena'!I82,'Tablas Resto de Ecuador'!I82) -> 226 | S85: =K85*$U$4 -> 2875 | T85: =L85*$U$4 -> 2419 | U85: =M85*$U$4 -> 1771 | V85: =N85*$U$4 -> 1223 | W85: =O85*$U$4 -> 673 | X85: =P85*$U$4 -> 390 | Y85: =Q85*$U$4 -> 226
A86: 20 | C86: 2925 | D86: 2419 | E86: 1771 | F86: 1227 | G86: 680 | H86: 395 | I86: 231 | K86: =IF('INGRESO DE DATOS'!$W$19=1,'Tablas Guyanas y Santa Elena'!C83,'Tablas Resto de Ecuador'!C83) -> 2925 | L86: =IF('INGRESO DE DATOS'!$W$19=1,'Tablas Guyanas y Santa Elena'!D83,'Tablas Resto de Ecuador'!D83) -> 2419 | M86: =IF('INGRESO DE DATOS'!$W$19=1,'Tablas Guyanas y Santa Elena'!E83,'Tablas Resto de Ecuador'!E83) -> 1771 | N86: =IF('INGRESO DE DATOS'!$W$19=1,'Tablas Guyanas y Santa Elena'!F83,'Tablas Resto de Ecuador'!F83) -> 1227 | O86: =IF('INGRESO DE DATOS'!$W$19=1,'Tablas Guyanas y Santa Elena'!G83,'Tablas Resto de Ecuador'!G83) -> 680 | P86: =IF('INGRESO DE DATOS'!$W$19=1,'Tablas Guyanas y Santa Elena'!H83,'Tablas Resto de Ecuador'!H83) -> 395 | Q86: =IF('INGRESO DE DATOS'!$W$19=1,'Tablas Guyanas y Santa Elena'!I83,'Tablas Resto de Ecuador'!I83) -> 231 | S86: 2925 | T86: 2419 | U86: 1771 | V86: 1227 | W86: 680 | X86: 395 | Y86: 231
A87: 21 | C87: 2982 | D87: 2419 | E87: 1774 | F87: 1234 | G87: 689 | H87: 404 | I87: 238 | K87: =IF('INGRESO DE DATOS'!$W$19=1,'Tablas Guyanas y Santa Elena'!C84,'Tablas Resto de Ecuador'!C84) -> 2982 | L87: =IF('INGRESO DE DATOS'!$W$19=1,'Tablas Guyanas y Santa Elena'!D84,'Tablas Resto de Ecuador'!D84) -> 2419 | M87: =IF('INGRESO DE DATOS'!$W$19=1,'Tablas Guyanas y Santa Elena'!E84,'Tablas Resto de Ecuador'!E84) -> 1774 | N87: =IF('INGRESO DE DATOS'!$W$19=1,'Tablas Guyanas y Santa Elena'!F84,'Tablas Resto de Ecuador'!F84) -> 1234 | O87: =IF('INGRESO DE DATOS'!$W$19=1,'Tablas Guyanas y Santa Elena'!G84,'Tablas Resto de Ecuador'!G84) -> 689 | P87: =IF('INGRESO DE DATOS'!$W$19=1,'Tablas Guyanas y Santa Elena'!H84,'Tablas Resto de Ecuador'!H84) -> 404 | Q87: =IF('INGRESO DE DATOS'!$W$19=1,'Tablas Guyanas y Santa Elena'!I84,'Tablas Resto de Ecuador'!I84) -> 238 | S87: 2982 | T87: 2419 | U87: 1774 | V87: 1234 | W87: 689 | X87: 404 | Y87: 238
A88: 22 | C88: 3029 | D88: 2419 | E88: 1780 | F88: 1243 | G88: 698 | H88: 411 | I88: 243 | K88: =IF('INGRESO DE DATOS'!$W$19=1,'Tablas Guyanas y Santa Elena'!C85,'Tablas Resto de Ecuador'!C85) -> 3029 | L88: =IF('INGRESO DE DATOS'!$W$19=1,'Tablas Guyanas y Santa Elena'!D85,'Tablas Resto de Ecuador'!D85) -> 2419 | M88: =IF('INGRESO DE DATOS'!$W$19=1,'Tablas Guyanas y Santa Elena'!E85,'Tablas Resto de Ecuador'!E85) -> 1780 | N88: =IF('INGRESO DE DATOS'!$W$19=1,'Tablas Guyanas y Santa Elena'!F85,'Tablas Resto de Ecuador'!F85) -> 1243 | O88: =IF('INGRESO DE DATOS'!$W$19=1,'Tablas Guyanas y Santa Elena'!G85,'Tablas Resto de Ecuador'!G85) -> 698 | P88: =IF('INGRESO DE DATOS'!$W$19=1,'Tablas Guyanas y Santa Elena'!H85,'Tablas Resto de Ecuador'!H85) -> 411 | Q88: =IF('INGRESO DE DATOS'!$W$19=1,'Tablas Guyanas y Santa Elena'!I85,'Tablas Resto de Ecuador'!I85) -> 243 | S88: 3029 | T88: 2419 | U88: 1780 | V88: 1243 | W88: 698 | X88: 411 | Y88: 243
A89: 23 | C89: 3079 | D89: 2426 | E89: 1792 | F89: 1256 | G89: 710 | H89: 421 | I89: 250 | K89: =IF('INGRESO DE DATOS'!$W$19=1,'Tablas Guyanas y Santa Elena'!C86,'Tablas Resto de Ecuador'!C86) -> 3079 | L89: =IF('INGRESO DE DATOS'!$W$19=1,'Tablas Guyanas y Santa Elena'!D86,'Tablas Resto de Ecuador'!D86) -> 2426 | M89: =IF('INGRESO DE DATOS'!$W$19=1,'Tablas Guyanas y Santa Elena'!E86,'Tablas Resto de Ecuador'!E86) -> 1792 | N89: =IF('INGRESO DE DATOS'!$W$19=1,'Tablas Guyanas y Santa Elena'!F86,'Tablas Resto de Ecuador'!F86) -> 1256 | O89: =IF('INGRESO DE DATOS'!$W$19=1,'Tablas Guyanas y Santa Elena'!G86,'Tablas Resto de Ecuador'!G86) -> 710 | P89: =IF('INGRESO DE DATOS'!$W$19=1,'Tablas Guyanas y Santa Elena'!H86,'Tablas Resto de Ecuador'!H86) -> 421 | Q89: =IF('INGRESO DE DATOS'!$W$19=1,'Tablas Guyanas y Santa Elena'!I86,'Tablas Resto de Ecuador'!I86) -> 250 | S89: 3079 | T89: 2426 | U89: 1792 | V89: 1256 | W89: 710 | X89: 421 | Y89: 250
A90: 24 | C90: 3088 | D90: 2438 | E90: 1806 | F90: 1274 | G90: 723 | H90: 432 | I90: 258 | K90: =IF('INGRESO DE DATOS'!$W$19=1,'Tablas Guyanas y Santa Elena'!C87,'Tablas Resto de Ecuador'!C87) -> 3088 | L90: =IF('INGRESO DE DATOS'!$W$19=1,'Tablas Guyanas y Santa Elena'!D87,'Tablas Resto de Ecuador'!D87) -> 2438 | M90: =IF('INGRESO DE DATOS'!$W$19=1,'Tablas Guyanas y Santa Elena'!E87,'Tablas Resto de Ecuador'!E87) -> 1806 | N90: =IF('INGRESO DE DATOS'!$W$19=1,'Tablas Guyanas y Santa Elena'!F87,'Tablas Resto de Ecuador'!F87) -> 1274 | O90: =IF('INGRESO DE DATOS'!$W$19=1,'Tablas Guyanas y Santa Elena'!G87,'Tablas Resto de Ecuador'!G87) -> 723 | P90: =IF('INGRESO DE DATOS'!$W$19=1,'Tablas Guyanas y Santa Elena'!H87,'Tablas Resto de Ecuador'!H87) -> 432 | Q90: =IF('INGRESO DE DATOS'!$W$19=1,'Tablas Guyanas y Santa Elena'!I87,'Tablas Resto de Ecuador'!I87) -> 258 | S90: 3088 | T90: 2438 | U90: 1806 | V90: 1274 | W90: 723 | X90: 432 | Y90: 258
A91: 25 | C91: 3101 | D91: 2454 | E91: 1824 | F91: 1292 | G91: 738 | H91: 444 | I91: 267 | K91: =IF('INGRESO DE DATOS'!$W$19=1,'Tablas Guyanas y Santa Elena'!C88,'Tablas Resto de Ecuador'!C88) -> 3101 | L91: =IF('INGRESO DE DATOS'!$W$19=1,'Tablas Guyanas y Santa Elena'!D88,'Tablas Resto de Ecuador'!D88) -> 2454 | M91: =IF('INGRESO DE DATOS'!$W$19=1,'Tablas Guyanas y Santa Elena'!E88,'Tablas Resto de Ecuador'!E88) -> 1824 | N91: =IF('INGRESO DE DATOS'!$W$19=1,'Tablas Guyanas y Santa Elena'!F88,'Tablas Resto de Ecuador'!F88) -> 1292 | O91: =IF('INGRESO DE DATOS'!$W$19=1,'Tablas Guyanas y Santa Elena'!G88,'Tablas Resto de Ecuador'!G88) -> 738 | P91: =IF('INGRESO DE DATOS'!$W$19=1,'Tablas Guyanas y Santa Elena'!H88,'Tablas Resto de Ecuador'!H88) -> 444 | Q91: =IF('INGRESO DE DATOS'!$W$19=1,'Tablas Guyanas y Santa Elena'!I88,'Tablas Resto de Ecuador'!I88) -> 267 | S91: 3101 | T91: 2454 | U91: 1824 | V91: 1292 | W91: 738 | X91: 444 | Y91: 267
A92: 26 | C92: 3125 | D92: 2479 | E92: 1851 | F92: 1315 | G92: 757 | H92: 456 | I92: 277 | K92: =IF('INGRESO DE DATOS'!$W$19=1,'Tablas Guyanas y Santa Elena'!C89,'Tablas Resto de Ecuador'!C89) -> 3125 | L92: =IF('INGRESO DE DATOS'!$W$19=1,'Tablas Guyanas y Santa Elena'!D89,'Tablas Resto de Ecuador'!D89) -> 2479 | M92: =IF('INGRESO DE DATOS'!$W$19=1,'Tablas Guyanas y Santa Elena'!E89,'Tablas Resto de Ecuador'!E89) -> 1851 | N92: =IF('INGRESO DE DATOS'!$W$19=1,'Tablas Guyanas y Santa Elena'!F89,'Tablas Resto de Ecuador'!F89) -> 1315 | O92: =IF('INGRESO DE DATOS'!$W$19=1,'Tablas Guyanas y Santa Elena'!G89,'Tablas Resto de Ecuador'!G89) -> 757 | P92: =IF('INGRESO DE DATOS'!$W$19=1,'Tablas Guyanas y Santa Elena'!H89,'Tablas Resto de Ecuador'!H89) -> 456 | Q92: =IF('INGRESO DE DATOS'!$W$19=1,'Tablas Guyanas y Santa Elena'!I89,'Tablas Resto de Ecuador'!I89) -> 277 | S92: 3125 | T92: 2479 | U92: 1851 | V92: 1315 | W92: 757 | X92: 456 | Y92: 277
A93: 27 | C93: 3156 | D93: 2510 | E93: 1881 | F93: 1340 | G93: 775 | H93: 470 | I93: 287 | K93: =IF('INGRESO DE DATOS'!$W$19=1,'Tablas Guyanas y Santa Elena'!C90,'Tablas Resto de Ecuador'!C90) -> 3156 | L93: =IF('INGRESO DE DATOS'!$W$19=1,'Tablas Guyanas y Santa Elena'!D90,'Tablas Resto de Ecuador'!D90) -> 2510 | M93: =IF('INGRESO DE DATOS'!$W$19=1,'Tablas Guyanas y Santa Elena'!E90,'Tablas Resto de Ecuador'!E90) -> 1881 | N93: =IF('INGRESO DE DATOS'!$W$19=1,'Tablas Guyanas y Santa Elena'!F90,'Tablas Resto de Ecuador'!F90) -> 1340 | O93: =IF('INGRESO DE DATOS'!$W$19=1,'Tablas Guyanas y Santa Elena'!G90,'Tablas Resto de Ecuador'!G90) -> 775 | P93: =IF('INGRESO DE DATOS'!$W$19=1,'Tablas Guyanas y Santa Elena'!H90,'Tablas Resto de Ecuador'!H90) -> 470 | Q93: =IF('INGRESO DE DATOS'!$W$19=1,'Tablas Guyanas y Santa Elena'!I90,'Tablas Resto de Ecuador'!I90) -> 287 | S93: 3156 | T93: 2510 | U93: 1881 | V93: 1340 | W93: 775 | X93: 470 | Y93: 287
A94: 28 | C94: 3195 | D94: 2547 | E94: 1914 | F94: 1370 | G94: 798 | H94: 486 | I94: 297 | K94: =IF('INGRESO DE DATOS'!$W$19=1,'Tablas Guyanas y Santa Elena'!C91,'Tablas Resto de Ecuador'!C91) -> 3195 | L94: =IF('INGRESO DE DATOS'!$W$19=1,'Tablas Guyanas y Santa Elena'!D91,'Tablas Resto de Ecuador'!D91) -> 2547 | M94: =IF('INGRESO DE DATOS'!$W$19=1,'Tablas Guyanas y Santa Elena'!E91,'Tablas Resto de Ecuador'!E91) -> 1914 | N94: =IF('INGRESO DE DATOS'!$W$19=1,'Tablas Guyanas y Santa Elena'!F91,'Tablas Resto de Ecuador'!F91) -> 1370 | O94: =IF('INGRESO DE DATOS'!$W$19=1,'Tablas Guyanas y Santa Elena'!G91,'Tablas Resto de Ecuador'!G91) -> 798 | P94: =IF('INGRESO DE DATOS'!$W$19=1,'Tablas Guyanas y Santa Elena'!H91,'Tablas Resto de Ecuador'!H91) -> 486 | Q94: =IF('INGRESO DE DATOS'!$W$19=1,'Tablas Guyanas y Santa Elena'!I91,'Tablas Resto de Ecuador'!I91) -> 297 | S94: 3195 | T94: 2547 | U94: 1914 | V94: 1370 | W94: 798 | X94: 486 | Y94: 297
A95: 29 | C95: 3242 | D95: 2589 | E95: 1952 | F95: 1404 | G95: 822 | H95: 503 | I95: 312 | K95: =IF('INGRESO DE DATOS'!$W$19=1,'Tablas Guyanas y Santa Elena'!C92,'Tablas Resto de Ecuador'!C92) -> 3242 | L95: =IF('INGRESO DE DATOS'!$W$19=1,'Tablas Guyanas y Santa Elena'!D92,'Tablas Resto de Ecuador'!D92) -> 2589 | M95: =IF('INGRESO DE DATOS'!$W$19=1,'Tablas Guyanas y Santa Elena'!E92,'Tablas Resto de Ecuador'!E92) -> 1952 | N95: =IF('INGRESO DE DATOS'!$W$19=1,'Tablas Guyanas y Santa Elena'!F92,'Tablas Resto de Ecuador'!F92) -> 1404 | O95: =IF('INGRESO DE DATOS'!$W$19=1,'Tablas Guyanas y Santa Elena'!G92,'Tablas Resto de Ecuador'!G92) -> 822 | P95: =IF('INGRESO DE DATOS'!$W$19=1,'Tablas Guyanas y Santa Elena'!H92,'Tablas Resto de Ecuador'!H92) -> 503 | Q95: =IF('INGRESO DE DATOS'!$W$19=1,'Tablas Guyanas y Santa Elena'!I92,'Tablas Resto de Ecuador'!I92) -> 312 | S95: 3242 | T95: 2589 | U95: 1952 | V95: 1404 | W95: 822 | X95: 503 | Y95: 312
A96: 30 | C96: 3295 | D96: 2641 | E96: 1998 | F96: 1442 | G96: 850 | H96: 523 | I96: 325 | K96: =IF('INGRESO DE DATOS'!$W$19=1,'Tablas Guyanas y Santa Elena'!C93,'Tablas Resto de Ecuador'!C93) -> 3295 | L96: =IF('INGRESO DE DATOS'!$W$19=1,'Tablas Guyanas y Santa Elena'!D93,'Tablas Resto de Ecuador'!D93) -> 2641 | M96: =IF('INGRESO DE DATOS'!$W$19=1,'Tablas Guyanas y Santa Elena'!E93,'Tablas Resto de Ecuador'!E93) -> 1998 | N96: =IF('INGRESO DE DATOS'!$W$19=1,'Tablas Guyanas y Santa Elena'!F93,'Tablas Resto de Ecuador'!F93) -> 1442 | O96: =IF('INGRESO DE DATOS'!$W$19=1,'Tablas Guyanas y Santa Elena'!G93,'Tablas Resto de Ecuador'!G93) -> 850 | P96: =IF('INGRESO DE DATOS'!$W$19=1,'Tablas Guyanas y Santa Elena'!H93,'Tablas Resto de Ecuador'!H93) -> 523 | Q96: =IF('INGRESO DE DATOS'!$W$19=1,'Tablas Guyanas y Santa Elena'!I93,'Tablas Resto de Ecuador'!I93) -> 325 | S96: 3295 | T96: 2641 | U96: 1998 | V96: 1442 | W96: 850 | X96: 523 | Y96: 325
A97: 31 | C97: 3360 | D97: 2700 | E97: 2050 | F97: 1483 | G97: 878 | H97: 543 | I97: 341 | K97: =IF('INGRESO DE DATOS'!$W$19=1,'Tablas Guyanas y Santa Elena'!C94,'Tablas Resto de Ecuador'!C94) -> 3360 | L97: =IF('INGRESO DE DATOS'!$W$19=1,'Tablas Guyanas y Santa Elena'!D94,'Tablas Resto de Ecuador'!D94) -> 2700 | M97: =IF('INGRESO DE DATOS'!$W$19=1,'Tablas Guyanas y Santa Elena'!E94,'Tablas Resto de Ecuador'!E94) -> 2050 | N97: =IF('INGRESO DE DATOS'!$W$19=1,'Tablas Guyanas y Santa Elena'!F94,'Tablas Resto de Ecuador'!F94) -> 1483 | O97: =IF('INGRESO DE DATOS'!$W$19=1,'Tablas Guyanas y Santa Elena'!G94,'Tablas Resto de Ecuador'!G94) -> 878 | P97: =IF('INGRESO DE DATOS'!$W$19=1,'Tablas Guyanas y Santa Elena'!H94,'Tablas Resto de Ecuador'!H94) -> 543 | Q97: =IF('INGRESO DE DATOS'!$W$19=1,'Tablas Guyanas y Santa Elena'!I94,'Tablas Resto de Ecuador'!I94) -> 341 | S97: 3360 | T97: 2700 | U97: 2050 | V97: 1483 | W97: 878 | X97: 543 | Y97: 341
A98: 32 | C98: 3435 | D98: 2768 | E98: 2104 | F98: 1527 | G98: 912 | H98: 566 | I98: 356 | K98: =IF('INGRESO DE DATOS'!$W$19=1,'Tablas Guyanas y Santa Elena'!C95,'Tablas Resto de Ecuador'!C95) -> 3435 | L98: =IF('INGRESO DE DATOS'!$W$19=1,'Tablas Guyanas y Santa Elena'!D95,'Tablas Resto de Ecuador'!D95) -> 2768 | M98: =IF('INGRESO DE DATOS'!$W$19=1,'Tablas Guyanas y Santa Elena'!E95,'Tablas Resto de Ecuador'!E95) -> 2104 | N98: =IF('INGRESO DE DATOS'!$W$19=1,'Tablas Guyanas y Santa Elena'!F95,'Tablas Resto de Ecuador'!F95) -> 1527 | O98: =IF('INGRESO DE DATOS'!$W$19=1,'Tablas Guyanas y Santa Elena'!G95,'Tablas Resto de Ecuador'!G95) -> 912 | P98: =IF('INGRESO DE DATOS'!$W$19=1,'Tablas Guyanas y Santa Elena'!H95,'Tablas Resto de Ecuador'!H95) -> 566 | Q98: =IF('INGRESO DE DATOS'!$W$19=1,'Tablas Guyanas y Santa Elena'!I95,'Tablas Resto de Ecuador'!I95) -> 356 | S98: 3435 | T98: 2768 | U98: 2104 | V98: 1527 | W98: 912 | X98: 566 | Y98: 356
A99: 33 | C99: 3519 | D99: 2841 | E99: 2168 | F99: 1580 | G99: 945 | H99: 591 | I99: 373 | K99: =IF('INGRESO DE DATOS'!$W$19=1,'Tablas Guyanas y Santa Elena'!C96,'Tablas Resto de Ecuador'!C96) -> 3519 | L99: =IF('INGRESO DE DATOS'!$W$19=1,'Tablas Guyanas y Santa Elena'!D96,'Tablas Resto de Ecuador'!D96) -> 2841 | M99: =IF('INGRESO DE DATOS'!$W$19=1,'Tablas Guyanas y Santa Elena'!E96,'Tablas Resto de Ecuador'!E96) -> 2168 | N99: =IF('INGRESO DE DATOS'!$W$19=1,'Tablas Guyanas y Santa Elena'!F96,'Tablas Resto de Ecuador'!F96) -> 1580 | O99: =IF('INGRESO DE DATOS'!$W$19=1,'Tablas Guyanas y Santa Elena'!G96,'Tablas Resto de Ecuador'!G96) -> 945 | P99: =IF('INGRESO DE DATOS'!$W$19=1,'Tablas Guyanas y Santa Elena'!H96,'Tablas Resto de Ecuador'!H96) -> 591 | Q99: =IF('INGRESO DE DATOS'!$W$19=1,'Tablas Guyanas y Santa Elena'!I96,'Tablas Resto de Ecuador'!I96) -> 373 | S99: 3519 | T99: 2841 | U99: 2168 | V99: 1580 | W99: 945 | X99: 591 | Y99: 373
A100: 34 | C100: 3612 | D100: 2924 | E100: 2238 | F100: 1638 | G100: 984 | H100: 617 | I100: 393 | K100: =IF('INGRESO DE DATOS'!$W$19=1,'Tablas Guyanas y Santa Elena'!C97,'Tablas Resto de Ecuador'!C97) -> 3612 | L100: =IF('INGRESO DE DATOS'!$W$19=1,'Tablas Guyanas y Santa Elena'!D97,'Tablas Resto de Ecuador'!D97) -> 2924 | M100: =IF('INGRESO DE DATOS'!$W$19=1,'Tablas Guyanas y Santa Elena'!E97,'Tablas Resto de Ecuador'!E97) -> 2238 | N100: =IF('INGRESO DE DATOS'!$W$19=1,'Tablas Guyanas y Santa Elena'!F97,'Tablas Resto de Ecuador'!F97) -> 1638 | O100: =IF('INGRESO DE DATOS'!$W$19=1,'Tablas Guyanas y Santa Elena'!G97,'Tablas Resto de Ecuador'!G97) -> 984 | P100: =IF('INGRESO DE DATOS'!$W$19=1,'Tablas Guyanas y Santa Elena'!H97,'Tablas Resto de Ecuador'!H97) -> 617 | Q100: =IF('INGRESO DE DATOS'!$W$19=1,'Tablas Guyanas y Santa Elena'!I97,'Tablas Resto de Ecuador'!I97) -> 393 | S100: 3612 | T100: 2924 | U100: 2238 | V100: 1638 | W100: 984 | X100: 617 | Y100: 393
A101: 35 | C101: 3716 | D101: 3015 | E101: 2315 | F101: 1700 | G101: 1027 | H101: 647 | I101: 414 | K101: =IF('INGRESO DE DATOS'!$W$19=1,'Tablas Guyanas y Santa Elena'!C98,'Tablas Resto de Ecuador'!C98) -> 3716 | L101: =IF('INGRESO DE DATOS'!$W$19=1,'Tablas Guyanas y Santa Elena'!D98,'Tablas Resto de Ecuador'!D98) -> 3015 | M101: =IF('INGRESO DE DATOS'!$W$19=1,'Tablas Guyanas y Santa Elena'!E98,'Tablas Resto de Ecuador'!E98) -> 2315 | N101: =IF('INGRESO DE DATOS'!$W$19=1,'Tablas Guyanas y Santa Elena'!F98,'Tablas Resto de Ecuador'!F98) -> 1700 | O101: =IF('INGRESO DE DATOS'!$W$19=1,'Tablas Guyanas y Santa Elena'!G98,'Tablas Resto de Ecuador'!G98) -> 1027 | P101: =IF('INGRESO DE DATOS'!$W$19=1,'Tablas Guyanas y Santa Elena'!H98,'Tablas Resto de Ecuador'!H98) -> 647 | Q101: =IF('INGRESO DE DATOS'!$W$19=1,'Tablas Guyanas y Santa Elena'!I98,'Tablas Resto de Ecuador'!I98) -> 414 | S101: 3716 | T101: 3015 | U101: 2315 | V101: 1700 | W101: 1027 | X101: 647 | Y101: 414
A102: 36 | C102: 3831 | D102: 3116 | E102: 2400 | F102: 1765 | G102: 1073 | H102: 680 | I102: 437 | K102: =IF('INGRESO DE DATOS'!$W$19=1,'Tablas Guyanas y Santa Elena'!C99,'Tablas Resto de Ecuador'!C99) -> 3831 | L102: =IF('INGRESO DE DATOS'!$W$19=1,'Tablas Guyanas y Santa Elena'!D99,'Tablas Resto de Ecuador'!D99) -> 3116 | M102: =IF('INGRESO DE DATOS'!$W$19=1,'Tablas Guyanas y Santa Elena'!E99,'Tablas Resto de Ecuador'!E99) -> 2400 | N102: =IF('INGRESO DE DATOS'!$W$19=1,'Tablas Guyanas y Santa Elena'!F99,'Tablas Resto de Ecuador'!F99) -> 1765 | O102: =IF('INGRESO DE DATOS'!$W$19=1,'Tablas Guyanas y Santa Elena'!G99,'Tablas Resto de Ecuador'!G99) -> 1073 | P102: =IF('INGRESO DE DATOS'!$W$19=1,'Tablas Guyanas y Santa Elena'!H99,'Tablas Resto de Ecuador'!H99) -> 680 | Q102: =IF('INGRESO DE DATOS'!$W$19=1,'Tablas Guyanas y Santa Elena'!I99,'Tablas Resto de Ecuador'!I99) -> 437 | S102: 3831 | T102: 3116 | U102: 2400 | V102: 1765 | W102: 1073 | X102: 680 | Y102: 437
A103: 37 | C103: 3959 | D103: 3228 | E103: 2490 | F103: 1839 | G103: 1123 | H103: 714 | I103: 462 | K103: =IF('INGRESO DE DATOS'!$W$19=1,'Tablas Guyanas y Santa Elena'!C100,'Tablas Resto de Ecuador'!C100) -> 3959 | L103: =IF('INGRESO DE DATOS'!$W$19=1,'Tablas Guyanas y Santa Elena'!D100,'Tablas Resto de Ecuador'!D100) -> 3228 | M103: =IF('INGRESO DE DATOS'!$W$19=1,'Tablas Guyanas y Santa Elena'!E100,'Tablas Resto de Ecuador'!E100) -> 2490 | N103: =IF('INGRESO DE DATOS'!$W$19=1,'Tablas Guyanas y Santa Elena'!F100,'Tablas Resto de Ecuador'!F100) -> 1839 | O103: =IF('INGRESO DE DATOS'!$W$19=1,'Tablas Guyanas y Santa Elena'!G100,'Tablas Resto de Ecuador'!G100) -> 1123 | P103: =IF('INGRESO DE DATOS'!$W$19=1,'Tablas Guyanas y Santa Elena'!H100,'Tablas Resto de Ecuador'!H100) -> 714 | Q103: =IF('INGRESO DE DATOS'!$W$19=1,'Tablas Guyanas y Santa Elena'!I100,'Tablas Resto de Ecuador'!I100) -> 462 | S103: 3959 | T103: 3228 | U103: 2490 | V103: 1839 | W103: 1123 | X103: 714 | Y103: 462
A104: 38 | C104: 4094 | D104: 3346 | E104: 2589 | F104: 1920 | G104: 1177 | H104: 751 | I104: 490 | K104: =IF('INGRESO DE DATOS'!$W$19=1,'Tablas Guyanas y Santa Elena'!C101,'Tablas Resto de Ecuador'!C101) -> 4094 | L104: =IF('INGRESO DE DATOS'!$W$19=1,'Tablas Guyanas y Santa Elena'!D101,'Tablas Resto de Ecuador'!D101) -> 3346 | M104: =IF('INGRESO DE DATOS'!$W$19=1,'Tablas Guyanas y Santa Elena'!E101,'Tablas Resto de Ecuador'!E101) -> 2589 | N104: =IF('INGRESO DE DATOS'!$W$19=1,'Tablas Guyanas y Santa Elena'!F101,'Tablas Resto de Ecuador'!F101) -> 1920 | O104: =IF('INGRESO DE DATOS'!$W$19=1,'Tablas Guyanas y Santa Elena'!G101,'Tablas Resto de Ecuador'!G101) -> 1177 | P104: =IF('INGRESO DE DATOS'!$W$19=1,'Tablas Guyanas y Santa Elena'!H101,'Tablas Resto de Ecuador'!H101) -> 751 | Q104: =IF('INGRESO DE DATOS'!$W$19=1,'Tablas Guyanas y Santa Elena'!I101,'Tablas Resto de Ecuador'!I101) -> 490 | S104: 4094 | T104: 3346 | U104: 2589 | V104: 1920 | W104: 1177 | X104: 751 | Y104: 490
A105: 39 | C105: 4245 | D105: 3477 | E105: 2700 | F105: 2006 | G105: 1235 | H105: 792 | I105: 517 | K105: =IF('INGRESO DE DATOS'!$W$19=1,'Tablas Guyanas y Santa Elena'!C102,'Tablas Resto de Ecuador'!C102) -> 4245 | L105: =IF('INGRESO DE DATOS'!$W$19=1,'Tablas Guyanas y Santa Elena'!D102,'Tablas Resto de Ecuador'!D102) -> 3477 | M105: =IF('INGRESO DE DATOS'!$W$19=1,'Tablas Guyanas y Santa Elena'!E102,'Tablas Resto de Ecuador'!E102) -> 2700 | N105: =IF('INGRESO DE DATOS'!$W$19=1,'Tablas Guyanas y Santa Elena'!F102,'Tablas Resto de Ecuador'!F102) -> 2006 | O105: =IF('INGRESO DE DATOS'!$W$19=1,'Tablas Guyanas y Santa Elena'!G102,'Tablas Resto de Ecuador'!G102) -> 1235 | P105: =IF('INGRESO DE DATOS'!$W$19=1,'Tablas Guyanas y Santa Elena'!H102,'Tablas Resto de Ecuador'!H102) -> 792 | Q105: =IF('INGRESO DE DATOS'!$W$19=1,'Tablas Guyanas y Santa Elena'!I102,'Tablas Resto de Ecuador'!I102) -> 517 | S105: 4245 | T105: 3477 | U105: 2700 | V105: 2006 | W105: 1235 | X105: 792 | Y105: 517
A106: 40 | C106: 4365 | D106: 3619 | E106: 2767 | F106: 2101 | G106: 1301 | H106: 837 | I106: 551 | K106: =IF('INGRESO DE DATOS'!$W$19=1,'Tablas Guyanas y Santa Elena'!C103,'Tablas Resto de Ecuador'!C103) -> 4365 | L106: =IF('INGRESO DE DATOS'!$W$19=1,'Tablas Guyanas y Santa Elena'!D103,'Tablas Resto de Ecuador'!D103) -> 3619 | M106: =IF('INGRESO DE DATOS'!$W$19=1,'Tablas Guyanas y Santa Elena'!E103,'Tablas Resto de Ecuador'!E103) -> 2767 | N106: =IF('INGRESO DE DATOS'!$W$19=1,'Tablas Guyanas y Santa Elena'!F103,'Tablas Resto de Ecuador'!F103) -> 2101 | O106: =IF('INGRESO DE DATOS'!$W$19=1,'Tablas Guyanas y Santa Elena'!G103,'Tablas Resto de Ecuador'!G103) -> 1301 | P106: =IF('INGRESO DE DATOS'!$W$19=1,'Tablas Guyanas y Santa Elena'!H103,'Tablas Resto de Ecuador'!H103) -> 837 | Q106: =IF('INGRESO DE DATOS'!$W$19=1,'Tablas Guyanas y Santa Elena'!I103,'Tablas Resto de Ecuador'!I103) -> 551 | S106: 4365 | T106: 3619 | U106: 2767 | V106: 2101 | W106: 1301 | X106: 837 | Y106: 551
A107: 41 | C107: 4464 | D107: 3773 | E107: 2797 | F107: 2200 | G107: 1368 | H107: 885 | I107: 587 | K107: =IF('INGRESO DE DATOS'!$W$19=1,'Tablas Guyanas y Santa Elena'!C104,'Tablas Resto de Ecuador'!C104) -> 4464 | L107: =IF('INGRESO DE DATOS'!$W$19=1,'Tablas Guyanas y Santa Elena'!D104,'Tablas Resto de Ecuador'!D104) -> 3773 | M107: =IF('INGRESO DE DATOS'!$W$19=1,'Tablas Guyanas y Santa Elena'!E104,'Tablas Resto de Ecuador'!E104) -> 2797 | N107: =IF('INGRESO DE DATOS'!$W$19=1,'Tablas Guyanas y Santa Elena'!F104,'Tablas Resto de Ecuador'!F104) -> 2200 | O107: =IF('INGRESO DE DATOS'!$W$19=1,'Tablas Guyanas y Santa Elena'!G104,'Tablas Resto de Ecuador'!G104) -> 1368 | P107: =IF('INGRESO DE DATOS'!$W$19=1,'Tablas Guyanas y Santa Elena'!H104,'Tablas Resto de Ecuador'!H104) -> 885 | Q107: =IF('INGRESO DE DATOS'!$W$19=1,'Tablas Guyanas y Santa Elena'!I104,'Tablas Resto de Ecuador'!I104) -> 587 | S107: 4464 | T107: 3773 | U107: 2797 | V107: 2200 | W107: 1368 | X107: 885 | Y107: 587
A108: 42 | C108: 4568 | D108: 3941 | E108: 2835 | F108: 2314 | G108: 1444 | H108: 937 | I108: 624 | K108: =IF('INGRESO DE DATOS'!$W$19=1,'Tablas Guyanas y Santa Elena'!C105,'Tablas Resto de Ecuador'!C105) -> 4568 | L108: =IF('INGRESO DE DATOS'!$W$19=1,'Tablas Guyanas y Santa Elena'!D105,'Tablas Resto de Ecuador'!D105) -> 3941 | M108: =IF('INGRESO DE DATOS'!$W$19=1,'Tablas Guyanas y Santa Elena'!E105,'Tablas Resto de Ecuador'!E105) -> 2835 | N108: =IF('INGRESO DE DATOS'!$W$19=1,'Tablas Guyanas y Santa Elena'!F105,'Tablas Resto de Ecuador'!F105) -> 2314 | O108: =IF('INGRESO DE DATOS'!$W$19=1,'Tablas Guyanas y Santa Elena'!G105,'Tablas Resto de Ecuador'!G105) -> 1444 | P108: =IF('INGRESO DE DATOS'!$W$19=1,'Tablas Guyanas y Santa Elena'!H105,'Tablas Resto de Ecuador'!H105) -> 937 | Q108: =IF('INGRESO DE DATOS'!$W$19=1,'Tablas Guyanas y Santa Elena'!I105,'Tablas Resto de Ecuador'!I105) -> 624 | S108: 4568 | T108: 3941 | U108: 2835 | V108: 2314 | W108: 1444 | X108: 937 | Y108: 624
A109: 43 | C109: 4742 | D109: 4122 | E109: 2895 | F109: 2433 | G109: 1525 | H109: 995 | I109: 666 | K109: =IF('INGRESO DE DATOS'!$W$19=1,'Tablas Guyanas y Santa Elena'!C106,'Tablas Resto de Ecuador'!C106) -> 4742 | L109: =IF('INGRESO DE DATOS'!$W$19=1,'Tablas Guyanas y Santa Elena'!D106,'Tablas Resto de Ecuador'!D106) -> 4122 | M109: =IF('INGRESO DE DATOS'!$W$19=1,'Tablas Guyanas y Santa Elena'!E106,'Tablas Resto de Ecuador'!E106) -> 2895 | N109: =IF('INGRESO DE DATOS'!$W$19=1,'Tablas Guyanas y Santa Elena'!F106,'Tablas Resto de Ecuador'!F106) -> 2433 | O109: =IF('INGRESO DE DATOS'!$W$19=1,'Tablas Guyanas y Santa Elena'!G106,'Tablas Resto de Ecuador'!G106) -> 1525 | P109: =IF('INGRESO DE DATOS'!$W$19=1,'Tablas Guyanas y Santa Elena'!H106,'Tablas Resto de Ecuador'!H106) -> 995 | Q109: =IF('INGRESO DE DATOS'!$W$19=1,'Tablas Guyanas y Santa Elena'!I106,'Tablas Resto de Ecuador'!I106) -> 666 | S109: 4742 | T109: 4122 | U109: 2895 | V109: 2433 | W109: 1525 | X109: 995 | Y109: 666
A110: 44 | C110: 4907 | D110: 4284 | E110: 2978 | F110: 2562 | G110: 1614 | H110: 1057 | I110: 711 | K110: =IF('INGRESO DE DATOS'!$W$19=1,'Tablas Guyanas y Santa Elena'!C107,'Tablas Resto de Ecuador'!C107) -> 4907 | L110: =IF('INGRESO DE DATOS'!$W$19=1,'Tablas Guyanas y Santa Elena'!D107,'Tablas Resto de Ecuador'!D107) -> 4284 | M110: =IF('INGRESO DE DATOS'!$W$19=1,'Tablas Guyanas y Santa Elena'!E107,'Tablas Resto de Ecuador'!E107) -> 2978 | N110: =IF('INGRESO DE DATOS'!$W$19=1,'Tablas Guyanas y Santa Elena'!F107,'Tablas Resto de Ecuador'!F107) -> 2562 | O110: =IF('INGRESO DE DATOS'!$W$19=1,'Tablas Guyanas y Santa Elena'!G107,'Tablas Resto de Ecuador'!G107) -> 1614 | P110: =IF('INGRESO DE DATOS'!$W$19=1,'Tablas Guyanas y Santa Elena'!H107,'Tablas Resto de Ecuador'!H107) -> 1057 | Q110: =IF('INGRESO DE DATOS'!$W$19=1,'Tablas Guyanas y Santa Elena'!I107,'Tablas Resto de Ecuador'!I107) -> 711 | S110: 4907 | T110: 4284 | U110: 2978 | V110: 2562 | W110: 1614 | X110: 1057 | Y110: 711
A111: 45 | C111: 4857 | D111: 4440 | E111: 3074 | F111: 2703 | G111: 1708 | H111: 1123 | I111: 759 | K111: =IF('INGRESO DE DATOS'!$W$19=1,'Tablas Guyanas y Santa Elena'!C108,'Tablas Resto de Ecuador'!C108) -> 4857 | L111: =IF('INGRESO DE DATOS'!$W$19=1,'Tablas Guyanas y Santa Elena'!D108,'Tablas Resto de Ecuador'!D108) -> 4440 | M111: =IF('INGRESO DE DATOS'!$W$19=1,'Tablas Guyanas y Santa Elena'!E108,'Tablas Resto de Ecuador'!E108) -> 3074 | N111: =IF('INGRESO DE DATOS'!$W$19=1,'Tablas Guyanas y Santa Elena'!F108,'Tablas Resto de Ecuador'!F108) -> 2703 | O111: =IF('INGRESO DE DATOS'!$W$19=1,'Tablas Guyanas y Santa Elena'!G108,'Tablas Resto de Ecuador'!G108) -> 1708 | P111: =IF('INGRESO DE DATOS'!$W$19=1,'Tablas Guyanas y Santa Elena'!H108,'Tablas Resto de Ecuador'!H108) -> 1123 | Q111: =IF('INGRESO DE DATOS'!$W$19=1,'Tablas Guyanas y Santa Elena'!I108,'Tablas Resto de Ecuador'!I108) -> 759 | S111: 4857 | T111: 4440 | U111: 3074 | V111: 2703 | W111: 1708 | X111: 1123 | Y111: 759
A112: 46 | C112: 4798 | D112: 4598 | E112: 3183 | F112: 2854 | G112: 1741 | H112: 1195 | I112: 812 | K112: =IF('INGRESO DE DATOS'!$W$19=1,'Tablas Guyanas y Santa Elena'!C109,'Tablas Resto de Ecuador'!C109) -> 4798 | L112: =IF('INGRESO DE DATOS'!$W$19=1,'Tablas Guyanas y Santa Elena'!D109,'Tablas Resto de Ecuador'!D109) -> 4598 | M112: =IF('INGRESO DE DATOS'!$W$19=1,'Tablas Guyanas y Santa Elena'!E109,'Tablas Resto de Ecuador'!E109) -> 3183 | N112: =IF('INGRESO DE DATOS'!$W$19=1,'Tablas Guyanas y Santa Elena'!F109,'Tablas Resto de Ecuador'!F109) -> 2854 | O112: =IF('INGRESO DE DATOS'!$W$19=1,'Tablas Guyanas y Santa Elena'!G109,'Tablas Resto de Ecuador'!G109) -> 1741 | P112: =IF('INGRESO DE DATOS'!$W$19=1,'Tablas Guyanas y Santa Elena'!H109,'Tablas Resto de Ecuador'!H109) -> 1195 | Q112: =IF('INGRESO DE DATOS'!$W$19=1,'Tablas Guyanas y Santa Elena'!I109,'Tablas Resto de Ecuador'!I109) -> 812 | S112: 4798 | T112: 4598 | U112: 3183 | V112: 2854 | W112: 1741 | X112: 1195 | Y112: 812
A113: 47 | C113: 4782 | D113: 4756 | E113: 3304 | F113: 3015 | G113: 1761 | H113: 1273 | I113: 870 | K113: =IF('INGRESO DE DATOS'!$W$19=1,'Tablas Guyanas y Santa Elena'!C110,'Tablas Resto de Ecuador'!C110) -> 4782 | L113: =IF('INGRESO DE DATOS'!$W$19=1,'Tablas Guyanas y Santa Elena'!D110,'Tablas Resto de Ecuador'!D110) -> 4756 | M113: =IF('INGRESO DE DATOS'!$W$19=1,'Tablas Guyanas y Santa Elena'!E110,'Tablas Resto de Ecuador'!E110) -> 3304 | N113: =IF('INGRESO DE DATOS'!$W$19=1,'Tablas Guyanas y Santa Elena'!F110,'Tablas Resto de Ecuador'!F110) -> 3015 | O113: =IF('INGRESO DE DATOS'!$W$19=1,'Tablas Guyanas y Santa Elena'!G110,'Tablas Resto de Ecuador'!G110) -> 1761 | P113: =IF('INGRESO DE DATOS'!$W$19=1,'Tablas Guyanas y Santa Elena'!H110,'Tablas Resto de Ecuador'!H110) -> 1273 | Q113: =IF('INGRESO DE DATOS'!$W$19=1,'Tablas Guyanas y Santa Elena'!I110,'Tablas Resto de Ecuador'!I110) -> 870 | S113: 4782 | T113: 4756 | U113: 3304 | V113: 3015 | W113: 1761 | X113: 1273 | Y113: 870
A114: 48 | C114: 4862 | D114: 4900 | E114: 3437 | F114: 3038 | G114: 1802 | H114: 1358 | I114: 933 | K114: =IF('INGRESO DE DATOS'!$W$19=1,'Tablas Guyanas y Santa Elena'!C111,'Tablas Resto de Ecuador'!C111) -> 4862 | L114: =IF('INGRESO DE DATOS'!$W$19=1,'Tablas Guyanas y Santa Elena'!D111,'Tablas Resto de Ecuador'!D111) -> 4900 | M114: =IF('INGRESO DE DATOS'!$W$19=1,'Tablas Guyanas y Santa Elena'!E111,'Tablas Resto de Ecuador'!E111) -> 3437 | N114: =IF('INGRESO DE DATOS'!$W$19=1,'Tablas Guyanas y Santa Elena'!F111,'Tablas Resto de Ecuador'!F111) -> 3038 | O114: =IF('INGRESO DE DATOS'!$W$19=1,'Tablas Guyanas y Santa Elena'!G111,'Tablas Resto de Ecuador'!G111) -> 1802 | P114: =IF('INGRESO DE DATOS'!$W$19=1,'Tablas Guyanas y Santa Elena'!H111,'Tablas Resto de Ecuador'!H111) -> 1358 | Q114: =IF('INGRESO DE DATOS'!$W$19=1,'Tablas Guyanas y Santa Elena'!I111,'Tablas Resto de Ecuador'!I111) -> 933 | S114: 4862 | T114: 4900 | U114: 3437 | V114: 3038 | W114: 1802 | X114: 1358 | Y114: 933
A115: 49 | C115: 5063 | D115: 5016 | E115: 3577 | F115: 3124 | G115: 1868 | H115: 1453 | I115: 1001 | K115: =IF('INGRESO DE DATOS'!$W$19=1,'Tablas Guyanas y Santa Elena'!C112,'Tablas Resto de Ecuador'!C112) -> 5063 | L115: =IF('INGRESO DE DATOS'!$W$19=1,'Tablas Guyanas y Santa Elena'!D112,'Tablas Resto de Ecuador'!D112) -> 5016 | M115: =IF('INGRESO DE DATOS'!$W$19=1,'Tablas Guyanas y Santa Elena'!E112,'Tablas Resto de Ecuador'!E112) -> 3577 | N115: =IF('INGRESO DE DATOS'!$W$19=1,'Tablas Guyanas y Santa Elena'!F112,'Tablas Resto de Ecuador'!F112) -> 3124 | O115: =IF('INGRESO DE DATOS'!$W$19=1,'Tablas Guyanas y Santa Elena'!G112,'Tablas Resto de Ecuador'!G112) -> 1868 | P115: =IF('INGRESO DE DATOS'!$W$19=1,'Tablas Guyanas y Santa Elena'!H112,'Tablas Resto de Ecuador'!H112) -> 1453 | Q115: =IF('INGRESO DE DATOS'!$W$19=1,'Tablas Guyanas y Santa Elena'!I112,'Tablas Resto de Ecuador'!I112) -> 1001 | S115: 5063 | T115: 5016 | U115: 3577 | V115: 3124 | W115: 1868 | X115: 1453 | Y115: 1001
A116: 50 | C116: 5348 | D116: 5113 | E116: 3723 | F116: 3296 | G116: 1950 | H116: 1558 | I116: 1080 | K116: =IF('INGRESO DE DATOS'!$W$19=1,'Tablas Guyanas y Santa Elena'!C113,'Tablas Resto de Ecuador'!C113) -> 5348 | L116: =IF('INGRESO DE DATOS'!$W$19=1,'Tablas Guyanas y Santa Elena'!D113,'Tablas Resto de Ecuador'!D113) -> 5113 | M116: =IF('INGRESO DE DATOS'!$W$19=1,'Tablas Guyanas y Santa Elena'!E113,'Tablas Resto de Ecuador'!E113) -> 3723 | N116: =IF('INGRESO DE DATOS'!$W$19=1,'Tablas Guyanas y Santa Elena'!F113,'Tablas Resto de Ecuador'!F113) -> 3296 | O116: =IF('INGRESO DE DATOS'!$W$19=1,'Tablas Guyanas y Santa Elena'!G113,'Tablas Resto de Ecuador'!G113) -> 1950 | P116: =IF('INGRESO DE DATOS'!$W$19=1,'Tablas Guyanas y Santa Elena'!H113,'Tablas Resto de Ecuador'!H113) -> 1558 | Q116: =IF('INGRESO DE DATOS'!$W$19=1,'Tablas Guyanas y Santa Elena'!I113,'Tablas Resto de Ecuador'!I113) -> 1080 | S116: 5348 | T116: 5113 | U116: 3723 | V116: 3296 | W116: 1950 | X116: 1558 | Y116: 1080
A117: 51 | C117: 5683 | D117: 5215 | E117: 3884 | F117: 3518 | G117: 2045 | H117: 1690 | I117: 1177 | K117: =IF('INGRESO DE DATOS'!$W$19=1,'Tablas Guyanas y Santa Elena'!C114,'Tablas Resto de Ecuador'!C114) -> 5683 | L117: =IF('INGRESO DE DATOS'!$W$19=1,'Tablas Guyanas y Santa Elena'!D114,'Tablas Resto de Ecuador'!D114) -> 5215 | M117: =IF('INGRESO DE DATOS'!$W$19=1,'Tablas Guyanas y Santa Elena'!E114,'Tablas Resto de Ecuador'!E114) -> 3884 | N117: =IF('INGRESO DE DATOS'!$W$19=1,'Tablas Guyanas y Santa Elena'!F114,'Tablas Resto de Ecuador'!F114) -> 3518 | O117: =IF('INGRESO DE DATOS'!$W$19=1,'Tablas Guyanas y Santa Elena'!G114,'Tablas Resto de Ecuador'!G114) -> 2045 | P117: =IF('INGRESO DE DATOS'!$W$19=1,'Tablas Guyanas y Santa Elena'!H114,'Tablas Resto de Ecuador'!H114) -> 1690 | Q117: =IF('INGRESO DE DATOS'!$W$19=1,'Tablas Guyanas y Santa Elena'!I114,'Tablas Resto de Ecuador'!I114) -> 1177 | S117: 5683 | T117: 5215 | U117: 3884 | V117: 3518 | W117: 2045 | X117: 1690 | Y117: 1177
A118: 52 | C118: 6030 | D118: 5343 | E118: 4067 | F118: 3754 | G118: 2151 | H118: 1831 | I118: 1281 | K118: =IF('INGRESO DE DATOS'!$W$19=1,'Tablas Guyanas y Santa Elena'!C115,'Tablas Resto de Ecuador'!C115) -> 6030 | L118: =IF('INGRESO DE DATOS'!$W$19=1,'Tablas Guyanas y Santa Elena'!D115,'Tablas Resto de Ecuador'!D115) -> 5343 | M118: =IF('INGRESO DE DATOS'!$W$19=1,'Tablas Guyanas y Santa Elena'!E115,'Tablas Resto de Ecuador'!E115) -> 4067 | N118: =IF('INGRESO DE DATOS'!$W$19=1,'Tablas Guyanas y Santa Elena'!F115,'Tablas Resto de Ecuador'!F115) -> 3754 | O118: =IF('INGRESO DE DATOS'!$W$19=1,'Tablas Guyanas y Santa Elena'!G115,'Tablas Resto de Ecuador'!G115) -> 2151 | P118: =IF('INGRESO DE DATOS'!$W$19=1,'Tablas Guyanas y Santa Elena'!H115,'Tablas Resto de Ecuador'!H115) -> 1831 | Q118: =IF('INGRESO DE DATOS'!$W$19=1,'Tablas Guyanas y Santa Elena'!I115,'Tablas Resto de Ecuador'!I115) -> 1281 | S118: 6030 | T118: 5343 | U118: 4067 | V118: 3754 | W118: 2151 | X118: 1831 | Y118: 1281
A119: 53 | C119: 6353 | D119: 5521 | E119: 4281 | F119: 3967 | G119: 2264 | H119: 1955 | I119: 1395 | K119: =IF('INGRESO DE DATOS'!$W$19=1,'Tablas Guyanas y Santa Elena'!C116,'Tablas Resto de Ecuador'!C116) -> 6353 | L119: =IF('INGRESO DE DATOS'!$W$19=1,'Tablas Guyanas y Santa Elena'!D116,'Tablas Resto de Ecuador'!D116) -> 5521 | M119: =IF('INGRESO DE DATOS'!$W$19=1,'Tablas Guyanas y Santa Elena'!E116,'Tablas Resto de Ecuador'!E116) -> 4281 | N119: =IF('INGRESO DE DATOS'!$W$19=1,'Tablas Guyanas y Santa Elena'!F116,'Tablas Resto de Ecuador'!F116) -> 3967 | O119: =IF('INGRESO DE DATOS'!$W$19=1,'Tablas Guyanas y Santa Elena'!G116,'Tablas Resto de Ecuador'!G116) -> 2264 | P119: =IF('INGRESO DE DATOS'!$W$19=1,'Tablas Guyanas y Santa Elena'!H116,'Tablas Resto de Ecuador'!H116) -> 1955 | Q119: =IF('INGRESO DE DATOS'!$W$19=1,'Tablas Guyanas y Santa Elena'!I116,'Tablas Resto de Ecuador'!I116) -> 1395 | S119: 6353 | T119: 5521 | U119: 4281 | V119: 3967 | W119: 2264 | X119: 1955 | Y119: 1395
A120: 54 | C120: 6636 | D120: 5752 | E120: 4529 | F120: 4149 | G120: 2374 | H120: 2026 | I120: 1516 | K120: =IF('INGRESO DE DATOS'!$W$19=1,'Tablas Guyanas y Santa Elena'!C117,'Tablas Resto de Ecuador'!C117) -> 6636 | L120: =IF('INGRESO DE DATOS'!$W$19=1,'Tablas Guyanas y Santa Elena'!D117,'Tablas Resto de Ecuador'!D117) -> 5752 | M120: =IF('INGRESO DE DATOS'!$W$19=1,'Tablas Guyanas y Santa Elena'!E117,'Tablas Resto de Ecuador'!E117) -> 4529 | N120: =IF('INGRESO DE DATOS'!$W$19=1,'Tablas Guyanas y Santa Elena'!F117,'Tablas Resto de Ecuador'!F117) -> 4149 | O120: =IF('INGRESO DE DATOS'!$W$19=1,'Tablas Guyanas y Santa Elena'!G117,'Tablas Resto de Ecuador'!G117) -> 2374 | P120: =IF('INGRESO DE DATOS'!$W$19=1,'Tablas Guyanas y Santa Elena'!H117,'Tablas Resto de Ecuador'!H117) -> 2026 | Q120: =IF('INGRESO DE DATOS'!$W$19=1,'Tablas Guyanas y Santa Elena'!I117,'Tablas Resto de Ecuador'!I117) -> 1516 | S120: 6636 | T120: 5752 | U120: 4529 | V120: 4149 | W120: 2374 | X120: 2026 | Y120: 1516
A121: 55 | C121: 6903 | D121: 6020 | E121: 4806 | F121: 4323 | G121: 2483 | H121: 2100 | I121: 1645 | K121: =IF('INGRESO DE DATOS'!$W$19=1,'Tablas Guyanas y Santa Elena'!C118,'Tablas Resto de Ecuador'!C118) -> 6903 | L121: =IF('INGRESO DE DATOS'!$W$19=1,'Tablas Guyanas y Santa Elena'!D118,'Tablas Resto de Ecuador'!D118) -> 6020 | M121: =IF('INGRESO DE DATOS'!$W$19=1,'Tablas Guyanas y Santa Elena'!E118,'Tablas Resto de Ecuador'!E118) -> 4806 | N121: =IF('INGRESO DE DATOS'!$W$19=1,'Tablas Guyanas y Santa Elena'!F118,'Tablas Resto de Ecuador'!F118) -> 4323 | O121: =IF('INGRESO DE DATOS'!$W$19=1,'Tablas Guyanas y Santa Elena'!G118,'Tablas Resto de Ecuador'!G118) -> 2483 | P121: =IF('INGRESO DE DATOS'!$W$19=1,'Tablas Guyanas y Santa Elena'!H118,'Tablas Resto de Ecuador'!H118) -> 2100 | Q121: =IF('INGRESO DE DATOS'!$W$19=1,'Tablas Guyanas y Santa Elena'!I118,'Tablas Resto de Ecuador'!I118) -> 1645 | S121: 6903 | T121: 6020 | U121: 4806 | V121: 4323 | W121: 2483 | X121: 2100 | Y121: 1645
A122: 56 | C122: 7179 | D122: 6322 | E122: 5106 | F122: 4503 | G122: 2607 | H122: 2186 | I122: 1784 | K122: =IF('INGRESO DE DATOS'!$W$19=1,'Tablas Guyanas y Santa Elena'!C119,'Tablas Resto de Ecuador'!C119) -> 7179 | L122: =IF('INGRESO DE DATOS'!$W$19=1,'Tablas Guyanas y Santa Elena'!D119,'Tablas Resto de Ecuador'!D119) -> 6322 | M122: =IF('INGRESO DE DATOS'!$W$19=1,'Tablas Guyanas y Santa Elena'!E119,'Tablas Resto de Ecuador'!E119) -> 5106 | N122: =IF('INGRESO DE DATOS'!$W$19=1,'Tablas Guyanas y Santa Elena'!F119,'Tablas Resto de Ecuador'!F119) -> 4503 | O122: =IF('INGRESO DE DATOS'!$W$19=1,'Tablas Guyanas y Santa Elena'!G119,'Tablas Resto de Ecuador'!G119) -> 2607 | P122: =IF('INGRESO DE DATOS'!$W$19=1,'Tablas Guyanas y Santa Elena'!H119,'Tablas Resto de Ecuador'!H119) -> 2186 | Q122: =IF('INGRESO DE DATOS'!$W$19=1,'Tablas Guyanas y Santa Elena'!I119,'Tablas Resto de Ecuador'!I119) -> 1784 | S122: 7179 | T122: 6322 | U122: 5106 | V122: 4503 | W122: 2607 | X122: 2186 | Y122: 1784
A123: 57 | C123: 7489 | D123: 6582 | E123: 5425 | F123: 4701 | G123: 2760 | H123: 2291 | I123: 1935 | K123: =IF('INGRESO DE DATOS'!$W$19=1,'Tablas Guyanas y Santa Elena'!C120,'Tablas Resto de Ecuador'!C120) -> 7489 | L123: =IF('INGRESO DE DATOS'!$W$19=1,'Tablas Guyanas y Santa Elena'!D120,'Tablas Resto de Ecuador'!D120) -> 6582 | M123: =IF('INGRESO DE DATOS'!$W$19=1,'Tablas Guyanas y Santa Elena'!E120,'Tablas Resto de Ecuador'!E120) -> 5425 | N123: =IF('INGRESO DE DATOS'!$W$19=1,'Tablas Guyanas y Santa Elena'!F120,'Tablas Resto de Ecuador'!F120) -> 4701 | O123: =IF('INGRESO DE DATOS'!$W$19=1,'Tablas Guyanas y Santa Elena'!G120,'Tablas Resto de Ecuador'!G120) -> 2760 | P123: =IF('INGRESO DE DATOS'!$W$19=1,'Tablas Guyanas y Santa Elena'!H120,'Tablas Resto de Ecuador'!H120) -> 2291 | Q123: =IF('INGRESO DE DATOS'!$W$19=1,'Tablas Guyanas y Santa Elena'!I120,'Tablas Resto de Ecuador'!I120) -> 1935 | S123: 7489 | T123: 6582 | U123: 5425 | V123: 4701 | W123: 2760 | X123: 2291 | Y123: 1935
A124: 58 | C124: 7830 | D124: 6807 | E124: 5757 | F124: 4928 | G124: 2959 | H124: 2426 | I124: 2096 | K124: =IF('INGRESO DE DATOS'!$W$19=1,'Tablas Guyanas y Santa Elena'!C121,'Tablas Resto de Ecuador'!C121) -> 7830 | L124: =IF('INGRESO DE DATOS'!$W$19=1,'Tablas Guyanas y Santa Elena'!D121,'Tablas Resto de Ecuador'!D121) -> 6807 | M124: =IF('INGRESO DE DATOS'!$W$19=1,'Tablas Guyanas y Santa Elena'!E121,'Tablas Resto de Ecuador'!E121) -> 5757 | N124: =IF('INGRESO DE DATOS'!$W$19=1,'Tablas Guyanas y Santa Elena'!F121,'Tablas Resto de Ecuador'!F121) -> 4928 | O124: =IF('INGRESO DE DATOS'!$W$19=1,'Tablas Guyanas y Santa Elena'!G121,'Tablas Resto de Ecuador'!G121) -> 2959 | P124: =IF('INGRESO DE DATOS'!$W$19=1,'Tablas Guyanas y Santa Elena'!H121,'Tablas Resto de Ecuador'!H121) -> 2426 | Q124: =IF('INGRESO DE DATOS'!$W$19=1,'Tablas Guyanas y Santa Elena'!I121,'Tablas Resto de Ecuador'!I121) -> 2096 | S124: 7830 | T124: 6807 | U124: 5757 | V124: 4928 | W124: 2959 | X124: 2426 | Y124: 2096
A125: 59 | C125: 8091 | D125: 7035 | E125: 6066 | F125: 5151 | G125: 3204 | H125: 2588 | I125: 2267 | K125: =IF('INGRESO DE DATOS'!$W$19=1,'Tablas Guyanas y Santa Elena'!C122,'Tablas Resto de Ecuador'!C122) -> 8091 | L125: =IF('INGRESO DE DATOS'!$W$19=1,'Tablas Guyanas y Santa Elena'!D122,'Tablas Resto de Ecuador'!D122) -> 7035 | M125: =IF('INGRESO DE DATOS'!$W$19=1,'Tablas Guyanas y Santa Elena'!E122,'Tablas Resto de Ecuador'!E122) -> 6066 | N125: =IF('INGRESO DE DATOS'!$W$19=1,'Tablas Guyanas y Santa Elena'!F122,'Tablas Resto de Ecuador'!F122) -> 5151 | O125: =IF('INGRESO DE DATOS'!$W$19=1,'Tablas Guyanas y Santa Elena'!G122,'Tablas Resto de Ecuador'!G122) -> 3204 | P125: =IF('INGRESO DE DATOS'!$W$19=1,'Tablas Guyanas y Santa Elena'!H122,'Tablas Resto de Ecuador'!H122) -> 2588 | Q125: =IF('INGRESO DE DATOS'!$W$19=1,'Tablas Guyanas y Santa Elena'!I122,'Tablas Resto de Ecuador'!I122) -> 2267 | S125: 8091 | T125: 7035 | U125: 6066 | V125: 5151 | W125: 3204 | X125: 2588 | Y125: 2267
A126: 60 | C126: 8351 | D126: 7261 | E126: 6356 | F126: 5362 | G126: 3485 | H126: 2771 | I126: 2336 | K126: =IF('INGRESO DE DATOS'!$W$19=1,'Tablas Guyanas y Santa Elena'!C123,'Tablas Resto de Ecuador'!C123) -> 8351 | L126: =IF('INGRESO DE DATOS'!$W$19=1,'Tablas Guyanas y Santa Elena'!D123,'Tablas Resto de Ecuador'!D123) -> 7261 | M126: =IF('INGRESO DE DATOS'!$W$19=1,'Tablas Guyanas y Santa Elena'!E123,'Tablas Resto de Ecuador'!E123) -> 6356 | N126: =IF('INGRESO DE DATOS'!$W$19=1,'Tablas Guyanas y Santa Elena'!F123,'Tablas Resto de Ecuador'!F123) -> 5362 | O126: =IF('INGRESO DE DATOS'!$W$19=1,'Tablas Guyanas y Santa Elena'!G123,'Tablas Resto de Ecuador'!G123) -> 3485 | P126: =IF('INGRESO DE DATOS'!$W$19=1,'Tablas Guyanas y Santa Elena'!H123,'Tablas Resto de Ecuador'!H123) -> 2771 | Q126: =IF('INGRESO DE DATOS'!$W$19=1,'Tablas Guyanas y Santa Elena'!I123,'Tablas Resto de Ecuador'!I123) -> 2336 | S126: 8351 | T126: 7261 | U126: 6356 | V126: 5362 | W126: 3485 | X126: 2771 | Y126: 2336
A127: 61 | C127: 8673 | D127: 7539 | E127: 6681 | F127: 5611 | G127: 3801 | H127: 2978 | I127: 2366 | K127: =IF('INGRESO DE DATOS'!$W$19=1,'Tablas Guyanas y Santa Elena'!C124,'Tablas Resto de Ecuador'!C124) -> 8673 | L127: =IF('INGRESO DE DATOS'!$W$19=1,'Tablas Guyanas y Santa Elena'!D124,'Tablas Resto de Ecuador'!D124) -> 7539 | M127: =IF('INGRESO DE DATOS'!$W$19=1,'Tablas Guyanas y Santa Elena'!E124,'Tablas Resto de Ecuador'!E124) -> 6681 | N127: =IF('INGRESO DE DATOS'!$W$19=1,'Tablas Guyanas y Santa Elena'!F124,'Tablas Resto de Ecuador'!F124) -> 5611 | O127: =IF('INGRESO DE DATOS'!$W$19=1,'Tablas Guyanas y Santa Elena'!G124,'Tablas Resto de Ecuador'!G124) -> 3801 | P127: =IF('INGRESO DE DATOS'!$W$19=1,'Tablas Guyanas y Santa Elena'!H124,'Tablas Resto de Ecuador'!H124) -> 2978 | Q127: =IF('INGRESO DE DATOS'!$W$19=1,'Tablas Guyanas y Santa Elena'!I124,'Tablas Resto de Ecuador'!I124) -> 2366 | S127: 8673 | T127: 7539 | U127: 6681 | V127: 5611 | W127: 3801 | X127: 2978 | Y127: 2366
A128: 62 | C128: 9061 | D128: 7878 | E128: 7094 | F128: 5949 | G128: 4151 | H128: 3213 | I128: 2446 | K128: =IF('INGRESO DE DATOS'!$W$19=1,'Tablas Guyanas y Santa Elena'!C125,'Tablas Resto de Ecuador'!C125) -> 9061 | L128: =IF('INGRESO DE DATOS'!$W$19=1,'Tablas Guyanas y Santa Elena'!D125,'Tablas Resto de Ecuador'!D125) -> 7878 | M128: =IF('INGRESO DE DATOS'!$W$19=1,'Tablas Guyanas y Santa Elena'!E125,'Tablas Resto de Ecuador'!E125) -> 7094 | N128: =IF('INGRESO DE DATOS'!$W$19=1,'Tablas Guyanas y Santa Elena'!F125,'Tablas Resto de Ecuador'!F125) -> 5949 | O128: =IF('INGRESO DE DATOS'!$W$19=1,'Tablas Guyanas y Santa Elena'!G125,'Tablas Resto de Ecuador'!G125) -> 4151 | P128: =IF('INGRESO DE DATOS'!$W$19=1,'Tablas Guyanas y Santa Elena'!H125,'Tablas Resto de Ecuador'!H125) -> 3213 | Q128: =IF('INGRESO DE DATOS'!$W$19=1,'Tablas Guyanas y Santa Elena'!I125,'Tablas Resto de Ecuador'!I125) -> 2446 | S128: 9061 | T128: 7878 | U128: 7094 | V128: 5949 | W128: 4151 | X128: 3213 | Y128: 2446
A129: 63 | C129: 9528 | D129: 8283 | E129: 7558 | F129: 6426 | G129: 4531 | H129: 3477 | I129: 2618 | K129: =IF('INGRESO DE DATOS'!$W$19=1,'Tablas Guyanas y Santa Elena'!C126,'Tablas Resto de Ecuador'!C126) -> 9528 | L129: =IF('INGRESO DE DATOS'!$W$19=1,'Tablas Guyanas y Santa Elena'!D126,'Tablas Resto de Ecuador'!D126) -> 8283 | M129: =IF('INGRESO DE DATOS'!$W$19=1,'Tablas Guyanas y Santa Elena'!E126,'Tablas Resto de Ecuador'!E126) -> 7558 | N129: =IF('INGRESO DE DATOS'!$W$19=1,'Tablas Guyanas y Santa Elena'!F126,'Tablas Resto de Ecuador'!F126) -> 6426 | O129: =IF('INGRESO DE DATOS'!$W$19=1,'Tablas Guyanas y Santa Elena'!G126,'Tablas Resto de Ecuador'!G126) -> 4531 | P129: =IF('INGRESO DE DATOS'!$W$19=1,'Tablas Guyanas y Santa Elena'!H126,'Tablas Resto de Ecuador'!H126) -> 3477 | Q129: =IF('INGRESO DE DATOS'!$W$19=1,'Tablas Guyanas y Santa Elena'!I126,'Tablas Resto de Ecuador'!I126) -> 2618 | S129: 9528 | T129: 8283 | U129: 7558 | V129: 6426 | W129: 4531 | X129: 3477 | Y129: 2618
A130: 64 | C130: 10077 | D130: 8764 | E130: 7988 | F130: 7045 | G130: 4905 | H130: 3757 | I130: 2917 | K130: =IF('INGRESO DE DATOS'!$W$19=1,'Tablas Guyanas y Santa Elena'!C127,'Tablas Resto de Ecuador'!C127) -> 10077 | L130: =IF('INGRESO DE DATOS'!$W$19=1,'Tablas Guyanas y Santa Elena'!D127,'Tablas Resto de Ecuador'!D127) -> 8764 | M130: =IF('INGRESO DE DATOS'!$W$19=1,'Tablas Guyanas y Santa Elena'!E127,'Tablas Resto de Ecuador'!E127) -> 7988 | N130: =IF('INGRESO DE DATOS'!$W$19=1,'Tablas Guyanas y Santa Elena'!F127,'Tablas Resto de Ecuador'!F127) -> 7045 | O130: =IF('INGRESO DE DATOS'!$W$19=1,'Tablas Guyanas y Santa Elena'!G127,'Tablas Resto de Ecuador'!G127) -> 4905 | P130: =IF('INGRESO DE DATOS'!$W$19=1,'Tablas Guyanas y Santa Elena'!H127,'Tablas Resto de Ecuador'!H127) -> 3757 | Q130: =IF('INGRESO DE DATOS'!$W$19=1,'Tablas Guyanas y Santa Elena'!I127,'Tablas Resto de Ecuador'!I127) -> 2917 | S130: 10077 | T130: 8764 | U130: 7988 | V130: 7045 | W130: 4905 | X130: 3757 | Y130: 2917
A131: 65 | C131: 10737 | D131: 9333 | E131: 8510 | F131: 7771 | G131: 5274 | H131: 4049 | I131: 3315 | K131: =IF('INGRESO DE DATOS'!$W$19=1,'Tablas Guyanas y Santa Elena'!C128,'Tablas Resto de Ecuador'!C128) -> 10737 | L131: =IF('INGRESO DE DATOS'!$W$19=1,'Tablas Guyanas y Santa Elena'!D128,'Tablas Resto de Ecuador'!D128) -> 9333 | M131: =IF('INGRESO DE DATOS'!$W$19=1,'Tablas Guyanas y Santa Elena'!E128,'Tablas Resto de Ecuador'!E128) -> 8510 | N131: =IF('INGRESO DE DATOS'!$W$19=1,'Tablas Guyanas y Santa Elena'!F128,'Tablas Resto de Ecuador'!F128) -> 7771 | O131: =IF('INGRESO DE DATOS'!$W$19=1,'Tablas Guyanas y Santa Elena'!G128,'Tablas Resto de Ecuador'!G128) -> 5274 | P131: =IF('INGRESO DE DATOS'!$W$19=1,'Tablas Guyanas y Santa Elena'!H128,'Tablas Resto de Ecuador'!H128) -> 4049 | Q131: =IF('INGRESO DE DATOS'!$W$19=1,'Tablas Guyanas y Santa Elena'!I128,'Tablas Resto de Ecuador'!I128) -> 3315 | S131: 10737 | T131: 9333 | U131: 8510 | V131: 7771 | W131: 5274 | X131: 4049 | Y131: 3315
A132: 66 | C132: 11506 | D132: 10007 | E132: 9126 | F132: 8393 | G132: 5694 | H132: 4376 | I132: 3760 | K132: =IF('INGRESO DE DATOS'!$W$19=1,'Tablas Guyanas y Santa Elena'!C129,'Tablas Resto de Ecuador'!C129) -> 11506 | L132: =IF('INGRESO DE DATOS'!$W$19=1,'Tablas Guyanas y Santa Elena'!D129,'Tablas Resto de Ecuador'!D129) -> 10007 | M132: =IF('INGRESO DE DATOS'!$W$19=1,'Tablas Guyanas y Santa Elena'!E129,'Tablas Resto de Ecuador'!E129) -> 9126 | N132: =IF('INGRESO DE DATOS'!$W$19=1,'Tablas Guyanas y Santa Elena'!F129,'Tablas Resto de Ecuador'!F129) -> 8393 | O132: =IF('INGRESO DE DATOS'!$W$19=1,'Tablas Guyanas y Santa Elena'!G129,'Tablas Resto de Ecuador'!G129) -> 5694 | P132: =IF('INGRESO DE DATOS'!$W$19=1,'Tablas Guyanas y Santa Elena'!H129,'Tablas Resto de Ecuador'!H129) -> 4376 | Q132: =IF('INGRESO DE DATOS'!$W$19=1,'Tablas Guyanas y Santa Elena'!I129,'Tablas Resto de Ecuador'!I129) -> 3760 | S132: 11506 | T132: 10007 | U132: 9126 | V132: 8393 | W132: 5694 | X132: 4376 | Y132: 3760
A133: 67 | C133: 12425 | D133: 10807 | E133: 9855 | F133: 9069 | G133: 6223 | H133: 4763 | I133: 4195 | K133: =IF('INGRESO DE DATOS'!$W$19=1,'Tablas Guyanas y Santa Elena'!C130,'Tablas Resto de Ecuador'!C130) -> 12425 | L133: =IF('INGRESO DE DATOS'!$W$19=1,'Tablas Guyanas y Santa Elena'!D130,'Tablas Resto de Ecuador'!D130) -> 10807 | M133: =IF('INGRESO DE DATOS'!$W$19=1,'Tablas Guyanas y Santa Elena'!E130,'Tablas Resto de Ecuador'!E130) -> 9855 | N133: =IF('INGRESO DE DATOS'!$W$19=1,'Tablas Guyanas y Santa Elena'!F130,'Tablas Resto de Ecuador'!F130) -> 9069 | O133: =IF('INGRESO DE DATOS'!$W$19=1,'Tablas Guyanas y Santa Elena'!G130,'Tablas Resto de Ecuador'!G130) -> 6223 | P133: =IF('INGRESO DE DATOS'!$W$19=1,'Tablas Guyanas y Santa Elena'!H130,'Tablas Resto de Ecuador'!H130) -> 4763 | Q133: =IF('INGRESO DE DATOS'!$W$19=1,'Tablas Guyanas y Santa Elena'!I130,'Tablas Resto de Ecuador'!I130) -> 4195 | S133: 12425 | T133: 10807 | U133: 9855 | V133: 9069 | W133: 6223 | X133: 4763 | Y133: 4195
A134: 68 | C134: 13484 | D134: 11721 | E134: 10692 | F134: 9833 | G134: 6919 | H134: 5231 | I134: 4558 | K134: =IF('INGRESO DE DATOS'!$W$19=1,'Tablas Guyanas y Santa Elena'!C131,'Tablas Resto de Ecuador'!C131) -> 13484 | L134: =IF('INGRESO DE DATOS'!$W$19=1,'Tablas Guyanas y Santa Elena'!D131,'Tablas Resto de Ecuador'!D131) -> 11721 | M134: =IF('INGRESO DE DATOS'!$W$19=1,'Tablas Guyanas y Santa Elena'!E131,'Tablas Resto de Ecuador'!E131) -> 10692 | N134: =IF('INGRESO DE DATOS'!$W$19=1,'Tablas Guyanas y Santa Elena'!F131,'Tablas Resto de Ecuador'!F131) -> 9833 | O134: =IF('INGRESO DE DATOS'!$W$19=1,'Tablas Guyanas y Santa Elena'!G131,'Tablas Resto de Ecuador'!G131) -> 6919 | P134: =IF('INGRESO DE DATOS'!$W$19=1,'Tablas Guyanas y Santa Elena'!H131,'Tablas Resto de Ecuador'!H131) -> 5231 | Q134: =IF('INGRESO DE DATOS'!$W$19=1,'Tablas Guyanas y Santa Elena'!I131,'Tablas Resto de Ecuador'!I131) -> 4558 | S134: 13484 | T134: 11721 | U134: 10692 | V134: 9833 | W134: 6919 | X134: 5231 | Y134: 4558
A135: 69 | C135: 14713 | D135: 12795 | E135: 11666 | F135: 10738 | G135: 7376 | H135: 5750 | I135: 4819 | K135: =IF('INGRESO DE DATOS'!$W$19=1,'Tablas Guyanas y Santa Elena'!C132,'Tablas Resto de Ecuador'!C132) -> 14713 | L135: =IF('INGRESO DE DATOS'!$W$19=1,'Tablas Guyanas y Santa Elena'!D132,'Tablas Resto de Ecuador'!D132) -> 12795 | M135: =IF('INGRESO DE DATOS'!$W$19=1,'Tablas Guyanas y Santa Elena'!E132,'Tablas Resto de Ecuador'!E132) -> 11666 | N135: =IF('INGRESO DE DATOS'!$W$19=1,'Tablas Guyanas y Santa Elena'!F132,'Tablas Resto de Ecuador'!F132) -> 10738 | O135: =IF('INGRESO DE DATOS'!$W$19=1,'Tablas Guyanas y Santa Elena'!G132,'Tablas Resto de Ecuador'!G132) -> 7376 | P135: =IF('INGRESO DE DATOS'!$W$19=1,'Tablas Guyanas y Santa Elena'!H132,'Tablas Resto de Ecuador'!H132) -> 5750 | Q135: =IF('INGRESO DE DATOS'!$W$19=1,'Tablas Guyanas y Santa Elena'!I132,'Tablas Resto de Ecuador'!I132) -> 4819 | S135: 14713 | T135: 12795 | U135: 11666 | V135: 10738 | W135: 7376 | X135: 5750 | Y135: 4819
A136: 70 | C136: 16137 | D136: 14033 | E136: 12683 | F136: 11950 | G136: 8155 | H136: 6304 | I136: 4983 | K136: =IF('INGRESO DE DATOS'!$W$19=1,'Tablas Guyanas y Santa Elena'!C133,'Tablas Resto de Ecuador'!C133) -> 16137 | L136: =IF('INGRESO DE DATOS'!$W$19=1,'Tablas Guyanas y Santa Elena'!D133,'Tablas Resto de Ecuador'!D133) -> 14033 | M136: =IF('INGRESO DE DATOS'!$W$19=1,'Tablas Guyanas y Santa Elena'!E133,'Tablas Resto de Ecuador'!E133) -> 12683 | N136: =IF('INGRESO DE DATOS'!$W$19=1,'Tablas Guyanas y Santa Elena'!F133,'Tablas Resto de Ecuador'!F133) -> 11950 | O136: =IF('INGRESO DE DATOS'!$W$19=1,'Tablas Guyanas y Santa Elena'!G133,'Tablas Resto de Ecuador'!G133) -> 8155 | P136: =IF('INGRESO DE DATOS'!$W$19=1,'Tablas Guyanas y Santa Elena'!H133,'Tablas Resto de Ecuador'!H133) -> 6304 | Q136: =IF('INGRESO DE DATOS'!$W$19=1,'Tablas Guyanas y Santa Elena'!I133,'Tablas Resto de Ecuador'!I133) -> 4983 | S136: 16137 | T136: 14033 | U136: 12683 | V136: 11950 | W136: 8155 | X136: 6304 | Y136: 4983
A137: 71 | C137: 17773 | D137: 15456 | E137: 14090 | F137: 13159 | G137: 8984 | H137: 6940 | I137: 5150 | K137: =IF('INGRESO DE DATOS'!$W$19=1,'Tablas Guyanas y Santa Elena'!C134,'Tablas Resto de Ecuador'!C134) -> 17773 | L137: =IF('INGRESO DE DATOS'!$W$19=1,'Tablas Guyanas y Santa Elena'!D134,'Tablas Resto de Ecuador'!D134) -> 15456 | M137: =IF('INGRESO DE DATOS'!$W$19=1,'Tablas Guyanas y Santa Elena'!E134,'Tablas Resto de Ecuador'!E134) -> 14090 | N137: =IF('INGRESO DE DATOS'!$W$19=1,'Tablas Guyanas y Santa Elena'!F134,'Tablas Resto de Ecuador'!F134) -> 13159 | O137: =IF('INGRESO DE DATOS'!$W$19=1,'Tablas Guyanas y Santa Elena'!G134,'Tablas Resto de Ecuador'!G134) -> 8984 | P137: =IF('INGRESO DE DATOS'!$W$19=1,'Tablas Guyanas y Santa Elena'!H134,'Tablas Resto de Ecuador'!H134) -> 6940 | Q137: =IF('INGRESO DE DATOS'!$W$19=1,'Tablas Guyanas y Santa Elena'!I134,'Tablas Resto de Ecuador'!I134) -> 5150 | S137: 17773 | T137: 15456 | U137: 14090 | V137: 13159 | W137: 8984 | X137: 6940 | Y137: 5150
A138: 72 | C138: 19660 | D138: 17095 | E138: 15590 | F138: 14563 | G138: 9943 | H138: 7705 | I138: 5411 | K138: =IF('INGRESO DE DATOS'!$W$19=1,'Tablas Guyanas y Santa Elena'!C135,'Tablas Resto de Ecuador'!C135) -> 19660 | L138: =IF('INGRESO DE DATOS'!$W$19=1,'Tablas Guyanas y Santa Elena'!D135,'Tablas Resto de Ecuador'!D135) -> 17095 | M138: =IF('INGRESO DE DATOS'!$W$19=1,'Tablas Guyanas y Santa Elena'!E135,'Tablas Resto de Ecuador'!E135) -> 15590 | N138: =IF('INGRESO DE DATOS'!$W$19=1,'Tablas Guyanas y Santa Elena'!F135,'Tablas Resto de Ecuador'!F135) -> 14563 | O138: =IF('INGRESO DE DATOS'!$W$19=1,'Tablas Guyanas y Santa Elena'!G135,'Tablas Resto de Ecuador'!G135) -> 9943 | P138: =IF('INGRESO DE DATOS'!$W$19=1,'Tablas Guyanas y Santa Elena'!H135,'Tablas Resto de Ecuador'!H135) -> 7705 | Q138: =IF('INGRESO DE DATOS'!$W$19=1,'Tablas Guyanas y Santa Elena'!I135,'Tablas Resto de Ecuador'!I135) -> 5411 | S138: 19660 | T138: 17095 | U138: 15590 | V138: 14563 | W138: 9943 | X138: 7705 | Y138: 5411
A139: 73 | C139: 21837 | D139: 18987 | E139: 17309 | F139: 16167 | G139: 11034 | H139: 8644 | I139: 5857 | K139: =IF('INGRESO DE DATOS'!$W$19=1,'Tablas Guyanas y Santa Elena'!C136,'Tablas Resto de Ecuador'!C136) -> 21837 | L139: =IF('INGRESO DE DATOS'!$W$19=1,'Tablas Guyanas y Santa Elena'!D136,'Tablas Resto de Ecuador'!D136) -> 18987 | M139: =IF('INGRESO DE DATOS'!$W$19=1,'Tablas Guyanas y Santa Elena'!E136,'Tablas Resto de Ecuador'!E136) -> 17309 | N139: =IF('INGRESO DE DATOS'!$W$19=1,'Tablas Guyanas y Santa Elena'!F136,'Tablas Resto de Ecuador'!F136) -> 16167 | O139: =IF('INGRESO DE DATOS'!$W$19=1,'Tablas Guyanas y Santa Elena'!G136,'Tablas Resto de Ecuador'!G136) -> 11034 | P139: =IF('INGRESO DE DATOS'!$W$19=1,'Tablas Guyanas y Santa Elena'!H136,'Tablas Resto de Ecuador'!H136) -> 8644 | Q139: =IF('INGRESO DE DATOS'!$W$19=1,'Tablas Guyanas y Santa Elena'!I136,'Tablas Resto de Ecuador'!I136) -> 5857 | S139: 21837 | T139: 18987 | U139: 17309 | V139: 16167 | W139: 11034 | X139: 8644 | Y139: 5857
A140: 74 | C140: 23698 | D140: 21166 | E140: 19299 | F140: 18028 | G140: 12307 | H140: 9799 | I140: 6536 | K140: =IF('INGRESO DE DATOS'!$W$19=1,'Tablas Guyanas y Santa Elena'!C137,'Tablas Resto de Ecuador'!C137) -> 23698 | L140: =IF('INGRESO DE DATOS'!$W$19=1,'Tablas Guyanas y Santa Elena'!D137,'Tablas Resto de Ecuador'!D137) -> 21166 | M140: =IF('INGRESO DE DATOS'!$W$19=1,'Tablas Guyanas y Santa Elena'!E137,'Tablas Resto de Ecuador'!E137) -> 19299 | N140: =IF('INGRESO DE DATOS'!$W$19=1,'Tablas Guyanas y Santa Elena'!F137,'Tablas Resto de Ecuador'!F137) -> 18028 | O140: =IF('INGRESO DE DATOS'!$W$19=1,'Tablas Guyanas y Santa Elena'!G137,'Tablas Resto de Ecuador'!G137) -> 12307 | P140: =IF('INGRESO DE DATOS'!$W$19=1,'Tablas Guyanas y Santa Elena'!H137,'Tablas Resto de Ecuador'!H137) -> 9799 | Q140: =IF('INGRESO DE DATOS'!$W$19=1,'Tablas Guyanas y Santa Elena'!I137,'Tablas Resto de Ecuador'!I137) -> 6536 | S140: 23698 | T140: 21166 | U140: 19299 | V140: 18028 | W140: 12307 | X140: 9799 | Y140: 6536
A141: 75 | C141: 25695 | D141: 23670 | E141: 21494 | F141: 20285 | G141: 13809 | H141: 10537 | I141: 7389 | K141: =IF('INGRESO DE DATOS'!$W$19=1,'Tablas Guyanas y Santa Elena'!C138,'Tablas Resto de Ecuador'!C138) -> 25695 | L141: =IF('INGRESO DE DATOS'!$W$19=1,'Tablas Guyanas y Santa Elena'!D138,'Tablas Resto de Ecuador'!D138) -> 23670 | M141: =IF('INGRESO DE DATOS'!$W$19=1,'Tablas Guyanas y Santa Elena'!E138,'Tablas Resto de Ecuador'!E138) -> 21494 | N141: =IF('INGRESO DE DATOS'!$W$19=1,'Tablas Guyanas y Santa Elena'!F138,'Tablas Resto de Ecuador'!F138) -> 20285 | O141: =IF('INGRESO DE DATOS'!$W$19=1,'Tablas Guyanas y Santa Elena'!G138,'Tablas Resto de Ecuador'!G138) -> 13809 | P141: =IF('INGRESO DE DATOS'!$W$19=1,'Tablas Guyanas y Santa Elena'!H138,'Tablas Resto de Ecuador'!H138) -> 10537 | Q141: =IF('INGRESO DE DATOS'!$W$19=1,'Tablas Guyanas y Santa Elena'!I138,'Tablas Resto de Ecuador'!I138) -> 7389 | S141: 25695 | T141: 23670 | U141: 21494 | V141: 20285 | W141: 13809 | X141: 10537 | Y141: 7389
A142: 76 | C142: 27822 | D142: 26543 | E142: 24183 | F142: 22744 | G142: 15483 | H142: 11316 | I142: 8186 | K142: =IF('INGRESO DE DATOS'!$W$19=1,'Tablas Guyanas y Santa Elena'!C139,'Tablas Resto de Ecuador'!C139) -> 27822 | L142: =IF('INGRESO DE DATOS'!$W$19=1,'Tablas Guyanas y Santa Elena'!D139,'Tablas Resto de Ecuador'!D139) -> 26543 | M142: =IF('INGRESO DE DATOS'!$W$19=1,'Tablas Guyanas y Santa Elena'!E139,'Tablas Resto de Ecuador'!E139) -> 24183 | N142: =IF('INGRESO DE DATOS'!$W$19=1,'Tablas Guyanas y Santa Elena'!F139,'Tablas Resto de Ecuador'!F139) -> 22744 | O142: =IF('INGRESO DE DATOS'!$W$19=1,'Tablas Guyanas y Santa Elena'!G139,'Tablas Resto de Ecuador'!G139) -> 15483 | P142: =IF('INGRESO DE DATOS'!$W$19=1,'Tablas Guyanas y Santa Elena'!H139,'Tablas Resto de Ecuador'!H139) -> 11316 | Q142: =IF('INGRESO DE DATOS'!$W$19=1,'Tablas Guyanas y Santa Elena'!I139,'Tablas Resto de Ecuador'!I139) -> 8186 | S142: 27822 | T142: 26543 | U142: 24183 | V142: 22744 | W142: 15483 | X142: 11316 | Y142: 8186
A143: 77 | C143: 29982 | D143: 29646 | E143: 27180 | F143: 25261 | G143: 17392 | H143: 12132 | I143: 8745 | K143: =IF('INGRESO DE DATOS'!$W$19=1,'Tablas Guyanas y Santa Elena'!C140,'Tablas Resto de Ecuador'!C140) -> 29982 | L143: =IF('INGRESO DE DATOS'!$W$19=1,'Tablas Guyanas y Santa Elena'!D140,'Tablas Resto de Ecuador'!D140) -> 29646 | M143: =IF('INGRESO DE DATOS'!$W$19=1,'Tablas Guyanas y Santa Elena'!E140,'Tablas Resto de Ecuador'!E140) -> 27180 | N143: =IF('INGRESO DE DATOS'!$W$19=1,'Tablas Guyanas y Santa Elena'!F140,'Tablas Resto de Ecuador'!F140) -> 25261 | O143: =IF('INGRESO DE DATOS'!$W$19=1,'Tablas Guyanas y Santa Elena'!G140,'Tablas Resto de Ecuador'!G140) -> 17392 | P143: =IF('INGRESO DE DATOS'!$W$19=1,'Tablas Guyanas y Santa Elena'!H140,'Tablas Resto de Ecuador'!H140) -> 12132 | Q143: =IF('INGRESO DE DATOS'!$W$19=1,'Tablas Guyanas y Santa Elena'!I140,'Tablas Resto de Ecuador'!I140) -> 8745 | S143: 29982 | T143: 29646 | U143: 27180 | V143: 25261 | W143: 17392 | X143: 12132 | Y143: 8745
A144: 78 | C144: 32076 | D144: 31834 | E144: 29422 | F144: 27200 | G144: 18729 | H144: 12979 | I144: 9313 | K144: =IF('INGRESO DE DATOS'!$W$19=1,'Tablas Guyanas y Santa Elena'!C141,'Tablas Resto de Ecuador'!C141) -> 32076 | L144: =IF('INGRESO DE DATOS'!$W$19=1,'Tablas Guyanas y Santa Elena'!D141,'Tablas Resto de Ecuador'!D141) -> 31834 | M144: =IF('INGRESO DE DATOS'!$W$19=1,'Tablas Guyanas y Santa Elena'!E141,'Tablas Resto de Ecuador'!E141) -> 29422 | N144: =IF('INGRESO DE DATOS'!$W$19=1,'Tablas Guyanas y Santa Elena'!F141,'Tablas Resto de Ecuador'!F141) -> 27200 | O144: =IF('INGRESO DE DATOS'!$W$19=1,'Tablas Guyanas y Santa Elena'!G141,'Tablas Resto de Ecuador'!G141) -> 18729 | P144: =IF('INGRESO DE DATOS'!$W$19=1,'Tablas Guyanas y Santa Elena'!H141,'Tablas Resto de Ecuador'!H141) -> 12979 | Q144: =IF('INGRESO DE DATOS'!$W$19=1,'Tablas Guyanas y Santa Elena'!I141,'Tablas Resto de Ecuador'!I141) -> 9313 | S144: 32076 | T144: 31834 | U144: 29422 | V144: 27200 | W144: 18729 | X144: 12979 | Y144: 9313
A145: 79 | C145: 34106 | D145: 33965 | E145: 31516 | F145: 29136 | G145: 20046 | H145: 13849 | I145: 9877 | K145: =IF('INGRESO DE DATOS'!$W$19=1,'Tablas Guyanas y Santa Elena'!C142,'Tablas Resto de Ecuador'!C142) -> 34106 | L145: =IF('INGRESO DE DATOS'!$W$19=1,'Tablas Guyanas y Santa Elena'!D142,'Tablas Resto de Ecuador'!D142) -> 33965 | M145: =IF('INGRESO DE DATOS'!$W$19=1,'Tablas Guyanas y Santa Elena'!E142,'Tablas Resto de Ecuador'!E142) -> 31516 | N145: =IF('INGRESO DE DATOS'!$W$19=1,'Tablas Guyanas y Santa Elena'!F142,'Tablas Resto de Ecuador'!F142) -> 29136 | O145: =IF('INGRESO DE DATOS'!$W$19=1,'Tablas Guyanas y Santa Elena'!G142,'Tablas Resto de Ecuador'!G142) -> 20046 | P145: =IF('INGRESO DE DATOS'!$W$19=1,'Tablas Guyanas y Santa Elena'!H142,'Tablas Resto de Ecuador'!H142) -> 13849 | Q145: =IF('INGRESO DE DATOS'!$W$19=1,'Tablas Guyanas y Santa Elena'!I142,'Tablas Resto de Ecuador'!I142) -> 9877 | S145: 34106 | T145: 33965 | U145: 31516 | V145: 29136 | W145: 20046 | X145: 13849 | Y145: 9877
A146: 80 | C146: 36136 | D146: 36097 | E146: 33611 | F146: 31156 | G146: 21405 | H146: 14729 | I146: 10423 | K146: =IF('INGRESO DE DATOS'!$W$19=1,'Tablas Guyanas y Santa Elena'!C143,'Tablas Resto de Ecuador'!C143) -> 36136 | L146: =IF('INGRESO DE DATOS'!$W$19=1,'Tablas Guyanas y Santa Elena'!D143,'Tablas Resto de Ecuador'!D143) -> 36097 | M146: =IF('INGRESO DE DATOS'!$W$19=1,'Tablas Guyanas y Santa Elena'!E143,'Tablas Resto de Ecuador'!E143) -> 33611 | N146: =IF('INGRESO DE DATOS'!$W$19=1,'Tablas Guyanas y Santa Elena'!F143,'Tablas Resto de Ecuador'!F143) -> 31156 | O146: =IF('INGRESO DE DATOS'!$W$19=1,'Tablas Guyanas y Santa Elena'!G143,'Tablas Resto de Ecuador'!G143) -> 21405 | P146: =IF('INGRESO DE DATOS'!$W$19=1,'Tablas Guyanas y Santa Elena'!H143,'Tablas Resto de Ecuador'!H143) -> 14729 | Q146: =IF('INGRESO DE DATOS'!$W$19=1,'Tablas Guyanas y Santa Elena'!I143,'Tablas Resto de Ecuador'!I143) -> 10423 | S146: 36136 | T146: 36097 | U146: 33611 | V146: 31156 | W146: 21405 | X146: 14729 | Y146: 10423
A147: 81 | C147: 36136 | D147: 36097 | E147: 33611 | F147: 31156 | G147: 21405 | H147: 14729 | I147: 10423 | K147: =IF('INGRESO DE DATOS'!$W$19=1,'Tablas Guyanas y Santa Elena'!C144,'Tablas Resto de Ecuador'!C144) -> 36136 | L147: =IF('INGRESO DE DATOS'!$W$19=1,'Tablas Guyanas y Santa Elena'!D144,'Tablas Resto de Ecuador'!D144) -> 36097 | M147: =IF('INGRESO DE DATOS'!$W$19=1,'Tablas Guyanas y Santa Elena'!E144,'Tablas Resto de Ecuador'!E144) -> 33611 | N147: =IF('INGRESO DE DATOS'!$W$19=1,'Tablas Guyanas y Santa Elena'!F144,'Tablas Resto de Ecuador'!F144) -> 31156 | O147: =IF('INGRESO DE DATOS'!$W$19=1,'Tablas Guyanas y Santa Elena'!G144,'Tablas Resto de Ecuador'!G144) -> 21405 | P147: =IF('INGRESO DE DATOS'!$W$19=1,'Tablas Guyanas y Santa Elena'!H144,'Tablas Resto de Ecuador'!H144) -> 14729 | Q147: =IF('INGRESO DE DATOS'!$W$19=1,'Tablas Guyanas y Santa Elena'!I144,'Tablas Resto de Ecuador'!I144) -> 10423 | S147: 36136 | T147: 36097 | U147: 33611 | V147: 31156 | W147: 21405 | X147: 14729 | Y147: 10423
A148: 82 | C148: 36136 | D148: 36097 | E148: 33611 | F148: 31156 | G148: 21405 | H148: 14729 | I148: 10423 | K148: =IF('INGRESO DE DATOS'!$W$19=1,'Tablas Guyanas y Santa Elena'!C145,'Tablas Resto de Ecuador'!C145) -> 36136 | L148: =IF('INGRESO DE DATOS'!$W$19=1,'Tablas Guyanas y Santa Elena'!D145,'Tablas Resto de Ecuador'!D145) -> 36097 | M148: =IF('INGRESO DE DATOS'!$W$19=1,'Tablas Guyanas y Santa Elena'!E145,'Tablas Resto de Ecuador'!E145) -> 33611 | N148: =IF('INGRESO DE DATOS'!$W$19=1,'Tablas Guyanas y Santa Elena'!F145,'Tablas Resto de Ecuador'!F145) -> 31156 | O148: =IF('INGRESO DE DATOS'!$W$19=1,'Tablas Guyanas y Santa Elena'!G145,'Tablas Resto de Ecuador'!G145) -> 21405 | P148: =IF('INGRESO DE DATOS'!$W$19=1,'Tablas Guyanas y Santa Elena'!H145,'Tablas Resto de Ecuador'!H145) -> 14729 | Q148: =IF('INGRESO DE DATOS'!$W$19=1,'Tablas Guyanas y Santa Elena'!I145,'Tablas Resto de Ecuador'!I145) -> 10423 | S148: 36136 | T148: 36097 | U148: 33611 | V148: 31156 | W148: 21405 | X148: 14729 | Y148: 10423
A149: 83 | C149: =S149*$AD$2 -> 36136 | D149: =T149*$AD$2 -> 36097 | E149: =U149*$AD$2 -> 33611 | F149: =V149*$AD$2 -> 31156 | G149: =W149*$AD$2 -> 21405 | H149: =X149*$AD$2 -> 14729 | I149: =Y149*$AD$2 -> 10423 | K149: =IF('INGRESO DE DATOS'!$W$19=1,'Tablas Guyanas y Santa Elena'!C146,'Tablas Resto de Ecuador'!C146) -> 36136 | L149: =IF('INGRESO DE DATOS'!$W$19=1,'Tablas Guyanas y Santa Elena'!D146,'Tablas Resto de Ecuador'!D146) -> 36097 | M149: =IF('INGRESO DE DATOS'!$W$19=1,'Tablas Guyanas y Santa Elena'!E146,'Tablas Resto de Ecuador'!E146) -> 33611 | N149: =IF('INGRESO DE DATOS'!$W$19=1,'Tablas Guyanas y Santa Elena'!F146,'Tablas Resto de Ecuador'!F146) -> 31156 | O149: =IF('INGRESO DE DATOS'!$W$19=1,'Tablas Guyanas y Santa Elena'!G146,'Tablas Resto de Ecuador'!G146) -> 21405 | P149: =IF('INGRESO DE DATOS'!$W$19=1,'Tablas Guyanas y Santa Elena'!H146,'Tablas Resto de Ecuador'!H146) -> 14729 | Q149: =IF('INGRESO DE DATOS'!$W$19=1,'Tablas Guyanas y Santa Elena'!I146,'Tablas Resto de Ecuador'!I146) -> 10423 | S149: =K149*$U$4 -> 36136 | T149: =L149*$U$4 -> 36097 | U149: =M149*$U$4 -> 33611 | V149: =N149*$U$4 -> 31156 | W149: =O149*$U$4 -> 21405 | X149: =P149*$U$4 -> 14729 | Y149: =Q149*$U$4 -> 10423
A150: 84 | B150: o más | C150: 36136 | D150: 36097 | E150: 33611 | F150: 31156 | G150: 21405 | H150: 14729 | I150: 10423 | K150: =IF('INGRESO DE DATOS'!$W$19=1,'Tablas Guyanas y Santa Elena'!C147,'Tablas Resto de Ecuador'!C147) -> 36136 | L150: =IF('INGRESO DE DATOS'!$W$19=1,'Tablas Guyanas y Santa Elena'!D147,'Tablas Resto de Ecuador'!D147) -> 36097 | M150: =IF('INGRESO DE DATOS'!$W$19=1,'Tablas Guyanas y Santa Elena'!E147,'Tablas Resto de Ecuador'!E147) -> 33611 | N150: =IF('INGRESO DE DATOS'!$W$19=1,'Tablas Guyanas y Santa Elena'!F147,'Tablas Resto de Ecuador'!F147) -> 31156 | O150: =IF('INGRESO DE DATOS'!$W$19=1,'Tablas Guyanas y Santa Elena'!G147,'Tablas Resto de Ecuador'!G147) -> 21405 | P150: =IF('INGRESO DE DATOS'!$W$19=1,'Tablas Guyanas y Santa Elena'!H147,'Tablas Resto de Ecuador'!H147) -> 14729 | Q150: =IF('INGRESO DE DATOS'!$W$19=1,'Tablas Guyanas y Santa Elena'!I147,'Tablas Resto de Ecuador'!I147) -> 10423 | S150: 36136 | T150: 36097 | U150: 33611 | V150: 31156 | W150: 21405 | X150: 14729 | Y150: 10423
A151: 1 | B151: Hijo | C151: 1003 | D151: 936 | E151: 622 | F151: 565 | G151: 338 | H151: 254 | I151: 153 | K151: =IF('INGRESO DE DATOS'!$W$19=1,'Tablas Guyanas y Santa Elena'!C148,'Tablas Resto de Ecuador'!C148) -> 1003 | L151: =IF('INGRESO DE DATOS'!$W$19=1,'Tablas Guyanas y Santa Elena'!D148,'Tablas Resto de Ecuador'!D148) -> 936 | M151: =IF('INGRESO DE DATOS'!$W$19=1,'Tablas Guyanas y Santa Elena'!E148,'Tablas Resto de Ecuador'!E148) -> 622 | N151: =IF('INGRESO DE DATOS'!$W$19=1,'Tablas Guyanas y Santa Elena'!F148,'Tablas Resto de Ecuador'!F148) -> 565 | O151: =IF('INGRESO DE DATOS'!$W$19=1,'Tablas Guyanas y Santa Elena'!G148,'Tablas Resto de Ecuador'!G148) -> 338 | P151: =IF('INGRESO DE DATOS'!$W$19=1,'Tablas Guyanas y Santa Elena'!H148,'Tablas Resto de Ecuador'!H148) -> 254 | Q151: =IF('INGRESO DE DATOS'!$W$19=1,'Tablas Guyanas y Santa Elena'!I148,'Tablas Resto de Ecuador'!I148) -> 153 | S151: 1003 | T151: 936 | U151: 622 | V151: 565 | W151: 338 | X151: 254 | Y151: 153
A152: 2 | B152: Hijos | C152: 1812 | D152: 1688 | E152: 1138 | F152: 952 | G152: 521 | H152: 387 | I152: 307 | K152: =IF('INGRESO DE DATOS'!$W$19=1,'Tablas Guyanas y Santa Elena'!C149,'Tablas Resto de Ecuador'!C149) -> 1812 | L152: =IF('INGRESO DE DATOS'!$W$19=1,'Tablas Guyanas y Santa Elena'!D149,'Tablas Resto de Ecuador'!D149) -> 1688 | M152: =IF('INGRESO DE DATOS'!$W$19=1,'Tablas Guyanas y Santa Elena'!E149,'Tablas Resto de Ecuador'!E149) -> 1138 | N152: =IF('INGRESO DE DATOS'!$W$19=1,'Tablas Guyanas y Santa Elena'!F149,'Tablas Resto de Ecuador'!F149) -> 952 | O152: =IF('INGRESO DE DATOS'!$W$19=1,'Tablas Guyanas y Santa Elena'!G149,'Tablas Resto de Ecuador'!G149) -> 521 | P152: =IF('INGRESO DE DATOS'!$W$19=1,'Tablas Guyanas y Santa Elena'!H149,'Tablas Resto de Ecuador'!H149) -> 387 | Q152: =IF('INGRESO DE DATOS'!$W$19=1,'Tablas Guyanas y Santa Elena'!I149,'Tablas Resto de Ecuador'!I149) -> 307 | S152: 1812 | T152: 1688 | U152: 1138 | V152: 952 | W152: 521 | X152: 387 | Y152: 307
A153: 3 | B153: Hijos o más | C153: 2582 | D153: 2398 | E153: 1632 | F153: 1318 | G153: 721 | H153: 580 | I153: 460 | K153: =IF('INGRESO DE DATOS'!$W$19=1,'Tablas Guyanas y Santa Elena'!C150,'Tablas Resto de Ecuador'!C150) -> 2582 | L153: =IF('INGRESO DE DATOS'!$W$19=1,'Tablas Guyanas y Santa Elena'!D150,'Tablas Resto de Ecuador'!D150) -> 2398 | M153: =IF('INGRESO DE DATOS'!$W$19=1,'Tablas Guyanas y Santa Elena'!E150,'Tablas Resto de Ecuador'!E150) -> 1632 | N153: =IF('INGRESO DE DATOS'!$W$19=1,'Tablas Guyanas y Santa Elena'!F150,'Tablas Resto de Ecuador'!F150) -> 1318 | O153: =IF('INGRESO DE DATOS'!$W$19=1,'Tablas Guyanas y Santa Elena'!G150,'Tablas Resto de Ecuador'!G150) -> 721 | P153: =IF('INGRESO DE DATOS'!$W$19=1,'Tablas Guyanas y Santa Elena'!H150,'Tablas Resto de Ecuador'!H150) -> 580 | Q153: =IF('INGRESO DE DATOS'!$W$19=1,'Tablas Guyanas y Santa Elena'!I150,'Tablas Resto de Ecuador'!I150) -> 460 | S153: 2582 | T153: 2398 | U153: 1632 | V153: 1318 | W153: 721 | X153: 580 | Y153: 460
A155: BUPA ESSENTIAL
A156: TARIFAS ANUALES
A158: EDAD | C158: 1000 | D158: 2000 | E158: 3000 | F158: 5000 | G158: 10000 | H158: 20000 | K158: TARIFAS BASE | S158: TARIFAS BASE CON DESCUENTO
A159: 18 | B159: 18-24 | C159: =S159*$AD$2 -> 5287 | D159: =T159*$AD$2 -> 4816 | E159: =U159*$AD$2 -> 4563 | F159: =V159*$AD$2 -> 3353 | G159: =W159*$AD$2 -> 2638 | H159: =X159*$AD$2 -> 2019 | I159: =Y159*$AD$2 -> 0 | K159: =IF('INGRESO DE DATOS'!$W$19=1,'Tablas Guyanas y Santa Elena'!C156,'Tablas Resto de Ecuador'!C156) -> 5287 | L159: =IF('INGRESO DE DATOS'!$W$19=1,'Tablas Guyanas y Santa Elena'!D156,'Tablas Resto de Ecuador'!D156) -> 4816 | M159: =IF('INGRESO DE DATOS'!$W$19=1,'Tablas Guyanas y Santa Elena'!E156,'Tablas Resto de Ecuador'!E156) -> 4563 | N159: =IF('INGRESO DE DATOS'!$W$19=1,'Tablas Guyanas y Santa Elena'!F156,'Tablas Resto de Ecuador'!F156) -> 3353 | O159: =IF('INGRESO DE DATOS'!$W$19=1,'Tablas Guyanas y Santa Elena'!G156,'Tablas Resto de Ecuador'!G156) -> 2638 | P159: =IF('INGRESO DE DATOS'!$W$19=1,'Tablas Guyanas y Santa Elena'!H156,'Tablas Resto de Ecuador'!H156) -> 2019 | Q159: =IF('INGRESO DE DATOS'!$W$19=1,'Tablas Guyanas y Santa Elena'!I156,'Tablas Resto de Ecuador'!I156) -> 0 | S159: =(K159-50)*$U$4+50 -> 5287 | T159: =(L159-50)*$U$4+50 -> 4816 | U159: 4563 | V159: 3353 | W159: 2638 | X159: 2019 | Y159: =Q159*$U$4 -> 0
A160: 25 | B160: 25-29 | C160: =S160*$AD$2 -> 6138 | D160: 5611 | E160: 5143 | F160: 3724 | G160: 2941 | H160: 2240 | I160: 0 | K160: =IF('INGRESO DE DATOS'!$W$19=1,'Tablas Guyanas y Santa Elena'!C157,'Tablas Resto de Ecuador'!C157) -> 6138 | L160: =IF('INGRESO DE DATOS'!$W$19=1,'Tablas Guyanas y Santa Elena'!D157,'Tablas Resto de Ecuador'!D157) -> 5611 | M160: =IF('INGRESO DE DATOS'!$W$19=1,'Tablas Guyanas y Santa Elena'!E157,'Tablas Resto de Ecuador'!E157) -> 5143 | N160: =IF('INGRESO DE DATOS'!$W$19=1,'Tablas Guyanas y Santa Elena'!F157,'Tablas Resto de Ecuador'!F157) -> 3724 | O160: =IF('INGRESO DE DATOS'!$W$19=1,'Tablas Guyanas y Santa Elena'!G157,'Tablas Resto de Ecuador'!G157) -> 2941 | P160: =IF('INGRESO DE DATOS'!$W$19=1,'Tablas Guyanas y Santa Elena'!H157,'Tablas Resto de Ecuador'!H157) -> 2240 | Q160: =IF('INGRESO DE DATOS'!$W$19=1,'Tablas Guyanas y Santa Elena'!I157,'Tablas Resto de Ecuador'!I157) -> 0 | S160: =(K160-50)*$U$4+50 -> 6138 | T160: =(L160-50)*$U$4+50 -> 5611 | U160: =(M160-50)*$U$4+50 -> 5143 | V160: =(N160-50)*$U$4+50 -> 3724 | W160: =(O160-50)*$U$4+50 -> 2941 | X160: =(P160-50)*$U$4+50 -> 2240 | Y160: =Q160*$U$4 -> 0
A161: 30 | B161: 30-34 | C161: 6970 | D161: 6389 | E161: 6031 | F161: 4307 | G161: 3381 | H161: 2577 | I161: 0 | K161: =IF('INGRESO DE DATOS'!$W$19=1,'Tablas Guyanas y Santa Elena'!C158,'Tablas Resto de Ecuador'!C158) -> 6970 | L161: =IF('INGRESO DE DATOS'!$W$19=1,'Tablas Guyanas y Santa Elena'!D158,'Tablas Resto de Ecuador'!D158) -> 6389 | M161: =IF('INGRESO DE DATOS'!$W$19=1,'Tablas Guyanas y Santa Elena'!E158,'Tablas Resto de Ecuador'!E158) -> 6031 | N161: =IF('INGRESO DE DATOS'!$W$19=1,'Tablas Guyanas y Santa Elena'!F158,'Tablas Resto de Ecuador'!F158) -> 4307 | O161: =IF('INGRESO DE DATOS'!$W$19=1,'Tablas Guyanas y Santa Elena'!G158,'Tablas Resto de Ecuador'!G158) -> 3381 | P161: =IF('INGRESO DE DATOS'!$W$19=1,'Tablas Guyanas y Santa Elena'!H158,'Tablas Resto de Ecuador'!H158) -> 2577 | Q161: =IF('INGRESO DE DATOS'!$W$19=1,'Tablas Guyanas y Santa Elena'!I158,'Tablas Resto de Ecuador'!I158) -> 0 | S161: 6970 | T161: 6389 | U161: 6031 | V161: 4307 | W161: 3381 | X161: 2577 | Y161: 0
A162: 35 | B162: 35-39 | C162: 7790 | D162: 7155 | E162: 6730 | F162: 4784 | G162: 3750 | H162: 2852 | I162: 0 | K162: =IF('INGRESO DE DATOS'!$W$19=1,'Tablas Guyanas y Santa Elena'!C159,'Tablas Resto de Ecuador'!C159) -> 7790 | L162: =IF('INGRESO DE DATOS'!$W$19=1,'Tablas Guyanas y Santa Elena'!D159,'Tablas Resto de Ecuador'!D159) -> 7155 | M162: =IF('INGRESO DE DATOS'!$W$19=1,'Tablas Guyanas y Santa Elena'!E159,'Tablas Resto de Ecuador'!E159) -> 6730 | N162: =IF('INGRESO DE DATOS'!$W$19=1,'Tablas Guyanas y Santa Elena'!F159,'Tablas Resto de Ecuador'!F159) -> 4784 | O162: =IF('INGRESO DE DATOS'!$W$19=1,'Tablas Guyanas y Santa Elena'!G159,'Tablas Resto de Ecuador'!G159) -> 3750 | P162: =IF('INGRESO DE DATOS'!$W$19=1,'Tablas Guyanas y Santa Elena'!H159,'Tablas Resto de Ecuador'!H159) -> 2852 | Q162: =IF('INGRESO DE DATOS'!$W$19=1,'Tablas Guyanas y Santa Elena'!I159,'Tablas Resto de Ecuador'!I159) -> 0 | S162: 7790 | T162: 7155 | U162: 6730 | V162: 4784 | W162: 3750 | X162: 2852 | Y162: 0
A163: 40 | B163: 40-44 | C163: 8607 | D163: 7918 | E163: 7665 | F163: 5394 | G163: 4237 | H163: 3204 | I163: 0 | K163: =IF('INGRESO DE DATOS'!$W$19=1,'Tablas Guyanas y Santa Elena'!C160,'Tablas Resto de Ecuador'!C160) -> 8607 | L163: =IF('INGRESO DE DATOS'!$W$19=1,'Tablas Guyanas y Santa Elena'!D160,'Tablas Resto de Ecuador'!D160) -> 7918 | M163: =IF('INGRESO DE DATOS'!$W$19=1,'Tablas Guyanas y Santa Elena'!E160,'Tablas Resto de Ecuador'!E160) -> 7665 | N163: =IF('INGRESO DE DATOS'!$W$19=1,'Tablas Guyanas y Santa Elena'!F160,'Tablas Resto de Ecuador'!F160) -> 5394 | O163: =IF('INGRESO DE DATOS'!$W$19=1,'Tablas Guyanas y Santa Elena'!G160,'Tablas Resto de Ecuador'!G160) -> 4237 | P163: =IF('INGRESO DE DATOS'!$W$19=1,'Tablas Guyanas y Santa Elena'!H160,'Tablas Resto de Ecuador'!H160) -> 3204 | Q163: =IF('INGRESO DE DATOS'!$W$19=1,'Tablas Guyanas y Santa Elena'!I160,'Tablas Resto de Ecuador'!I160) -> 0 | S163: 8607 | T163: 7918 | U163: 7665 | V163: 5394 | W163: 4237 | X163: 3204 | Y163: 0
A164: 45 | B164: 45-49 | C164: 9424 | D164: 8682 | E164: 8305 | F164: 6274 | G164: 4908 | H164: 3710 | I164: 0 | K164: =IF('INGRESO DE DATOS'!$W$19=1,'Tablas Guyanas y Santa Elena'!C161,'Tablas Resto de Ecuador'!C161) -> 9424 | L164: =IF('INGRESO DE DATOS'!$W$19=1,'Tablas Guyanas y Santa Elena'!D161,'Tablas Resto de Ecuador'!D161) -> 8682 | M164: =IF('INGRESO DE DATOS'!$W$19=1,'Tablas Guyanas y Santa Elena'!E161,'Tablas Resto de Ecuador'!E161) -> 8305 | N164: =IF('INGRESO DE DATOS'!$W$19=1,'Tablas Guyanas y Santa Elena'!F161,'Tablas Resto de Ecuador'!F161) -> 6274 | O164: =IF('INGRESO DE DATOS'!$W$19=1,'Tablas Guyanas y Santa Elena'!G161,'Tablas Resto de Ecuador'!G161) -> 4908 | P164: =IF('INGRESO DE DATOS'!$W$19=1,'Tablas Guyanas y Santa Elena'!H161,'Tablas Resto de Ecuador'!H161) -> 3710 | Q164: =IF('INGRESO DE DATOS'!$W$19=1,'Tablas Guyanas y Santa Elena'!I161,'Tablas Resto de Ecuador'!I161) -> 0 | S164: 9424 | T164: 8682 | U164: 8305 | V164: 6274 | W164: 4908 | X164: 3710 | Y164: 0
A165: 50 | B165: 50-54 | C165: 10251 | D165: 9455 | E165: 8906 | F165: 6737 | G165: 5374 | H165: 4049 | I165: 0 | K165: =IF('INGRESO DE DATOS'!$W$19=1,'Tablas Guyanas y Santa Elena'!C162,'Tablas Resto de Ecuador'!C162) -> 10251 | L165: =IF('INGRESO DE DATOS'!$W$19=1,'Tablas Guyanas y Santa Elena'!D162,'Tablas Resto de Ecuador'!D162) -> 9455 | M165: =IF('INGRESO DE DATOS'!$W$19=1,'Tablas Guyanas y Santa Elena'!E162,'Tablas Resto de Ecuador'!E162) -> 8906 | N165: =IF('INGRESO DE DATOS'!$W$19=1,'Tablas Guyanas y Santa Elena'!F162,'Tablas Resto de Ecuador'!F162) -> 6737 | O165: =IF('INGRESO DE DATOS'!$W$19=1,'Tablas Guyanas y Santa Elena'!G162,'Tablas Resto de Ecuador'!G162) -> 5374 | P165: =IF('INGRESO DE DATOS'!$W$19=1,'Tablas Guyanas y Santa Elena'!H162,'Tablas Resto de Ecuador'!H162) -> 4049 | Q165: =IF('INGRESO DE DATOS'!$W$19=1,'Tablas Guyanas y Santa Elena'!I162,'Tablas Resto de Ecuador'!I162) -> 0 | S165: 10251 | T165: 9455 | U165: 8906 | V165: 6737 | W165: 5374 | X165: 4049 | Y165: 0
A166: 55 | B166: 55-59 | C166: 11095 | D166: 10244 | E166: 9529 | F166: 7214 | G166: 6365 | H166: 4776 | I166: 0 | K166: =IF('INGRESO DE DATOS'!$W$19=1,'Tablas Guyanas y Santa Elena'!C163,'Tablas Resto de Ecuador'!C163) -> 11095 | L166: =IF('INGRESO DE DATOS'!$W$19=1,'Tablas Guyanas y Santa Elena'!D163,'Tablas Resto de Ecuador'!D163) -> 10244 | M166: =IF('INGRESO DE DATOS'!$W$19=1,'Tablas Guyanas y Santa Elena'!E163,'Tablas Resto de Ecuador'!E163) -> 9529 | N166: =IF('INGRESO DE DATOS'!$W$19=1,'Tablas Guyanas y Santa Elena'!F163,'Tablas Resto de Ecuador'!F163) -> 7214 | O166: =IF('INGRESO DE DATOS'!$W$19=1,'Tablas Guyanas y Santa Elena'!G163,'Tablas Resto de Ecuador'!G163) -> 6365 | P166: =IF('INGRESO DE DATOS'!$W$19=1,'Tablas Guyanas y Santa Elena'!H163,'Tablas Resto de Ecuador'!H163) -> 4776 | Q166: =IF('INGRESO DE DATOS'!$W$19=1,'Tablas Guyanas y Santa Elena'!I163,'Tablas Resto de Ecuador'!I163) -> 0 | S166: 11095 | T166: 10244 | U166: 9529 | V166: 7214 | W166: 6365 | X166: 4776 | Y166: 0
A167: 60 | B167: 60 | C167: 11962 | D167: 11054 | E167: 10184 | F167: 7730 | G167: 6723 | H167: 5049 | I167: 0 | K167: =IF('INGRESO DE DATOS'!$W$19=1,'Tablas Guyanas y Santa Elena'!C164,'Tablas Resto de Ecuador'!C164) -> 11962 | L167: =IF('INGRESO DE DATOS'!$W$19=1,'Tablas Guyanas y Santa Elena'!D164,'Tablas Resto de Ecuador'!D164) -> 11054 | M167: =IF('INGRESO DE DATOS'!$W$19=1,'Tablas Guyanas y Santa Elena'!E164,'Tablas Resto de Ecuador'!E164) -> 10184 | N167: =IF('INGRESO DE DATOS'!$W$19=1,'Tablas Guyanas y Santa Elena'!F164,'Tablas Resto de Ecuador'!F164) -> 7730 | O167: =IF('INGRESO DE DATOS'!$W$19=1,'Tablas Guyanas y Santa Elena'!G164,'Tablas Resto de Ecuador'!G164) -> 6723 | P167: =IF('INGRESO DE DATOS'!$W$19=1,'Tablas Guyanas y Santa Elena'!H164,'Tablas Resto de Ecuador'!H164) -> 5049 | Q167: =IF('INGRESO DE DATOS'!$W$19=1,'Tablas Guyanas y Santa Elena'!I164,'Tablas Resto de Ecuador'!I164) -> 0 | S167: 11962 | T167: 11054 | U167: 10184 | V167: 7730 | W167: 6723 | X167: 5049 | Y167: 0
A168: 61 | B168: 61 | C168: 12860 | D168: 11893 | E168: 10880 | F168: 8296 | G168: 7566 | H168: 5685 | I168: 0 | K168: =IF('INGRESO DE DATOS'!$W$19=1,'Tablas Guyanas y Santa Elena'!C165,'Tablas Resto de Ecuador'!C165) -> 12860 | L168: =IF('INGRESO DE DATOS'!$W$19=1,'Tablas Guyanas y Santa Elena'!D165,'Tablas Resto de Ecuador'!D165) -> 11893 | M168: =IF('INGRESO DE DATOS'!$W$19=1,'Tablas Guyanas y Santa Elena'!E165,'Tablas Resto de Ecuador'!E165) -> 10880 | N168: =IF('INGRESO DE DATOS'!$W$19=1,'Tablas Guyanas y Santa Elena'!F165,'Tablas Resto de Ecuador'!F165) -> 8296 | O168: =IF('INGRESO DE DATOS'!$W$19=1,'Tablas Guyanas y Santa Elena'!G165,'Tablas Resto de Ecuador'!G165) -> 7566 | P168: =IF('INGRESO DE DATOS'!$W$19=1,'Tablas Guyanas y Santa Elena'!H165,'Tablas Resto de Ecuador'!H165) -> 5685 | Q168: =IF('INGRESO DE DATOS'!$W$19=1,'Tablas Guyanas y Santa Elena'!I165,'Tablas Resto de Ecuador'!I165) -> 0 | S168: 12860 | T168: 11893 | U168: 10880 | V168: 8296 | W168: 7566 | X168: 5685 | Y168: 0
A169: 62 | B169: 62 | C169: 13795 | D169: 12767 | E169: 11626 | F169: 8925 | G169: 8403 | H169: 6318 | I169: 0 | K169: =IF('INGRESO DE DATOS'!$W$19=1,'Tablas Guyanas y Santa Elena'!C166,'Tablas Resto de Ecuador'!C166) -> 13795 | L169: =IF('INGRESO DE DATOS'!$W$19=1,'Tablas Guyanas y Santa Elena'!D166,'Tablas Resto de Ecuador'!D166) -> 12767 | M169: =IF('INGRESO DE DATOS'!$W$19=1,'Tablas Guyanas y Santa Elena'!E166,'Tablas Resto de Ecuador'!E166) -> 11626 | N169: =IF('INGRESO DE DATOS'!$W$19=1,'Tablas Guyanas y Santa Elena'!F166,'Tablas Resto de Ecuador'!F166) -> 8925 | O169: =IF('INGRESO DE DATOS'!$W$19=1,'Tablas Guyanas y Santa Elena'!G166,'Tablas Resto de Ecuador'!G166) -> 8403 | P169: =IF('INGRESO DE DATOS'!$W$19=1,'Tablas Guyanas y Santa Elena'!H166,'Tablas Resto de Ecuador'!H166) -> 6318 | Q169: =IF('INGRESO DE DATOS'!$W$19=1,'Tablas Guyanas y Santa Elena'!I166,'Tablas Resto de Ecuador'!I166) -> 0 | S169: 13795 | T169: 12767 | U169: 11626 | V169: 8925 | W169: 8403 | X169: 6318 | Y169: 0
A170: 63 | B170: 63 | C170: 14775 | D170: 13683 | E170: 12432 | F170: 9627 | G170: 9239 | H170: 6938 | I170: 0 | K170: =IF('INGRESO DE DATOS'!$W$19=1,'Tablas Guyanas y Santa Elena'!C167,'Tablas Resto de Ecuador'!C167) -> 14775 | L170: =IF('INGRESO DE DATOS'!$W$19=1,'Tablas Guyanas y Santa Elena'!D167,'Tablas Resto de Ecuador'!D167) -> 13683 | M170: =IF('INGRESO DE DATOS'!$W$19=1,'Tablas Guyanas y Santa Elena'!E167,'Tablas Resto de Ecuador'!E167) -> 12432 | N170: =IF('INGRESO DE DATOS'!$W$19=1,'Tablas Guyanas y Santa Elena'!F167,'Tablas Resto de Ecuador'!F167) -> 9627 | O170: =IF('INGRESO DE DATOS'!$W$19=1,'Tablas Guyanas y Santa Elena'!G167,'Tablas Resto de Ecuador'!G167) -> 9239 | P170: =IF('INGRESO DE DATOS'!$W$19=1,'Tablas Guyanas y Santa Elena'!H167,'Tablas Resto de Ecuador'!H167) -> 6938 | Q170: =IF('INGRESO DE DATOS'!$W$19=1,'Tablas Guyanas y Santa Elena'!I167,'Tablas Resto de Ecuador'!I167) -> 0 | S170: 14775 | T170: 13683 | U170: 12432 | V170: 9627 | W170: 9239 | X170: 6938 | Y170: 0
A171: 64 | B171: 64 | C171: 15736 | D171: 14581 | E171: 13264 | F171: 10401 | G171: 9979 | H171: 7566 | I171: 0 | K171: =IF('INGRESO DE DATOS'!$W$19=1,'Tablas Guyanas y Santa Elena'!C168,'Tablas Resto de Ecuador'!C168) -> 15736 | L171: =IF('INGRESO DE DATOS'!$W$19=1,'Tablas Guyanas y Santa Elena'!D168,'Tablas Resto de Ecuador'!D168) -> 14581 | M171: =IF('INGRESO DE DATOS'!$W$19=1,'Tablas Guyanas y Santa Elena'!E168,'Tablas Resto de Ecuador'!E168) -> 13264 | N171: =IF('INGRESO DE DATOS'!$W$19=1,'Tablas Guyanas y Santa Elena'!F168,'Tablas Resto de Ecuador'!F168) -> 10401 | O171: =IF('INGRESO DE DATOS'!$W$19=1,'Tablas Guyanas y Santa Elena'!G168,'Tablas Resto de Ecuador'!G168) -> 9979 | P171: =IF('INGRESO DE DATOS'!$W$19=1,'Tablas Guyanas y Santa Elena'!H168,'Tablas Resto de Ecuador'!H168) -> 7566 | Q171: =IF('INGRESO DE DATOS'!$W$19=1,'Tablas Guyanas y Santa Elena'!I168,'Tablas Resto de Ecuador'!I168) -> 0 | S171: 15736 | T171: 14581 | U171: 13264 | V171: 10401 | W171: 9979 | X171: 7566 | Y171: 0
A172: 65 | B172: 65 | C172: 16681 | D172: 15464 | E172: 14127 | F172: 11253 | G172: 10136 | H172: 7595 | I172: 0 | K172: =IF('INGRESO DE DATOS'!$W$19=1,'Tablas Guyanas y Santa Elena'!C169,'Tablas Resto de Ecuador'!C169) -> 16681 | L172: =IF('INGRESO DE DATOS'!$W$19=1,'Tablas Guyanas y Santa Elena'!D169,'Tablas Resto de Ecuador'!D169) -> 15464 | M172: =IF('INGRESO DE DATOS'!$W$19=1,'Tablas Guyanas y Santa Elena'!E169,'Tablas Resto de Ecuador'!E169) -> 14127 | N172: =IF('INGRESO DE DATOS'!$W$19=1,'Tablas Guyanas y Santa Elena'!F169,'Tablas Resto de Ecuador'!F169) -> 11253 | O172: =IF('INGRESO DE DATOS'!$W$19=1,'Tablas Guyanas y Santa Elena'!G169,'Tablas Resto de Ecuador'!G169) -> 10136 | P172: =IF('INGRESO DE DATOS'!$W$19=1,'Tablas Guyanas y Santa Elena'!H169,'Tablas Resto de Ecuador'!H169) -> 7595 | Q172: =IF('INGRESO DE DATOS'!$W$19=1,'Tablas Guyanas y Santa Elena'!I169,'Tablas Resto de Ecuador'!I169) -> 0 | S172: 16681 | T172: 15464 | U172: 14127 | V172: 11253 | W172: 10136 | X172: 7595 | Y172: 0
A173: 66 | B173: 66 | C173: 17720 | D173: 16435 | E173: 15090 | F173: 12207 | G173: 10182 | H173: 7609 | I173: 0 | K173: =IF('INGRESO DE DATOS'!$W$19=1,'Tablas Guyanas y Santa Elena'!C170,'Tablas Resto de Ecuador'!C170) -> 17720 | L173: =IF('INGRESO DE DATOS'!$W$19=1,'Tablas Guyanas y Santa Elena'!D170,'Tablas Resto de Ecuador'!D170) -> 16435 | M173: =IF('INGRESO DE DATOS'!$W$19=1,'Tablas Guyanas y Santa Elena'!E170,'Tablas Resto de Ecuador'!E170) -> 15090 | N173: =IF('INGRESO DE DATOS'!$W$19=1,'Tablas Guyanas y Santa Elena'!F170,'Tablas Resto de Ecuador'!F170) -> 12207 | O173: =IF('INGRESO DE DATOS'!$W$19=1,'Tablas Guyanas y Santa Elena'!G170,'Tablas Resto de Ecuador'!G170) -> 10182 | P173: =IF('INGRESO DE DATOS'!$W$19=1,'Tablas Guyanas y Santa Elena'!H170,'Tablas Resto de Ecuador'!H170) -> 7609 | Q173: =IF('INGRESO DE DATOS'!$W$19=1,'Tablas Guyanas y Santa Elena'!I170,'Tablas Resto de Ecuador'!I170) -> 0 | S173: 17720 | T173: 16435 | U173: 15090 | V173: 12207 | W173: 10182 | X173: 7609 | Y173: 0
A174: 67 | B174: 67 | C174: 18958 | D174: 17592 | E174: 16219 | F174: 13288 | G174: 11202 | H174: 8456 | I174: 0 | K174: =IF('INGRESO DE DATOS'!$W$19=1,'Tablas Guyanas y Santa Elena'!C171,'Tablas Resto de Ecuador'!C171) -> 18958 | L174: =IF('INGRESO DE DATOS'!$W$19=1,'Tablas Guyanas y Santa Elena'!D171,'Tablas Resto de Ecuador'!D171) -> 17592 | M174: =IF('INGRESO DE DATOS'!$W$19=1,'Tablas Guyanas y Santa Elena'!E171,'Tablas Resto de Ecuador'!E171) -> 16219 | N174: =IF('INGRESO DE DATOS'!$W$19=1,'Tablas Guyanas y Santa Elena'!F171,'Tablas Resto de Ecuador'!F171) -> 13288 | O174: =IF('INGRESO DE DATOS'!$W$19=1,'Tablas Guyanas y Santa Elena'!G171,'Tablas Resto de Ecuador'!G171) -> 11202 | P174: =IF('INGRESO DE DATOS'!$W$19=1,'Tablas Guyanas y Santa Elena'!H171,'Tablas Resto de Ecuador'!H171) -> 8456 | Q174: =IF('INGRESO DE DATOS'!$W$19=1,'Tablas Guyanas y Santa Elena'!I171,'Tablas Resto de Ecuador'!I171) -> 0 | S174: 18958 | T174: 17592 | U174: 16219 | V174: 13288 | W174: 11202 | X174: 8456 | Y174: 0
A175: 68 | B175: 68 | C175: 20504 | D175: 19037 | E175: 17584 | F175: 14521 | G175: 12040 | H175: 9306 | I175: 0 | K175: =IF('INGRESO DE DATOS'!$W$19=1,'Tablas Guyanas y Santa Elena'!C172,'Tablas Resto de Ecuador'!C172) -> 20504 | L175: =IF('INGRESO DE DATOS'!$W$19=1,'Tablas Guyanas y Santa Elena'!D172,'Tablas Resto de Ecuador'!D172) -> 19037 | M175: =IF('INGRESO DE DATOS'!$W$19=1,'Tablas Guyanas y Santa Elena'!E172,'Tablas Resto de Ecuador'!E172) -> 17584 | N175: =IF('INGRESO DE DATOS'!$W$19=1,'Tablas Guyanas y Santa Elena'!F172,'Tablas Resto de Ecuador'!F172) -> 14521 | O175: =IF('INGRESO DE DATOS'!$W$19=1,'Tablas Guyanas y Santa Elena'!G172,'Tablas Resto de Ecuador'!G172) -> 12040 | P175: =IF('INGRESO DE DATOS'!$W$19=1,'Tablas Guyanas y Santa Elena'!H172,'Tablas Resto de Ecuador'!H172) -> 9306 | Q175: =IF('INGRESO DE DATOS'!$W$19=1,'Tablas Guyanas y Santa Elena'!I172,'Tablas Resto de Ecuador'!I172) -> 0 | S175: 20504 | T175: 19037 | U175: 17584 | V175: 14521 | W175: 12040 | X175: 9306 | Y175: 0
A176: 69 | B176: 69 | C176: 22453 | D176: 20859 | E176: 19260 | F176: 15961 | G176: 12993 | H176: 9733 | I176: 0 | K176: =IF('INGRESO DE DATOS'!$W$19=1,'Tablas Guyanas y Santa Elena'!C173,'Tablas Resto de Ecuador'!C173) -> 22453 | L176: =IF('INGRESO DE DATOS'!$W$19=1,'Tablas Guyanas y Santa Elena'!D173,'Tablas Resto de Ecuador'!D173) -> 20859 | M176: =IF('INGRESO DE DATOS'!$W$19=1,'Tablas Guyanas y Santa Elena'!E173,'Tablas Resto de Ecuador'!E173) -> 19260 | N176: =IF('INGRESO DE DATOS'!$W$19=1,'Tablas Guyanas y Santa Elena'!F173,'Tablas Resto de Ecuador'!F173) -> 15961 | O176: =IF('INGRESO DE DATOS'!$W$19=1,'Tablas Guyanas y Santa Elena'!G173,'Tablas Resto de Ecuador'!G173) -> 12993 | P176: =IF('INGRESO DE DATOS'!$W$19=1,'Tablas Guyanas y Santa Elena'!H173,'Tablas Resto de Ecuador'!H173) -> 9733 | Q176: =IF('INGRESO DE DATOS'!$W$19=1,'Tablas Guyanas y Santa Elena'!I173,'Tablas Resto de Ecuador'!I173) -> 0 | S176: 22453 | T176: 20859 | U176: 19260 | V176: 15961 | W176: 12993 | X176: 9733 | Y176: 0
A177: 70 | B177: 70 | C177: 24732 | D177: 22989 | E177: 21202 | F177: 16842 | G177: 13135 | H177: 9781 | I177: 0 | K177: =IF('INGRESO DE DATOS'!$W$19=1,'Tablas Guyanas y Santa Elena'!C174,'Tablas Resto de Ecuador'!C174) -> 24732 | L177: =IF('INGRESO DE DATOS'!$W$19=1,'Tablas Guyanas y Santa Elena'!D174,'Tablas Resto de Ecuador'!D174) -> 22989 | M177: =IF('INGRESO DE DATOS'!$W$19=1,'Tablas Guyanas y Santa Elena'!E174,'Tablas Resto de Ecuador'!E174) -> 21202 | N177: =IF('INGRESO DE DATOS'!$W$19=1,'Tablas Guyanas y Santa Elena'!F174,'Tablas Resto de Ecuador'!F174) -> 16842 | O177: =IF('INGRESO DE DATOS'!$W$19=1,'Tablas Guyanas y Santa Elena'!G174,'Tablas Resto de Ecuador'!G174) -> 13135 | P177: =IF('INGRESO DE DATOS'!$W$19=1,'Tablas Guyanas y Santa Elena'!H174,'Tablas Resto de Ecuador'!H174) -> 9781 | Q177: =IF('INGRESO DE DATOS'!$W$19=1,'Tablas Guyanas y Santa Elena'!I174,'Tablas Resto de Ecuador'!I174) -> 0 | S177: 24732 | T177: 22989 | U177: 21202 | V177: 16842 | W177: 13135 | X177: 9781 | Y177: 0
A178: 71 | B178: 71 | C178: 27201 | D178: 25296 | E178: 23296 | F178: 18938 | G178: 14765 | H178: 10997 | I178: 0 | K178: =IF('INGRESO DE DATOS'!$W$19=1,'Tablas Guyanas y Santa Elena'!C175,'Tablas Resto de Ecuador'!C175) -> 27201 | L178: =IF('INGRESO DE DATOS'!$W$19=1,'Tablas Guyanas y Santa Elena'!D175,'Tablas Resto de Ecuador'!D175) -> 25296 | M178: =IF('INGRESO DE DATOS'!$W$19=1,'Tablas Guyanas y Santa Elena'!E175,'Tablas Resto de Ecuador'!E175) -> 23296 | N178: =IF('INGRESO DE DATOS'!$W$19=1,'Tablas Guyanas y Santa Elena'!F175,'Tablas Resto de Ecuador'!F175) -> 18938 | O178: =IF('INGRESO DE DATOS'!$W$19=1,'Tablas Guyanas y Santa Elena'!G175,'Tablas Resto de Ecuador'!G175) -> 14765 | P178: =IF('INGRESO DE DATOS'!$W$19=1,'Tablas Guyanas y Santa Elena'!H175,'Tablas Resto de Ecuador'!H175) -> 10997 | Q178: =IF('INGRESO DE DATOS'!$W$19=1,'Tablas Guyanas y Santa Elena'!I175,'Tablas Resto de Ecuador'!I175) -> 0 | S178: 27201 | T178: 25296 | U178: 23296 | V178: 18938 | W178: 14765 | X178: 10997 | Y178: 0
A179: 72 | B179: 72 | C179: 29718 | D179: 27648 | E179: 25428 | F179: 21040 | G179: 16401 | H179: 12221 | I179: 0 | K179: =IF('INGRESO DE DATOS'!$W$19=1,'Tablas Guyanas y Santa Elena'!C176,'Tablas Resto de Ecuador'!C176) -> 29718 | L179: =IF('INGRESO DE DATOS'!$W$19=1,'Tablas Guyanas y Santa Elena'!D176,'Tablas Resto de Ecuador'!D176) -> 27648 | M179: =IF('INGRESO DE DATOS'!$W$19=1,'Tablas Guyanas y Santa Elena'!E176,'Tablas Resto de Ecuador'!E176) -> 25428 | N179: =IF('INGRESO DE DATOS'!$W$19=1,'Tablas Guyanas y Santa Elena'!F176,'Tablas Resto de Ecuador'!F176) -> 21040 | O179: =IF('INGRESO DE DATOS'!$W$19=1,'Tablas Guyanas y Santa Elena'!G176,'Tablas Resto de Ecuador'!G176) -> 16401 | P179: =IF('INGRESO DE DATOS'!$W$19=1,'Tablas Guyanas y Santa Elena'!H176,'Tablas Resto de Ecuador'!H176) -> 12221 | Q179: =IF('INGRESO DE DATOS'!$W$19=1,'Tablas Guyanas y Santa Elena'!I176,'Tablas Resto de Ecuador'!I176) -> 0 | S179: 29718 | T179: 27648 | U179: 25428 | V179: 21040 | W179: 16401 | X179: 12221 | Y179: 0
A180: 73 | B180: 73 | C180: 32139 | D180: 29911 | E180: 27485 | F180: 22804 | G180: 18045 | H180: 13435 | I180: 0 | K180: =IF('INGRESO DE DATOS'!$W$19=1,'Tablas Guyanas y Santa Elena'!C177,'Tablas Resto de Ecuador'!C177) -> 32139 | L180: =IF('INGRESO DE DATOS'!$W$19=1,'Tablas Guyanas y Santa Elena'!D177,'Tablas Resto de Ecuador'!D177) -> 29911 | M180: =IF('INGRESO DE DATOS'!$W$19=1,'Tablas Guyanas y Santa Elena'!E177,'Tablas Resto de Ecuador'!E177) -> 27485 | N180: =IF('INGRESO DE DATOS'!$W$19=1,'Tablas Guyanas y Santa Elena'!F177,'Tablas Resto de Ecuador'!F177) -> 22804 | O180: =IF('INGRESO DE DATOS'!$W$19=1,'Tablas Guyanas y Santa Elena'!G177,'Tablas Resto de Ecuador'!G177) -> 18045 | P180: =IF('INGRESO DE DATOS'!$W$19=1,'Tablas Guyanas y Santa Elena'!H177,'Tablas Resto de Ecuador'!H177) -> 13435 | Q180: =IF('INGRESO DE DATOS'!$W$19=1,'Tablas Guyanas y Santa Elena'!I177,'Tablas Resto de Ecuador'!I177) -> 0 | S180: 32139 | T180: 29911 | U180: 27485 | V180: 22804 | W180: 18045 | X180: 13435 | Y180: 0
A181: 74 | B181: 74 | C181: 34465 | D181: 32085 | E181: 29465 | F181: 24460 | G181: 19681 | H181: 14658 | I181: 0 | K181: =IF('INGRESO DE DATOS'!$W$19=1,'Tablas Guyanas y Santa Elena'!C178,'Tablas Resto de Ecuador'!C178) -> 34465 | L181: =IF('INGRESO DE DATOS'!$W$19=1,'Tablas Guyanas y Santa Elena'!D178,'Tablas Resto de Ecuador'!D178) -> 32085 | M181: =IF('INGRESO DE DATOS'!$W$19=1,'Tablas Guyanas y Santa Elena'!E178,'Tablas Resto de Ecuador'!E178) -> 29465 | N181: =IF('INGRESO DE DATOS'!$W$19=1,'Tablas Guyanas y Santa Elena'!F178,'Tablas Resto de Ecuador'!F178) -> 24460 | O181: =IF('INGRESO DE DATOS'!$W$19=1,'Tablas Guyanas y Santa Elena'!G178,'Tablas Resto de Ecuador'!G178) -> 19681 | P181: =IF('INGRESO DE DATOS'!$W$19=1,'Tablas Guyanas y Santa Elena'!H178,'Tablas Resto de Ecuador'!H178) -> 14658 | Q181: =IF('INGRESO DE DATOS'!$W$19=1,'Tablas Guyanas y Santa Elena'!I178,'Tablas Resto de Ecuador'!I178) -> 0 | S181: 34465 | T181: 32085 | U181: 29465 | V181: 24460 | W181: 19681 | X181: 14658 | Y181: 0
A182: 75 | B182: 75 | C182: 36792 | D182: 34260 | E182: 31445 | F182: 26117 | G182: 21525 | H182: 16012 | I182: 0 | K182: =IF('INGRESO DE DATOS'!$W$19=1,'Tablas Guyanas y Santa Elena'!C179,'Tablas Resto de Ecuador'!C179) -> 36792 | L182: =IF('INGRESO DE DATOS'!$W$19=1,'Tablas Guyanas y Santa Elena'!D179,'Tablas Resto de Ecuador'!D179) -> 34260 | M182: =IF('INGRESO DE DATOS'!$W$19=1,'Tablas Guyanas y Santa Elena'!E179,'Tablas Resto de Ecuador'!E179) -> 31445 | N182: =IF('INGRESO DE DATOS'!$W$19=1,'Tablas Guyanas y Santa Elena'!F179,'Tablas Resto de Ecuador'!F179) -> 26117 | O182: =IF('INGRESO DE DATOS'!$W$19=1,'Tablas Guyanas y Santa Elena'!G179,'Tablas Resto de Ecuador'!G179) -> 21525 | P182: =IF('INGRESO DE DATOS'!$W$19=1,'Tablas Guyanas y Santa Elena'!H179,'Tablas Resto de Ecuador'!H179) -> 16012 | Q182: =IF('INGRESO DE DATOS'!$W$19=1,'Tablas Guyanas y Santa Elena'!I179,'Tablas Resto de Ecuador'!I179) -> 0 | S182: 36792 | T182: 34260 | U182: 31445 | V182: 26117 | W182: 21525 | X182: 16012 | Y182: 0
A183: 1 | B183: Hijo | C183: =S183*$AD$2 -> 1631 | D183: =T183*$AD$2 -> 1524 | E183: =U183*$AD$2 -> 1517 | F183: =V183*$AD$2 -> 1326 | G183: =W183*$AD$2 -> 1032 | H183: =X183*$AD$2 -> 763 | I183: =Y183*$AD$2 -> 0 | K183: =IF('INGRESO DE DATOS'!$W$19=1,'Tablas Guyanas y Santa Elena'!C180,'Tablas Resto de Ecuador'!C180) -> 1631 | L183: =IF('INGRESO DE DATOS'!$W$19=1,'Tablas Guyanas y Santa Elena'!D180,'Tablas Resto de Ecuador'!D180) -> 1524 | M183: =IF('INGRESO DE DATOS'!$W$19=1,'Tablas Guyanas y Santa Elena'!E180,'Tablas Resto de Ecuador'!E180) -> 1517 | N183: =IF('INGRESO DE DATOS'!$W$19=1,'Tablas Guyanas y Santa Elena'!F180,'Tablas Resto de Ecuador'!F180) -> 1326 | O183: =IF('INGRESO DE DATOS'!$W$19=1,'Tablas Guyanas y Santa Elena'!G180,'Tablas Resto de Ecuador'!G180) -> 1032 | P183: =IF('INGRESO DE DATOS'!$W$19=1,'Tablas Guyanas y Santa Elena'!H180,'Tablas Resto de Ecuador'!H180) -> 763 | Q183: =IF('INGRESO DE DATOS'!$W$19=1,'Tablas Guyanas y Santa Elena'!I180,'Tablas Resto de Ecuador'!I223) -> 0 | S183: =K183*$U$4 -> 1631 | T183: =L183*$U$4 -> 1524 | U183: =M183*$U$4 -> 1517 | V183: =N183*$U$4 -> 1326 | W183: =O183*$U$4 -> 1032 | X183: =P183*$U$4 -> 763 | Y183: =Q183*$U$4 -> 0
A184: 2 | B184: Hijos | C184: 2973 | D184: 2778 | E184: 2433 | F184: 2076 | G184: 1617 | H184: 1265 | I184: 0 | K184: =IF('INGRESO DE DATOS'!$W$19=1,'Tablas Guyanas y Santa Elena'!C181,'Tablas Resto de Ecuador'!C181) -> 2973 | L184: =IF('INGRESO DE DATOS'!$W$19=1,'Tablas Guyanas y Santa Elena'!D181,'Tablas Resto de Ecuador'!D181) -> 2778 | M184: =IF('INGRESO DE DATOS'!$W$19=1,'Tablas Guyanas y Santa Elena'!E181,'Tablas Resto de Ecuador'!E181) -> 2433 | N184: =IF('INGRESO DE DATOS'!$W$19=1,'Tablas Guyanas y Santa Elena'!F181,'Tablas Resto de Ecuador'!F181) -> 2076 | O184: =IF('INGRESO DE DATOS'!$W$19=1,'Tablas Guyanas y Santa Elena'!G181,'Tablas Resto de Ecuador'!G181) -> 1617 | P184: =IF('INGRESO DE DATOS'!$W$19=1,'Tablas Guyanas y Santa Elena'!H181,'Tablas Resto de Ecuador'!H181) -> 1265 | Q184: =IF('INGRESO DE DATOS'!$W$19=1,'Tablas Guyanas y Santa Elena'!I181,'Tablas Resto de Ecuador'!I224) -> 0 | S184: 2973 | T184: 2778 | U184: 2433 | V184: 2076 | W184: 1617 | X184: 1265 | Y184: 0
A185: 3 | B185: Hijos o más | C185: 4254 | D185: 3975 | E185: 3489 | F185: 3016 | G185: 2348 | H185: 1896 | I185: 0 | K185: =IF('INGRESO DE DATOS'!$W$19=1,'Tablas Guyanas y Santa Elena'!C182,'Tablas Resto de Ecuador'!C182) -> 4254 | L185: =IF('INGRESO DE DATOS'!$W$19=1,'Tablas Guyanas y Santa Elena'!D182,'Tablas Resto de Ecuador'!D182) -> 3975 | M185: =IF('INGRESO DE DATOS'!$W$19=1,'Tablas Guyanas y Santa Elena'!E182,'Tablas Resto de Ecuador'!E182) -> 3489 | N185: =IF('INGRESO DE DATOS'!$W$19=1,'Tablas Guyanas y Santa Elena'!F182,'Tablas Resto de Ecuador'!F182) -> 3016 | O185: =IF('INGRESO DE DATOS'!$W$19=1,'Tablas Guyanas y Santa Elena'!G182,'Tablas Resto de Ecuador'!G182) -> 2348 | P185: =IF('INGRESO DE DATOS'!$W$19=1,'Tablas Guyanas y Santa Elena'!H182,'Tablas Resto de Ecuador'!H182) -> 1896 | Q185: =IF('INGRESO DE DATOS'!$W$19=1,'Tablas Guyanas y Santa Elena'!I182,'Tablas Resto de Ecuador'!I225) -> 0 | S185: 4254 | T185: 3975 | U185: 3489 | V185: 3016 | W185: 2348 | X185: 1896 | Y185: 0
A186: 1 | B186: Rider Comp. Maternidad | C186: 225 | D186: 225 | E186: 225 | F186: 225 | G186: 225 | H186: 225
A187: 1 | B187: Transplante de organos | C187: 300 | D187: 300 | E187: 300 | F187: 300 | G187: 300 | H187: 300

Sheet Tablas Guyanas y Santa Elena (hidden)
A2: BUPA ESSENTIAL 1000
A3: TARIFAS ANUALES
A5: EDAD | C5: 250 | D5: 500 | E5: 1000 | F5: 2000 | G5: 5000 | H5: 10000 | I5: 20000
A6: 18 | C6: 3327 | D6: 2898 | E6: 2485 | F6: 1733 | G6: 956 | H6: 558 | I6: 327
A7: 19 | C7: 3384 | D7: 2948 | E7: 2485 | F7: 1733 | G7: 964 | H7: 564 | I7: 333
A8: 20 | C8: 3442 | D8: 2996 | E8: 2485 | F8: 1738 | G8: 974 | H8: 574 | I8: 341
A9: 21 | C9: 3506 | D9: 3050 | E9: 2485 | F9: 1746 | G9: 984 | H9: 585 | I9: 348
A10: 22 | C10: 3565 | D10: 3099 | E10: 2492 | F10: 1759 | G10: 999 | H10: 594 | I10: 357
A11: 23 | C11: 3623 | D11: 3149 | E11: 2504 | F11: 1774 | G11: 1015 | H11: 607 | I11: 368
A12: 24 | C12: 3682 | D12: 3200 | E12: 2524 | F12: 1796 | G12: 1032 | H12: 623 | I12: 380
A13: 25 | C13: 3739 | D13: 3256 | E13: 2548 | F13: 1820 | G13: 1053 | H13: 638 | I13: 391
A14: 26 | C14: 3799 | D14: 3304 | E14: 2581 | F14: 1851 | G14: 1078 | H14: 655 | I14: 404
A15: 27 | C15: 3857 | D15: 3353 | E15: 2620 | F15: 1887 | G15: 1104 | H15: 676 | I15: 420
A16: 28 | C16: 3930 | D16: 3412 | E16: 2665 | F16: 1927 | G16: 1134 | H16: 698 | I16: 435
A17: 29 | C17: 3998 | D17: 3480 | E17: 2717 | F17: 1973 | G17: 1169 | H17: 721 | I17: 452
A18: 30 | C18: 4068 | D18: 3540 | E18: 2780 | F18: 2023 | G18: 1203 | H18: 749 | I18: 471
A19: 31 | C19: 4136 | D19: 3599 | E19: 2847 | F19: 2081 | G19: 1243 | H19: 778 | I19: 494
A20: 32 | C20: 4208 | D20: 3656 | E20: 2924 | F20: 2144 | G20: 1289 | H20: 808 | I20: 516
A21: 33 | C21: 4322 | D21: 3761 | E21: 3009 | F21: 2212 | G21: 1337 | H21: 844 | I21: 541
A22: 34 | C22: 4437 | D22: 3857 | E22: 3105 | F22: 2290 | G22: 1392 | H22: 880 | I22: 569
A23: 35 | C23: 4551 | D23: 3959 | E23: 3208 | F23: 2375 | G23: 1449 | H23: 922 | I23: 598
A24: 36 | C24: 4665 | D24: 4058 | E24: 3324 | F24: 2467 | G24: 1512 | H24: 966 | I24: 632
A25: 37 | C25: 4783 | D25: 4161 | E25: 3448 | F25: 2569 | G25: 1583 | H25: 1015 | I25: 666
A26: 38 | C26: 4901 | D26: 4265 | E26: 3585 | F26: 2678 | G26: 1657 | H26: 1067 | I26: 705
A27: 39 | C27: 5020 | D27: 4362 | E27: 3712 | F27: 2796 | G27: 1739 | H27: 1125 | I27: 747
A28: 40 | C28: 5137 | D28: 4465 | E28: 3752 | F28: 2926 | G28: 1829 | H28: 1187 | I28: 792
A29: 41 | C29: 5251 | D29: 4569 | E29: 3791 | F29: 3067 | G29: 1924 | H29: 1254 | I29: 841
A30: 42 | C30: 5373 | D30: 4668 | E30: 3845 | F30: 3221 | G30: 2028 | H30: 1328 | I30: 895
A31: 43 | C31: 5581 | D31: 4855 | E31: 3931 | F31: 3385 | G31: 2141 | H31: 1408 | I31: 954
A32: 44 | C32: 5797 | D32: 5042 | E32: 4051 | F32: 3565 | G32: 2264 | H32: 1493 | I32: 1017
A33: 45 | C33: 6010 | D33: 5224 | E33: 4195 | F33: 3757 | G33: 2395 | H33: 1586 | I33: 1086
A34: 46 | C34: 6222 | D34: 5410 | E34: 4358 | F34: 3903 | G34: 2538 | H34: 1688 | I34: 1162
A35: 47 | C35: 6439 | D35: 5597 | E35: 4535 | F35: 3776 | G35: 2693 | H35: 1797 | I35: 1242
A36: 48 | C36: 6667 | D36: 5795 | E36: 4723 | F36: 3764 | G36: 2862 | H36: 1916 | I36: 1331
A37: 49 | C37: 6890 | D37: 5993 | E37: 4920 | F37: 3896 | G37: 3043 | H37: 2044 | I37: 1428
A38: 50 | C38: 7114 | D38: 6188 | E38: 5132 | F38: 4126 | G38: 3146 | H38: 2084 | I38: 1539
A39: 51 | C39: 7339 | D39: 6257 | E39: 5356 | F39: 4412 | G39: 3182 | H39: 2259 | I39: 1677
A40: 52 | C40: 7564 | D40: 6191 | E40: 5591 | F40: 4710 | G40: 3227 | H40: 2446 | I40: 1824
A41: 53 | C41: 7832 | D41: 6267 | E41: 5838 | F41: 4977 | G41: 3296 | H41: 2548 | I41: 1984
A42: 54 | C42: 8102 | D42: 6513 | E42: 6096 | F42: 5205 | G42: 3373 | H42: 2755 | I42: 2156
A43: 55 | C43: 8373 | D43: 6878 | E43: 6364 | F43: 5424 | G43: 3449 | H43: 2978 | I43: 2340
A44: 56 | C44: 8627 | D44: 7318 | E44: 6645 | F44: 5644 | G44: 3547 | H44: 3095 | I44: 2536
A45: 57 | C45: 8901 | D45: 7745 | E45: 6938 | F45: 5876 | G45: 3689 | H45: 3294 | I45: 2749
A46: 58 | C46: 9210 | D46: 8007 | E46: 7245 | F46: 6133 | G46: 3896 | H46: 3403 | I46: 2978
A47: 59 | C47: 9519 | D47: 8278 | E47: 7501 | F47: 6374 | G47: 4168 | H47: 3527 | I47: 3122
A48: 60 | C48: 9825 | D48: 8542 | E48: 7726 | F48: 6590 | G48: 4492 | H48: 3659 | I48: 3237
A49: 61 | C49: 10205 | D49: 8871 | E49: 8058 | F49: 6843 | G49: 4866 | H49: 3819 | I49: 3380
A50: 62 | C50: 10849 | D50: 9315 | E50: 8442 | F50: 7194 | G50: 5289 | H50: 4026 | I50: 3573
A51: 63 | C51: 11603 | D51: 9988 | E51: 8892 | F51: 7704 | G51: 5562 | H51: 4300 | I51: 3836
A52: 64 | C52: 12409 | D52: 10713 | E52: 9399 | F52: 8357 | G52: 5882 | H52: 4629 | I52: 4193
A53: 65 | C53: 13279 | D53: 11493 | E53: 10013 | F53: 9111 | G53: 6298 | H53: 5000 | I53: 4632
A54: 66 | C54: 14212 | D54: 12336 | E54: 10736 | F54: 9873 | G54: 6782 | H54: 5431 | I54: 5114
A55: 67 | C55: 15216 | D55: 13240 | E55: 11594 | F55: 10671 | G55: 7328 | H55: 5941 | I55: 5602
A56: 68 | C56: 16292 | D56: 14213 | E56: 12577 | F56: 11570 | G56: 7943 | H56: 6547 | I56: 6059
A57: 69 | C57: 17449 | D57: 15261 | E57: 13722 | F57: 12634 | G57: 8677 | H57: 7222 | I57: 6425
A58: 70 | C58: 18986 | D58: 16511 | E58: 14923 | F58: 14059 | G58: 9596 | H58: 7955 | I58: 6726
A59: 71 | C59: 20908 | D59: 18183 | E59: 16577 | F59: 15482 | G59: 10570 | H59: 8785 | I59: 7050
A60: 72 | C60: 23129 | D60: 20111 | E60: 18341 | F60: 17134 | G60: 11698 | H60: 9754 | I60: 7484
A61: 73 | C61: 25690 | D61: 22337 | E61: 20365 | F61: 19022 | G61: 12983 | H61: 10903 | I61: 8115
A62: 74 | C62: 28641 | D62: 24902 | E62: 22706 | F62: 21210 | G62: 14479 | H62: 12250 | I62: 8999
A63: 75 | C63: 32022 | D63: 27847 | E63: 25287 | F63: 23865 | G63: 16246 | H63: 13201 | I63: 10078
A64: 76 | C64: 34933 | D64: 31226 | E64: 28450 | F64: 26758 | G64: 18215 | H64: 14214 | I64: 11269
A65: 77 | C65: 37773 | D65: 35071 | E65: 31975 | F65: 30053 | G65: 20463 | H65: 15894 | I65: 12487
A66: 78 | C66: 40529 | D66: 38378 | E66: 34820 | F66: 33056 | G66: 22991 | H66: 17066 | I66: 13649
A67: 79 | C67: 43199 | D67: 41077 | E67: 37404 | F67: 35503 | G67: 25833 | H67: 18287 | I67: 14616
A68: 80 | C68: 45870 | D68: 43777 | E68: 39988 | F68: 37949 | G68: 29230 | H68: 20293 | I68: 15546
A69: 81 | C69: 45870 | D69: 43777 | E69: 39988 | F69: 37949 | G69: 29230 | H69: 20293 | I69: 15546
A70: 82 | C70: 45870 | D70: 43777 | E70: 39988 | F70: 37949 | G70: 29230 | H70: 20293 | I70: 15546
A71: 83 | C71: 45870 | D71: 43777 | E71: 39988 | F71: 37949 | G71: 29230 | H71: 20293 | I71: 15546
A72: 84 | B72: o más | C72: 45870 | D72: 43777 | E72: 39988 | F72: 37949 | G72: 29230 | H72: 20293 | I72: 15546
A73: 1 | B73: Hijo | C73: 1022 | D73: 1059 | E73: 653 | F73: 583 | G73: 415 | H73: 368 | I73: 216
A74: 2 | B74: Hijos | C74: 1956 | D74: 1966 | E74: 1245 | F74: 1103 | G74: 746 | H74: 435 | I74: 287
A75: 3 | B75: Hijos o más | C75: 2838 | D75: 2800 | E75: 1802 | F75: 1587 | G75: 1033 | H75: 603 | I75: 431
A77: BUPA ESSENTIAL 500
A78: TARIFAS ANUALES
A80: EDAD | C80: 250 | D80: 500 | E80: 1000 | F80: 2000 | G80: 5000 | H80: 10000 | I80: 20000
A81: 18 | C81: 2829 | D81: 2419 | E81: 1771 | F81: 1221 | G81: 666 | H81: 384 | I81: 221
A82: 19 | C82: 2875 | D82: 2419 | E82: 1771 | F82: 1223 | G82: 673 | H82: 390 | I82: 226
A83: 20 | C83: 2925 | D83: 2419 | E83: 1771 | F83: 1227 | G83: 680 | H83: 395 | I83: 231
A84: 21 | C84: 2982 | D84: 2419 | E84: 1774 | F84: 1234 | G84: 689 | H84: 404 | I84: 238
A85: 22 | C85: 3029 | D85: 2419 | E85: 1780 | F85: 1243 | G85: 698 | H85: 411 | I85: 243
A86: 23 | C86: 3079 | D86: 2426 | E86: 1792 | F86: 1256 | G86: 710 | H86: 421 | I86: 250
A87: 24 | C87: 3088 | D87: 2438 | E87: 1806 | F87: 1274 | G87: 723 | H87: 432 | I87: 258
A88: 25 | C88: 3101 | D88: 2454 | E88: 1824 | F88: 1292 | G88: 738 | H88: 444 | I88: 267
A89: 26 | C89: 3125 | D89: 2479 | E89: 1851 | F89: 1315 | G89: 757 | H89: 456 | I89: 277
A90: 27 | C90: 3156 | D90: 2510 | E90: 1881 | F90: 1340 | G90: 775 | H90: 470 | I90: 287
A91: 28 | C91: 3195 | D91: 2547 | E91: 1914 | F91: 1370 | G91: 798 | H91: 486 | I91: 297
A92: 29 | C92: 3242 | D92: 2589 | E92: 1952 | F92: 1404 | G92: 822 | H92: 503 | I92: 312
A93: 30 | C93: 3295 | D93: 2641 | E93: 1998 | F93: 1442 | G93: 850 | H93: 523 | I93: 325
A94: 31 | C94: 3360 | D94: 2700 | E94: 2050 | F94: 1483 | G94: 878 | H94: 543 | I94: 341
A95: 32 | C95: 3435 | D95: 2768 | E95: 2104 | F95: 1527 | G95: 912 | H95: 566 | I95: 356
A96: 33 | C96: 3519 | D96: 2841 | E96: 2168 | F96: 1580 | G96: 945 | H96: 591 | I96: 373
A97: 34 | C97: 3612 | D97: 2924 | E97: 2238 | F97: 1638 | G97: 984 | H97: 617 | I97: 393
A98: 35 | C98: 3716 | D98: 3015 | E98: 2315 | F98: 1700 | G98: 1027 | H98: 647 | I98: 414
A99: 36 | C99: 3831 | D99: 3116 | E99: 2400 | F99: 1765 | G99: 1073 | H99: 680 | I99: 437
A100: 37 | C100: 3959 | D100: 3228 | E100: 2490 | F100: 1839 | G100: 1123 | H100: 714 | I100: 462
A101: 38 | C101: 4094 | D101: 3346 | E101: 2589 | F101: 1920 | G101: 1177 | H101: 751 | I101: 490
A102: 39 | C102: 4245 | D102: 3477 | E102: 2700 | F102: 2006 | G102: 1235 | H102: 792 | I102: 517
A103: 40 | C103: 4365 | D103: 3619 | E103: 2767 | F103: 2101 | G103: 1301 | H103: 837 | I103: 551
A104: 41 | C104: 4464 | D104: 3773 | E104: 2797 | F104: 2200 | G104: 1368 | H104: 885 | I104: 587
A105: 42 | C105: 4568 | D105: 3941 | E105: 2835 | F105: 2314 | G105: 1444 | H105: 937 | I105: 624
A106: 43 | C106: 4742 | D106: 4122 | E106: 2895 | F106: 2433 | G106: 1525 | H106: 995 | I106: 666
A107: 44 | C107: 4907 | D107: 4284 | E107: 2978 | F107: 2562 | G107: 1614 | H107: 1057 | I107: 711
A108: 45 | C108: 4857 | D108: 4440 | E108: 3074 | F108: 2703 | G108: 1708 | H108: 1123 | I108: 759
A109: 46 | C109: 4798 | D109: 4598 | E109: 3183 | F109: 2854 | G109: 1741 | H109: 1195 | I109: 812
A110: 47 | C110: 4782 | D110: 4756 | E110: 3304 | F110: 3015 | G110: 1761 | H110: 1273 | I110: 870
A111: 48 | C111: 4862 | D111: 4900 | E111: 3437 | F111: 3038 | G111: 1802 | H111: 1358 | I111: 933
A112: 49 | C112: 5063 | D112: 5016 | E112: 3577 | F112: 3124 | G112: 1868 | H112: 1453 | I112: 1001
A113: 50 | C113: 5348 | D113: 5113 | E113: 3723 | F113: 3296 | G113: 1950 | H113: 1558 | I113: 1080
A114: 51 | C114: 5683 | D114: 5215 | E114: 3884 | F114: 3518 | G114: 2045 | H114: 1690 | I114: 1177
A115: 52 | C115: 6030 | D115: 5343 | E115: 4067 | F115: 3754 | G115: 2151 | H115: 1831 | I115: 1281
A116: 53 | C116: 6353 | D116: 5521 | E116: 4281 | F116: 3967 | G116: 2264 | H116: 1955 | I116: 1395
A117: 54 | C117: 6636 | D117: 5752 | E117: 4529 | F117: 4149 | G117: 2374 | H117: 2026 | I117: 1516
A118: 55 | C118: 6903 | D118: 6020 | E118: 4806 | F118: 4323 | G118: 2483 | H118: 2100 | I118: 1645
A119: 56 | C119: 7179 | D119: 6322 | E119: 5106 | F119: 4503 | G119: 2607 | H119: 2186 | I119: 1784
A120: 57 | C120: 7489 | D120: 6582 | E120: 5425 | F120: 4701 | G120: 2760 | H120: 2291 | I120: 1935
A121: 58 | C121: 7830 | D121: 6807 | E121: 5757 | F121: 4928 | G121: 2959 | H121: 2426 | I121: 2096
A122: 59 | C122: 8091 | D122: 7035 | E122: 6066 | F122: 5151 | G122: 3204 | H122: 2588 | I122: 2267
A123: 60 | C123: 8351 | D123: 7261 | E123: 6356 | F123: 5362 | G123: 3485 | H123: 2771 | I123: 2336
A124: 61 | C124: 8673 | D124: 7539 | E124: 6681 | F124: 5611 | G124: 3801 | H124: 2978 | I124: 2366
A125: 62 | C125: 9061 | D125: 7878 | E125: 7094 | F125: 5949 | G125: 4151 | H125: 3213 | I125: 2446
A126: 63 | C126: 9528 | D126: 8283 | E126: 7558 | F126: 6426 | G126: 4531 | H126: 3477 | I126: 2618
A127: 64 | C127: 10077 | D127: 8764 | E127: 7988 | F127: 7045 | G127: 4905 | H127: 3757 | I127: 2917
A128: 65 | C128: 10737 | D128: 9333 | E128: 8510 | F128: 7771 | G128: 5274 | H128: 4049 | I128: 3315
A129: 66 | C129: 11506 | D129: 10007 | E129: 9126 | F129: 8393 | G129: 5694 | H129: 4376 | I129: 3760
A130: 67 | C130: 12425 | D130: 10807 | E130: 9855 | F130: 9069 | G130: 6223 | H130: 4763 | I130: 4195
A131: 68 | C131: 13484 | D131: 11721 | E131: 10692 | F131: 9833 | G131: 6919 | H131: 5231 | I131: 4558
A132: 69 | C132: 14713 | D132: 12795 | E132: 11666 | F132: 10738 | G132: 7376 | H132: 5750 | I132: 4819
A133: 70 | C133: 16137 | D133: 14033 | E133: 12683 | F133: 11950 | G133: 8155 | H133: 6304 | I133: 4983
A134: 71 | C134: 17773 | D134: 15456 | E134: 14090 | F134: 13159 | G134: 8984 | H134: 6940 | I134: 5150
A135: 72 | C135: 19660 | D135: 17095 | E135: 15590 | F135: 14563 | G135: 9943 | H135: 7705 | I135: 5411
A136: 73 | C136: 21837 | D136: 18987 | E136: 17309 | F136: 16167 | G136: 11034 | H136: 8644 | I136: 5857
A137: 74 | C137: 23698 | D137: 21166 | E137: 19299 | F137: 18028 | G137: 12307 | H137: 9799 | I137: 6536
A138: 75 | C138: 25695 | D138: 23670 | E138: 21494 | F138: 20285 | G138: 13809 | H138: 10537 | I138: 7389
A139: 76 | C139: 27822 | D139: 26543 | E139: 24183 | F139: 22744 | G139: 15483 | H139: 11316 | I139: 8186
A140: 77 | C140: 29982 | D140: 29646 | E140: 27180 | F140: 25261 | G140: 17392 | H140: 12132 | I140: 8745
A141: 78 | C141: 32076 | D141: 31834 | E141: 29422 | F141: 27200 | G141: 18729 | H141: 12979 | I141: 9313
A142: 79 | C142: 34106 | D142: 33965 | E142: 31516 | F142: 29136 | G142: 20046 | H142: 13849 | I142: 9877
A143: 80 | C143: 36136 | D143: 36097 | E143: 33611 | F143: 31156 | G143: 21405 | H143: 14729 | I143: 10423
A144: 81 | C144: 36136 | D144: 36097 | E144: 33611 | F144: 31156 | G144: 21405 | H144: 14729 | I144: 10423
A145: 82 | C145: 36136 | D145: 36097 | E145: 33611 | F145: 31156 | G145: 21405 | H145: 14729 | I145: 10423
A146: 83 | C146: 36136 | D146: 36097 | E146: 33611 | F146: 31156 | G146: 21405 | H146: 14729 | I146: 10423
A147: 84 | B147: o más | C147: 36136 | D147: 36097 | E147: 33611 | F147: 31156 | G147: 21405 | H147: 14729 | I147: 10423
A148: 1 | B148: Hijo | C148: 1003 | D148: 936 | E148: 622 | F148: 565 | G148: 338 | H148: 254 | I148: 153
A149: 2 | B149: Hijos | C149: 1812 | D149: 1688 | E149: 1138 | F149: 952 | G149: 521 | H149: 387 | I149: 307
A150: 3 | B150: Hijos o más | C150: 2582 | D150: 2398 | E150: 1632 | F150: 1318 | G150: 721 | H150: 580 | I150: 460
A152: BUPA ESSENTIAL
A153: TARIFAS ANUALES
A155: EDAD | C155: 0 | D155: 1000 | E155: 2000 | F155: 5000 | G155: 10000 | H155: 20000
A156: 18 | B156: 18-24 | C156: 5287 | D156: 4816 | E156: 4563 | F156: 3353 | G156: 2638 | H156: 2019
A157: 19 | B157: 25-29 | C157: 6138 | D157: 5611 | E157: 5143 | F157: 3724 | G157: 2941 | H157: 2240
A158: 20 | B158: 30-34 | C158: 6970 | D158: 6389 | E158: 6031 | F158: 4307 | G158: 3381 | H158: 2577
A159: 21 | B159: 35-39 | C159: 7790 | D159: 7155 | E159: 6730 | F159: 4784 | G159: 3750 | H159: 2852
A160: 22 | B160: 40-44 | C160: 8607 | D160: 7918 | E160: 7665 | F160: 5394 | G160: 4237 | H160: 3204
A161: 23 | B161: 45-49 | C161: 9424 | D161: 8682 | E161: 8305 | F161: 6274 | G161: 4908 | H161: 3710
A162: 24 | B162: 50-54 | C162: 10251 | D162: 9455 | E162: 8906 | F162: 6737 | G162: 5374 | H162: 4049
A163: 25 | B163: 55-59 | C163: 11095 | D163: 10244 | E163: 9529 | F163: 7214 | G163: 6365 | H163: 4776
A164: 26 | B164: 60 | C164: 11962 | D164: 11054 | E164: 10184 | F164: 7730 | G164: 6723 | H164: 5049
A165: 27 | B165: 61 | C165: 12860 | D165: 11893 | E165: 10880 | F165: 8296 | G165: 7566 | H165: 5685
A166: 28 | B166: 62 | C166: 13795 | D166: 12767 | E166: 11626 | F166: 8925 | G166: 8403 | H166: 6318
A167: 29 | B167: 63 | C167: 14775 | D167: 13683 | E167: 12432 | F167: 9627 | G167: 9239 | H167: 6938
A168: 30 | B168: 64 | C168: 15736 | D168: 14581 | E168: 13264 | F168: 10401 | G168: 9979 | H168: 7566
A169: 31 | B169: 65 | C169: 16681 | D169: 15464 | E169: 14127 | F169: 11253 | G169: 10136 | H169: 7595
A170: 32 | B170: 66 | C170: 17720 | D170: 16435 | E170: 15090 | F170: 12207 | G170: 10182 | H170: 7609
A171: 33 | B171: 67 | C171: 18958 | D171: 17592 | E171: 16219 | F171: 13288 | G171: 11202 | H171: 8456
A172: 34 | B172: 68 | C172: 20504 | D172: 19037 | E172: 17584 | F172: 14521 | G172: 12040 | H172: 9306
A173: 35 | B173: 69 | C173: 22453 | D173: 20859 | E173: 19260 | F173: 15961 | G173: 12993 | H173: 9733
A174: 36 | B174: 70 | C174: 24732 | D174: 22989 | E174: 21202 | F174: 16842 | G174: 13135 | H174: 9781
A175: 37 | B175: 71 | C175: 27201 | D175: 25296 | E175: 23296 | F175: 18938 | G175: 14765 | H175: 10997
A176: 38 | B176: 72 | C176: 29718 | D176: 27648 | E176: 25428 | F176: 21040 | G176: 16401 | H176: 12221
A177: 39 | B177: 73 | C177: 32139 | D177: 29911 | E177: 27485 | F177: 22804 | G177: 18045 | H177: 13435
A178: 40 | B178: 74 | C178: 34465 | D178: 32085 | E178: 29465 | F178: 24460 | G178: 19681 | H178: 14658
A179: 41 | B179: 75+ | C179: 36792 | D179: 34260 | E179: 31445 | F179: 26117 | G179: 21525 | H179: 16012
A180: 1 | B180: 1 Child | C180: 1631 | D180: 1524 | E180: 1517 | F180: 1326 | G180: 1032 | H180: 763
A181: 2 | B181: 2 Children | C181: 2973 | D181: 2778 | E181: 2433 | F181: 2076 | G181: 1617 | H181: 1265
A182: 3 | B182: 3+ Children | C182: 4254 | D182: 3975 | E182: 3489 | F182: 3016 | G182: 2348 | H182: 1896
A183: 1 | B183: Rider Comp. Maternidad | C183: 225 | D183: 225 | E183: 225 | F183: 225 | G183: 225 | H183: 225
A184: 1 | B184: Transplante de organos | C184: 300 | D184: 300 | E184: 300 | F184: 300 | G184: 300 | H184: 300

Sheet Tablas Resto de Ecuador (hidden)
A2: BUPA ESSENTIAL 1000
A3: TARIFAS ANUALES
A5: EDAD | C5: 250 | D5: 500 | E5: 1000 | F5: 2000 | G5: 5000 | H5: 10000 | I5: 20000
A6: 18 | C6: 3063 | D6: 2666 | E6: 2287 | F6: 1595 | G6: 877 | H6: 510 | I6: 299
A7: 19 | C7: 3113 | D7: 2713 | E7: 2287 | F7: 1595 | G7: 884 | H7: 515 | I7: 304
A8: 20 | C8: 3166 | D8: 2756 | E8: 2287 | F8: 1598 | G8: 892 | H8: 524 | I8: 310
A9: 21 | C9: 3226 | D9: 2806 | E9: 2287 | F9: 1606 | G9: 903 | H9: 533 | I9: 318
A10: 22 | C10: 3280 | D10: 2852 | E10: 2291 | F10: 1617 | G10: 915 | H10: 543 | I10: 327
A11: 23 | C11: 3334 | D11: 2897 | E11: 2304 | F11: 1632 | G11: 929 | H11: 555 | I11: 335
A12: 24 | C12: 3388 | D12: 2945 | E12: 2322 | F12: 1653 | G12: 948 | H12: 569 | I12: 346
A13: 25 | C13: 3441 | D13: 2996 | E13: 2345 | F13: 1675 | G13: 965 | H13: 582 | I13: 357
A14: 26 | C14: 3495 | D14: 3040 | E14: 2375 | F14: 1703 | G14: 988 | H14: 599 | I14: 369
A15: 27 | C15: 3549 | D15: 3086 | E15: 2409 | F15: 1735 | G15: 1012 | H15: 618 | I15: 384
A16: 28 | C16: 3617 | D16: 3140 | E16: 2452 | F16: 1772 | G16: 1040 | H16: 638 | I16: 398
A17: 29 | C17: 3678 | D17: 3203 | E17: 2500 | F17: 1815 | G17: 1071 | H17: 658 | I17: 414
A18: 30 | C18: 3741 | D18: 3258 | E18: 2558 | F18: 1861 | G18: 1104 | H18: 683 | I18: 432
A19: 31 | C19: 3805 | D19: 3312 | E19: 2620 | F19: 1914 | G19: 1139 | H19: 710 | I19: 450
A20: 32 | C20: 3871 | D20: 3363 | E20: 2689 | F20: 1973 | G20: 1182 | H20: 737 | I20: 471
A21: 33 | C21: 3976 | D21: 3459 | E21: 2769 | F21: 2038 | G21: 1226 | H21: 770 | I21: 495
A22: 34 | C22: 4082 | D22: 3549 | E22: 2856 | F22: 2108 | G22: 1276 | H22: 805 | I22: 520
A23: 35 | C23: 4187 | D23: 3641 | E23: 2952 | F23: 2186 | G23: 1328 | H23: 841 | I23: 546
A24: 36 | C24: 4292 | D24: 3735 | E24: 3056 | F24: 2270 | G24: 1387 | H24: 882 | I24: 576
A25: 37 | C25: 4400 | D25: 3828 | E25: 3172 | F25: 2362 | G25: 1450 | H25: 926 | I25: 607
A26: 38 | C26: 4511 | D26: 3923 | E26: 3299 | F26: 2465 | G26: 1520 | H26: 974 | I26: 644
A27: 39 | C27: 4619 | D27: 4013 | E27: 3436 | F27: 2574 | G27: 1595 | H27: 1028 | I27: 682
A28: 40 | C28: 4725 | D28: 4106 | E28: 3583 | F28: 2693 | G28: 1676 | H28: 1083 | I28: 723
A29: 41 | C29: 4831 | D29: 4205 | E29: 3747 | F29: 2822 | G29: 1764 | H29: 1145 | I29: 768
A30: 42 | C30: 4943 | D30: 4294 | E30: 3845 | F30: 2963 | G30: 1859 | H30: 1212 | I30: 816
A31: 43 | C31: 5136 | D31: 4467 | E31: 3931 | F31: 3114 | G31: 1962 | H31: 1286 | I31: 872
A32: 44 | C32: 5333 | D32: 4640 | E32: 4051 | F32: 3280 | G32: 2075 | H32: 1364 | I32: 928
A33: 45 | C33: 5528 | D33: 4807 | E33: 4195 | F33: 3457 | G33: 2196 | H33: 1447 | I33: 991
A34: 46 | C34: 5724 | D34: 4978 | E34: 4358 | F34: 3647 | G34: 2327 | H34: 1540 | I34: 1061
A35: 47 | C35: 5924 | D35: 5149 | E35: 4535 | F35: 3776 | G35: 2469 | H35: 1641 | I35: 1134
A36: 48 | C36: 6134 | D36: 5330 | E36: 4723 | F36: 3764 | G36: 2623 | H36: 1751 | I36: 1215
A37: 49 | C37: 6339 | D37: 5513 | E37: 4920 | F37: 3896 | G37: 2789 | H37: 1868 | I37: 1304
A38: 50 | C38: 6547 | D38: 5694 | E38: 5132 | F38: 4126 | G38: 2983 | H38: 1902 | I38: 1407
A39: 51 | C39: 6752 | D39: 5873 | E39: 5355 | F39: 4412 | G39: 3182 | H39: 2062 | I39: 1532
A40: 52 | C40: 6961 | D40: 6054 | E40: 5522 | F40: 4710 | G40: 3227 | H40: 2233 | I40: 1665
A41: 53 | C41: 7206 | D41: 6266 | E41: 5717 | F41: 4977 | G41: 3296 | H41: 2327 | I41: 1812
A42: 54 | C42: 7453 | D42: 6480 | E42: 5911 | F42: 5200 | G42: 3373 | H42: 2516 | I42: 1967
A43: 55 | C43: 7702 | D43: 6698 | E43: 6103 | F43: 5386 | G43: 3449 | H43: 2718 | I43: 2135
A44: 56 | C44: 7949 | D44: 6912 | E44: 6298 | F44: 5573 | G44: 3547 | H44: 2826 | I44: 2316
A45: 57 | C45: 8188 | D45: 7125 | E45: 6495 | F45: 5760 | G45: 3689 | H45: 3052 | I45: 2510
A46: 58 | C46: 8473 | D46: 7369 | E46: 6699 | F46: 6005 | G46: 3896 | H46: 3296 | I46: 2718
A47: 59 | C47: 8759 | D47: 7617 | E47: 6902 | F47: 6248 | G47: 4168 | H47: 3416 | I47: 2944
A48: 60 | C48: 9040 | D48: 7859 | E48: 7106 | F48: 6491 | G48: 4469 | H48: 3659 | I48: 3186
A49: 61 | C49: 9388 | D49: 8161 | E49: 7414 | F49: 6735 | G49: 4636 | H49: 3819 | I49: 3380
A50: 62 | C50: 9983 | D50: 8571 | E50: 7777 | F50: 7040 | G50: 4848 | H50: 4026 | I50: 3573
A51: 63 | C51: 10674 | D51: 9190 | E51: 8182 | F51: 7401 | G51: 5099 | H51: 4300 | I51: 3836
A52: 64 | C52: 11419 | D52: 9856 | E52: 8648 | F52: 7825 | G52: 5393 | H52: 4629 | I52: 4193
A53: 65 | C53: 12216 | D53: 10575 | E53: 9212 | F53: 8412 | G53: 5773 | H53: 4954 | I53: 4632
A54: 66 | C54: 13075 | D54: 11349 | E54: 9877 | F54: 9085 | G54: 6217 | H54: 5347 | I54: 5092
A55: 67 | C55: 13999 | D55: 12180 | E55: 10667 | F55: 9817 | G55: 6717 | H55: 5772 | I55: 5503
A56: 68 | C56: 14989 | D56: 13078 | E56: 11572 | F56: 10645 | G56: 7282 | H56: 6513 | I56: 5945
A57: 69 | C57: 16053 | D57: 14040 | E57: 12626 | F57: 11625 | G57: 7954 | H57: 7032 | I57: 6424
A58: 70 | C58: 17466 | D58: 15190 | E58: 13730 | F58: 12937 | G58: 8796 | H58: 7592 | I58: 6726
A59: 71 | C59: 19236 | D59: 16729 | E59: 15250 | F59: 14245 | G59: 9689 | H59: 8551 | I59: 7050
A60: 72 | C60: 21278 | D60: 18504 | E60: 16873 | F60: 15765 | G60: 10724 | H60: 9229 | I60: 7484
A61: 73 | C61: 23636 | D61: 20551 | E61: 18735 | F61: 17500 | G61: 11901 | H61: 9959 | I61: 8115
A62: 74 | C62: 26349 | D62: 22910 | E62: 20888 | F62: 19512 | G62: 13272 | H62: 11185 | I62: 8999
A63: 75 | C63: 29462 | D63: 25621 | E63: 23263 | F63: 21957 | G63: 14893 | H63: 12054 | I63: 10078
A64: 76 | C64: 33040 | D64: 28729 | E64: 26173 | F64: 24618 | G64: 16698 | H64: 12980 | I64: 10884
A65: 77 | C65: 37104 | D65: 32265 | E65: 29418 | F65: 27648 | G65: 18758 | H65: 14512 | I65: 11677
A66: 78 | C66: 40529 | D66: 36253 | E66: 33054 | F66: 31064 | G66: 21074 | H66: 15583 | I66: 12500
A67: 79 | C67: 43199 | D67: 40729 | E67: 37138 | F67: 34905 | G67: 23681 | H67: 16697 | I67: 13345
A68: 80 | C68: 45870 | D68: 43777 | E68: 39988 | F68: 37949 | G68: 26794 | H68: 18529 | I68: 14194
A69: 81 | C69: 45870 | D69: 43777 | E69: 39988 | F69: 37949 | G69: 26794 | H69: 18529 | I69: 14194
A70: 82 | C70: 45870 | D70: 43777 | E70: 39988 | F70: 37949 | G70: 26794 | H70: 18529 | I70: 14194
A71: 83 | C71: 45870 | D71: 43777 | E71: 39988 | F71: 37949 | G71: 26794 | H71: 18529 | I71: 14194
A72: 84 | B72: o más | C72: 45870 | D72: 43777 | E72: 39988 | F72: 37949 | G72: 26794 | H72: 18529 | I72: 14194
A73: 1 | B73: Hijo | C73: 1022 | D73: 1036 | E73: 653 | F73: 583 | G73: 415 | H73: 335 | I73: 197
A74: 2 | B74: Hijos | C74: 1956 | D74: 1966 | E74: 1245 | F74: 1103 | G74: 684 | H74: 398 | I74: 287
A75: 3 | B75: Hijos o más | C75: 2838 | D75: 2800 | E75: 1802 | F75: 1587 | G75: 949 | H75: 549 | I75: 431
A77: BUPA ESSENTIAL 500
A78: TARIFAS ANUALES
A80: EDAD | C80: 250 | D80: 500 | E80: 1000 | F80: 2000 | G80: 5000 | H80: 10000 | I80: 20000
A81: 18 | C81: 2603 | D81: 2226 | E81: 1630 | F81: 1124 | G81: 610 | H81: 352 | I81: 202
A82: 19 | C82: 2646 | D82: 2226 | E82: 1630 | F82: 1125 | G82: 617 | H82: 356 | I82: 206
A83: 20 | C83: 2692 | D83: 2226 | E83: 1630 | F83: 1128 | G83: 623 | H83: 360 | I83: 211
A84: 21 | C84: 2742 | D84: 2226 | E84: 1632 | F84: 1136 | G84: 631 | H84: 369 | I84: 217
A85: 22 | C85: 2787 | D85: 2226 | E85: 1638 | F85: 1145 | G85: 640 | H85: 375 | I85: 223
A86: 23 | C86: 2833 | D86: 2232 | E86: 1647 | F86: 1157 | G86: 651 | H86: 385 | I86: 228
A87: 24 | C87: 2841 | D87: 2241 | E87: 1662 | F87: 1171 | G87: 664 | H87: 393 | I87: 236
A88: 25 | C88: 2854 | D88: 2258 | E88: 1679 | F88: 1188 | G88: 678 | H88: 405 | I88: 245
A89: 26 | C89: 2875 | D89: 2280 | E89: 1703 | F89: 1210 | G89: 693 | H89: 417 | I89: 258
A90: 27 | C90: 2903 | D90: 2310 | E90: 1730 | F90: 1234 | G90: 711 | H90: 431 | I90: 277
A91: 28 | C91: 2938 | D91: 2342 | E91: 1761 | F91: 1261 | G91: 732 | H91: 445 | I91: 287
A92: 29 | C92: 2983 | D92: 2382 | E92: 1796 | F92: 1292 | G92: 755 | H92: 461 | I92: 284
A93: 30 | C93: 3032 | D93: 2431 | E93: 1839 | F93: 1326 | G93: 780 | H93: 477 | I93: 296
A94: 31 | C94: 3092 | D94: 2485 | E94: 1885 | F94: 1365 | G94: 806 | H94: 496 | I94: 310
A95: 32 | C95: 3160 | D95: 2546 | E95: 1936 | F95: 1407 | G95: 835 | H95: 516 | I95: 326
A96: 33 | C96: 3238 | D96: 2615 | E96: 1994 | F96: 1455 | G96: 866 | H96: 540 | I96: 341
A97: 34 | C97: 3324 | D97: 2689 | E97: 2058 | F97: 1506 | G97: 903 | H97: 563 | I97: 359
A98: 35 | C98: 3419 | D98: 2774 | E98: 2130 | F98: 1563 | G98: 940 | H98: 591 | I98: 378
A99: 36 | C99: 3526 | D99: 2867 | E99: 2208 | F99: 1624 | G99: 983 | H99: 620 | I99: 400
A100: 37 | C100: 3641 | D100: 2969 | E100: 2290 | F100: 1692 | G100: 1030 | H100: 652 | I100: 421
A101: 38 | C101: 3768 | D101: 3079 | E101: 2382 | F101: 1765 | G101: 1079 | H101: 685 | I101: 447
A102: 39 | C102: 3906 | D102: 3199 | E102: 2485 | F102: 1845 | G102: 1134 | H102: 723 | I102: 472
A103: 40 | C103: 4016 | D103: 3329 | E103: 2594 | F103: 1933 | G103: 1191 | H103: 763 | I103: 502
A104: 41 | C104: 4105 | D104: 3471 | E104: 2711 | F104: 2026 | G104: 1254 | H104: 808 | I104: 536
A105: 42 | C105: 4204 | D105: 3627 | E105: 2835 | F105: 2129 | G105: 1324 | H105: 857 | I105: 571
A106: 43 | C106: 4363 | D106: 3792 | E106: 2895 | F106: 2239 | G106: 1398 | H106: 909 | I106: 607
A107: 44 | C107: 4531 | D107: 3942 | E107: 2978 | F107: 2358 | G107: 1479 | H107: 965 | I107: 650
A108: 45 | C108: 4700 | D108: 4086 | E108: 3074 | F108: 2487 | G108: 1565 | H108: 1026 | I108: 693
A109: 46 | C109: 4798 | D109: 4231 | E109: 3183 | F109: 2626 | G109: 1662 | H109: 1092 | I109: 742
A110: 47 | C110: 4782 | D110: 4376 | E110: 3304 | F110: 2776 | G110: 1761 | H110: 1162 | I110: 795
A111: 48 | C111: 4862 | D111: 4531 | E111: 3437 | F111: 2938 | G111: 1802 | H111: 1240 | I111: 852
A112: 49 | C112: 5063 | D112: 4684 | E112: 3577 | F112: 3114 | G112: 1868 | H112: 1326 | I112: 913
A113: 50 | C113: 5348 | D113: 4840 | E113: 3723 | F113: 3296 | G113: 1950 | H113: 1423 | I113: 987
A114: 51 | C114: 5683 | D114: 4992 | E114: 3884 | F114: 3518 | G114: 2045 | H114: 1544 | I114: 1075
A115: 52 | C115: 5914 | D115: 5146 | E115: 4067 | F115: 3754 | G115: 2151 | H115: 1673 | I115: 1171
A116: 53 | C116: 6124 | D116: 5325 | E116: 4281 | F116: 3967 | G116: 2264 | H116: 1809 | I116: 1274
A117: 54 | C117: 6335 | D117: 5507 | E117: 4529 | F117: 4149 | G117: 2374 | H117: 1958 | I117: 1384
A118: 55 | C118: 6548 | D118: 5693 | E118: 4806 | F118: 4323 | G118: 2483 | H118: 2100 | I118: 1502
A119: 56 | C119: 6755 | D119: 5873 | E119: 5106 | F119: 4503 | G119: 2607 | H119: 2186 | I119: 1629
A120: 57 | C120: 6962 | D120: 6057 | E120: 5425 | F120: 4701 | G120: 2760 | H120: 2291 | I120: 1767
A121: 58 | C121: 7202 | D121: 6261 | E121: 5694 | F121: 4928 | G121: 2959 | H121: 2426 | I121: 1914
A122: 59 | C122: 7443 | D122: 6473 | E122: 5865 | F122: 5151 | G122: 3204 | H122: 2588 | I122: 2071
A123: 60 | C123: 7682 | D123: 6680 | E123: 6042 | F123: 5362 | G123: 3485 | H123: 2771 | I123: 2241
A124: 61 | C124: 7978 | D124: 6936 | E124: 6302 | F124: 5611 | G124: 3801 | H124: 2978 | I124: 2366
A125: 62 | C125: 8337 | D125: 7249 | E125: 6610 | F125: 5949 | G125: 4120 | H125: 3213 | I125: 2446
A126: 63 | C126: 8766 | D126: 7621 | E126: 6952 | F126: 6290 | G126: 4335 | H126: 3477 | I126: 2618
A127: 64 | C127: 9270 | D127: 8064 | E127: 7350 | F127: 6653 | G127: 4812 | H127: 3757 | I127: 2917
A128: 65 | C128: 9879 | D128: 8587 | E128: 7830 | F128: 7149 | G128: 5152 | H128: 4049 | I128: 3306
A129: 66 | C129: 10586 | D129: 9207 | E129: 8395 | F129: 7720 | G129: 5550 | H129: 4376 | I129: 3570
A130: 67 | C130: 11432 | D130: 9942 | E130: 9067 | F130: 8343 | G130: 5994 | H130: 4763 | I130: 3855
A131: 68 | C131: 12406 | D131: 10785 | E131: 9835 | F131: 9047 | G131: 6500 | H131: 5231 | I131: 4163
A132: 69 | C132: 13536 | D132: 11771 | E132: 10733 | F132: 9880 | G132: 6761 | H132: 5750 | I132: 4491
A133: 70 | C133: 14846 | D133: 12910 | E133: 11669 | F133: 10995 | G133: 7476 | H133: 6304 | I133: 4844
A134: 71 | C134: 16351 | D134: 14220 | E134: 12963 | F134: 12107 | G134: 8235 | H134: 6940 | I134: 5150
A135: 72 | C135: 18087 | D135: 15727 | E135: 14342 | F135: 13398 | G135: 9115 | H135: 7705 | I135: 5411
A136: 73 | C136: 20089 | D136: 17467 | E136: 15925 | F136: 14874 | G136: 10115 | H136: 8310 | I136: 5857
A137: 74 | C137: 22397 | D137: 19472 | E137: 17755 | F137: 16586 | G137: 11282 | H137: 8947 | I137: 6506
A138: 75 | C138: 25041 | D138: 21776 | E138: 19774 | F138: 18662 | G138: 12658 | H138: 9620 | I138: 6980
A139: 76 | C139: 27822 | D139: 24419 | E139: 22248 | F139: 20924 | G139: 14193 | H139: 10332 | I139: 7475
A140: 77 | C140: 29982 | D140: 27427 | E140: 25005 | F140: 23330 | G140: 15944 | H140: 11076 | I140: 7985
A141: 78 | C141: 32076 | D141: 30814 | E141: 28096 | F141: 25026 | G141: 17168 | H141: 11850 | I141: 8503
A142: 79 | C142: 34106 | D142: 33965 | E142: 31516 | F142: 26805 | G142: 18377 | H142: 12645 | I142: 9016
A143: 80 | C143: 36136 | D143: 36097 | E143: 33611 | F143: 28663 | G143: 19622 | H143: 13448 | I143: 9517
A144: 81 | C144: 36136 | D144: 36097 | E144: 33611 | F144: 28663 | G144: 19622 | H144: 13448 | I144: 9517
A145: 82 | C145: 36136 | D145: 36097 | E145: 33611 | F145: 28663 | G145: 19622 | H145: 13448 | I145: 9517
A146: 83 | C146: 36136 | D146: 36097 | E146: 33611 | F146: 28663 | G146: 19622 | H146: 13448 | I146: 9517
A147: 84 | B147: o más | C147: 36136 | D147: 36097 | E147: 33611 | F147: 28663 | G147: 19622 | H147: 13448 | I147: 9517
A148: 1 | B148: Hijo | C148: 1003 | D148: 936 | E148: 622 | F148: 565 | G148: 338 | H148: 231 | I148: 153
A149: 2 | B149: Hijos | C149: 1812 | D149: 1688 | E149: 1138 | F149: 877 | G149: 477 | H149: 387 | I149: 307
A150: 3 | B150: Hijos o más | C150: 2582 | D150: 2398 | E150: 1632 | F150: 1214 | G150: 662 | H150: 580 | I150: 460
A152: BUPA ESSENTIAL
A153: TARIFAS ANUALES
A155: EDAD | C155: 0 | D155: 1000 | E155: 2000 | F155: 5000 | G155: 10000 | H155: 20000
A156: 18 | B156: 18-24 | C156: 4941 | D156: 4816 | E156: 4239 | F156: 3105 | G156: 2438 | H156: 1870
A157: 25 | B157: 25-29 | C157: 5484 | D157: 5611 | E157: 4775 | F157: 3450 | G157: 2718 | H157: 2071
A158: 30 | B158: 30-34 | C158: 6285 | D158: 6389 | E158: 5599 | F158: 3988 | G158: 3123 | H158: 2382
A159: 35 | B159: 35-39 | C159: 6919 | D159: 7155 | E159: 6245 | F159: 4430 | G159: 3462 | H159: 2636
A160: 40 | B160: 40-44 | C160: 7761 | D160: 7918 | E160: 7114 | F160: 4993 | G160: 3912 | H160: 2962
A161: 45 | B161: 45-49 | C161: 8807 | D161: 8682 | E161: 8305 | F161: 5806 | G161: 4531 | H161: 3427
A162: 50 | B162: 50-54 | C162: 9580 | D162: 9455 | E162: 8906 | F162: 6350 | G162: 4961 | H162: 3740
A163: 55 | B163: 55-59 | C163: 10369 | D163: 10244 | E163: 9529 | F163: 7214 | G163: 5874 | H163: 4407
A164: 60 | B164: 60 | C164: 11179 | D164: 11054 | E164: 10184 | F164: 7730 | G164: 6202 | H164: 4659
A165: 61 | B165: 61 | C165: 12018 | D165: 11893 | E165: 10880 | F165: 8296 | G165: 6979 | H165: 5245
A166: 62 | B166: 62 | C166: 12892 | D166: 12767 | E166: 11626 | F166: 8925 | G166: 7750 | H166: 5829
A167: 63 | B167: 63 | C167: 13808 | D167: 13683 | E167: 12432 | F167: 9627 | G167: 8520 | H167: 6400
A168: 64 | B168: 64 | C168: 14706 | D168: 14581 | E168: 13264 | F168: 10401 | G168: 9293 | H168: 6979
A169: 65 | B169: 65 | C169: 15589 | D169: 15464 | E169: 14127 | F169: 11253 | G169: 9345 | H169: 7006
A170: 66 | B170: 66 | C170: 16560 | D170: 16435 | E170: 15090 | F170: 12070 | G170: 9388 | H170: 7017
A171: 67 | B171: 67 | C171: 17717 | D171: 17592 | E171: 16219 | F171: 13288 | G171: 10436 | H171: 7801
A172: 68 | B172: 68 | C172: 19162 | D172: 19037 | E172: 17584 | F172: 14521 | G172: 11473 | H172: 8581
A173: 69 | B173: 69 | C173: 20984 | D173: 20859 | E173: 19260 | F173: 15409 | G173: 11978 | H173: 8975
A174: 70 | B174: 70 | C174: 23090 | D174: 22989 | E174: 21202 | F174: 15573 | G174: 12108 | H174: 9020
A175: 71 | B175: 71 | C175: 25421 | D175: 25296 | E175: 23296 | F175: 17511 | G175: 13613 | H175: 10139
A176: 72 | B176: 72 | C176: 27773 | D176: 27648 | E176: 25428 | F176: 19453 | G176: 15118 | H176: 11267
A177: 73 | B177: 73 | C177: 30036 | D177: 29911 | E177: 27485 | F177: 21397 | G177: 16631 | H177: 12386
A178: 74 | B178: 74 | C178: 32210 | D178: 32085 | E178: 29465 | F178: 23338 | G178: 18140 | H178: 13513
A179: 75 | B179: 75+ | C179: 34385 | D179: 34260 | E179: 31445 | F179: 25524 | G179: 19839 | H179: 14760
A180: 1 | B180: 1 Child | C180: 1524 | D180: 1524 | E180: 1517 | F180: 1226 | G180: 952 | H180: 704
A181: 2 | B181: 2 Children | C181: 2778 | D181: 2778 | E181: 2253 | F181: 1920 | G181: 1491 | H181: 1265
A182: 3 | B182: 3+ Children | C182: 3975 | D182: 3975 | E182: 3235 | F182: 2787 | G182: 2164 | H182: 1896
A183: 1 | B183: Rider Comp. Maternidad | C183: 225 | D183: 225 | E183: 225 | F183: 225 | G183: 225 | H183: 225
A184: 1 | B184: Transplante de organos | C184: 300 | D184: 300 | E184: 300 | F184: 300 | G184: 300 | H184: 300
